Service Area,Service Division,Expense Type,Expense Code,Detailed Expense Type,Payment Date,Transaction Number,Amount Exc Vat,Supplier Name
Adults Wellbeing and Health,Commissioning inc Supporting People,Third Party Payments,479101,Purchase of Care,01-Mar-2013,2563799-430023854,"4,254.87",TEES ESK & WEAR VALLEY NHS FOUNDATION TRUST.
Adults Wellbeing and Health,Financing-Adult Services,Creditors,952035,Creditor-housing benefit-eqpt,01-Mar-2013,2563539-22836,"1,813.00",ACF FLOORING LTD.
Adults Wellbeing and Health,Head of Adults,Premises,106099,Centrally Controlled Rep and Maint,01-Mar-2013,2563769-227,829.01,SAFEGUARD SECURITY (NE) LTD.
Adults Wellbeing and Health,Head of Adults,Transport,230005,Contract Hire,01-Mar-2013,2563744-00308,570.00,PHILLIPS TAXIS LTD.
Adults Wellbeing and Health,Head of Adults,Transport,230005,Contract Hire,01-Mar-2013,2563744-00309,912.00,PHILLIPS TAXIS LTD.
Adults Wellbeing and Health,Head of Adults,Supplies and Services,338364,Services,01-Mar-2013,2563574-1042,538.65,CARE ABILITY.
Adults Wellbeing and Health,Social Inclusion,Supplies and Services,312009,"Newspapers, Books and Periodicals",01-Mar-2013,2563743-1470975,812.64,PETERS LTD.
Children and Young Peoples Services,CYPS - Local Authority,Employees,080025,Agency Staff,01-Mar-2013,2563589-525118,"133,172.40",COMENSURA LTD.
Children and Young Peoples Services,CYPS - Local Authority,Construction Work,908105,Construction work,01-Mar-2013,2563663-DURH/0343,"1,017,228.00",INSPIREDSPACES DURHAM LTD.
Children and Young Peoples Services,CYPS - Local Authority,Transport,230007,Contract Hire,01-Mar-2013,2563619-11285,570.00,ENTERPRISE TRAVEL.
Children and Young Peoples Services,CYPS - Local Authority,Transport,230007,Contract Hire,01-Mar-2013,2563630-764,"1,873.24",GEM TRAVEL.
Children and Young Peoples Services,CYPS - Local Authority,Transport,230007,Contract Hire,01-Mar-2013,2563645-HT31W059D,999.20,HARRY`S TAXI`S.
Children and Young Peoples Services,CYPS - Local Authority,Transport,230007,Contract Hire,01-Mar-2013,2563665-261,600.00,J YOUNG T/A VIP TAXIS.
Children and Young Peoples Services,CYPS - Local Authority,Transport,230007,Contract Hire,01-Mar-2013,2563665-5122B271,784.00,J YOUNG T/A VIP TAXIS.
Children and Young Peoples Services,CYPS - Local Authority,Transport,230007,Contract Hire,01-Mar-2013,2563666-235,899.00,JDS PRIVATE HIRE DURHAM.
Children and Young Peoples Services,CYPS - Local Authority,Transport,230007,Contract Hire,01-Mar-2013,2563667-2092,"1,563.62",JEFF ANDERSON COACHES LTD.
Children and Young Peoples Services,CYPS - Local Authority,Transport,230007,Contract Hire,01-Mar-2013,2563681-1068,950.00,KEN CHAMBERS.
Children and Young Peoples Services,CYPS - Local Authority,Transport,230007,Contract Hire,01-Mar-2013,2563688-M054JAN13,900.00,KWIK CABS.
Children and Young Peoples Services,CYPS - Local Authority,Transport,230007,Contract Hire,01-Mar-2013,2563692-17153,"3,054.24",LEES COACHES.
Children and Young Peoples Services,CYPS - Local Authority,Transport,230007,Contract Hire,01-Mar-2013,2563692-17162,560.00,LEES COACHES.
Children and Young Peoples Services,CYPS - Local Authority,Transport,230007,Contract Hire,01-Mar-2013,2563694-2808,713.70,LINCAB TAXIS.
Children and Young Peoples Services,CYPS - Local Authority,Transport,230007,Contract Hire,01-Mar-2013,2563694-2809,901.20,LINCAB TAXIS.
Children and Young Peoples Services,CYPS - Local Authority,Transport,230007,Contract Hire,01-Mar-2013,2563713-33E055B,780.00,MR GS ANDERSON.
Children and Young Peoples Services,CYPS - Local Authority,Transport,230007,Contract Hire,01-Mar-2013,2563716-0050A061A,"2,508.50",MR P CAHILL.
Children and Young Peoples Services,CYPS - Local Authority,Transport,230007,Contract Hire,01-Mar-2013,2563796-01107,902.31,TALLENTIRES LTD.
Children and Young Peoples Services,CYPS - Local Authority,Transport,230007,Contract Hire,01-Mar-2013,2563796-01108,872.32,TALLENTIRES LTD.
Children and Young Peoples Services,CYPS - Local Authority,Transport,230007,Contract Hire,01-Mar-2013,2563796-01109,"1,544.44",TALLENTIRES LTD.
Children and Young Peoples Services,CYPS - Local Authority,Supplies and Services,308011,Furniture,01-Mar-2013,2563828-496086172,963.90,YORKSHIRE PURCHASING ORGANISATION.
Children and Young Peoples Services,CYPS - Local Authority,Supplies and Services,332047,"Printing, Stationery and Gen Off Exps",01-Mar-2013,2563793-5652748,510.62,SUPPLIES TEAM LTD.
Children and Young Peoples Services,CYPS - Local Authority,Employees,040001,"Recruitment, Instruction and Training",01-Mar-2013,2563808-TARINV/15196912,540.00,TSL EDUCATION LTD.
Children and Young Peoples Services,CYPS - Local Authority,Employees,040001,"Recruitment, Instruction and Training",01-Mar-2013,2563808-TARINV/15196918,540.00,TSL EDUCATION LTD.
Children and Young Peoples Services,CYPS - Local Authority,Employees,040001,"Recruitment, Instruction and Training",01-Mar-2013,2563808-TARINV/15197231,540.00,TSL EDUCATION LTD.
Children and Young Peoples Services,CYPS - Local Authority,Employees,040001,"Recruitment, Instruction and Training",01-Mar-2013,2563808-TARINV/15197726,540.00,TSL EDUCATION LTD.
Children and Young Peoples Services,CYPS - Local Authority,Supplies and Services,338505,Services,01-Mar-2013,2563595-511791,"66,276.75",COUNTY DURHAM PCT .
Children and Young Peoples Services,Dedicated Schools Grant,Transport,230007,Contract Hire,01-Mar-2013,2563679-107,760.00,KAB IT.
Children and Young Peoples Services,Dedicated Schools Grant,Third Party Payments,425005,Rendered by Voluntary Organisations,01-Mar-2013,2563649-WI5938,"61,791.16",HESLEY CARE GROUP LTD.
Children and Young Peoples Services,Dedicated Schools Grant,Third Party Payments,425005,Rendered by Voluntary Organisations,01-Mar-2013,2563649-WI5939,"61,791.16",HESLEY CARE GROUP LTD.
Children and Young Peoples Services,Dedicated Schools Grant,Third Party Payments,425005,Rendered by Voluntary Organisations,01-Mar-2013,2563749-9011395,"52,257.00",PONTVILLE SCHOOL LTD.
Children and Young Peoples Services,Dedicated Schools Grant,Third Party Payments,425005,Rendered by Voluntary Organisations,01-Mar-2013,2563756-0000120974,"1,950.00",QUALITY TIME CARE LTD.
Children and Young Peoples Services,Dedicated Schools Grant,Third Party Payments,425005,Rendered by Voluntary Organisations,01-Mar-2013,2563823-942,"70,609.00",WITHERSLACK CARE & EDUCATION INITIATIVES.
Children and Young Peoples Services,Dedicated Schools Grant,Third Party Payments,425005,Rendered by Voluntary Organisations,01-Mar-2013,2563823-943,"70,609.00",WITHERSLACK CARE & EDUCATION INITIATIVES.
Children and Young Peoples Services,Dedicated Schools Grant,Third Party Payments,425005,Rendered by Voluntary Organisations,01-Mar-2013,2563823-944,"70,609.00",WITHERSLACK CARE & EDUCATION INITIATIVES.
Corporate Resources,ICT Services incl. Design and Print,Supplies and Services,332029,"Printing, Stationery and Gen Off Exps",01-Mar-2013,2563758-9616,550.00,RADECAL SIGNS GRAPHICS & ADVERTISING.
Neighbourhood Services,Direct Services,Supplies and Services,304221,Equipment and Materials,01-Mar-2013,2563735-0636582,760.00,NORTHERN TOOLS & ACCESSORIES.
Neighbourhood Services,Direct Services,Supplies and Services,304221,Equipment and Materials,01-Mar-2013,2563747-4120146300,801.52,PLUMBING TRADE SUPPLIES LTD.
Neighbourhood Services,Direct Services,Supplies and Services,304221,Equipment and Materials,01-Mar-2013,2563764-2744,"1,491.00",RINGLAND SCAFFOLDING.
Neighbourhood Services,Direct Services,Supplies and Services,304221,Equipment and Materials,01-Mar-2013,2563794-0643374,975.00,T CROSSLING & CO LTD.
Neighbourhood Services,Direct Services,Supplies and Services,304259,Equipment and Materials,01-Mar-2013,2563700-84116,"1,580.00",LORD TECHNICAL LTD.
Neighbourhood Services,Direct Services,Third Party Payments,430100,Rendered by Private Contractors,01-Mar-2013,2563604-220873,"2,105.68",DENNIS EAGLE LTD.
Neighbourhood Services,Direct Services,Third Party Payments,430100,Rendered by Private Contractors,01-Mar-2013,2563604-220884,"1,967.96",DENNIS EAGLE LTD.
Neighbourhood Services,Direct Services,Third Party Payments,430100,Rendered by Private Contractors,01-Mar-2013,2563604-220885,"1,732.85",DENNIS EAGLE LTD.
Neighbourhood Services,Direct Services,Third Party Payments,430100,Rendered by Private Contractors,01-Mar-2013,2563618-18098,"1,662.32",ENTERPRISE ACCIDENT REPAIR CENTRE LTD.
Neighbourhood Services,Direct Services,Third Party Payments,430100,Rendered by Private Contractors,01-Mar-2013,2563661-10269,720.00,IAN BRADLEY RECOVERY LTD.
Neighbourhood Services,Direct Services,Third Party Payments,430100,Rendered by Private Contractors,01-Mar-2013,2563687-771,"1,285.00",KTD NE LTD.
Neighbourhood Services,Direct Services,Third Party Payments,430100,Rendered by Private Contractors,01-Mar-2013,2563703-36878,593.00,MARIAN DOORS & SHUTTERS.
Neighbourhood Services,Direct Services,Third Party Payments,430100,Rendered by Private Contractors,01-Mar-2013,2563708-1353768930,673.71,MITCHELL POWERSYSTEMS.
Neighbourhood Services,Direct Services,Third Party Payments,430100,Rendered by Private Contractors,01-Mar-2013,2563732-17354,975.21,NORTHERN POWER CLEAN LTD.
Neighbourhood Services,Direct Services,Third Party Payments,430100,Rendered by Private Contractors,01-Mar-2013,2563764-2722,633.00,RINGLAND SCAFFOLDING.
Neighbourhood Services,Direct Services,Transport,210057,Repair and Maintenance of Vehicles,01-Mar-2013,2563629-B82394,"1,293.20",GEESINK NORBA LTD.
Neighbourhood Services,Direct Services,Transport,210057,Repair and Maintenance of Vehicles,01-Mar-2013,2563705-001/39754,"1,627.44",MH SOUTHERN & CO LTD.
Neighbourhood Services,Direct Services,Transport,210057,Repair and Maintenance of Vehicles,01-Mar-2013,2563708-1353772273,777.74,MITCHELL POWERSYSTEMS.
Neighbourhood Services,Direct Services,Transport,210057,Repair and Maintenance of Vehicles,01-Mar-2013,2563800-96277768,691.24,TERBERG MATEC (UK) LTD.
Neighbourhood Services,Direct Services,Transport,210057,Repair and Maintenance of Vehicles,01-Mar-2013,2563800-96277946,678.83,TERBERG MATEC (UK) LTD.
Neighbourhood Services,Direct Services,Stock,926004,Stock,01-Mar-2013,2563576-272165,916.10,CARRS BILLINGTON AGRICULTURE.
Neighbourhood Services,Direct Services,Stock,926004,Stock,01-Mar-2013,2563577-271858,689.91,CARRS BILLINGTON AGRICULTURE.
Neighbourhood Services,Direct Services,Stock,926004,Stock,01-Mar-2013,2563627-12553,"1,522.08",GATESHEAD BEARINGS LTD.
Neighbourhood Services,Direct Services,Stock,926004,Stock,01-Mar-2013,2563628-9095652,"20,065.52",GB OILS T/A BRETT FUELS.
Neighbourhood Services,Direct Services,Stock,926004,Stock,01-Mar-2013,2563628-9104178,"4,703.30",GB OILS T/A BRETT FUELS.
Neighbourhood Services,Direct Services,Stock,926004,Stock,01-Mar-2013,2563628-9131382,"1,733.25",GB OILS T/A BRETT FUELS.
Neighbourhood Services,Direct Services,Stock,926004,Stock,01-Mar-2013,2563662-5803,729.00,IBA FABRICATIONS LTD.
Neighbourhood Services,"Heritage, Culture & Libraries",Third Party Payments,410037,Rendered by Other Local Authorities,01-Mar-2013,2563599-1118,644.00,CRAIG PUGH.
Neighbourhood Services,"Heritage, Culture & Libraries",Third Party Payments,410037,Rendered by Other Local Authorities,01-Mar-2013,2563599-1123,500.00,CRAIG PUGH.
Neighbourhood Services,Projects and Business services,Supplies and Services,352001,Conference Expenses,01-Mar-2013,2563746-01/020,"2,275.00",PINK PERSONAL DEVELOPMENT.
Neighbourhood Services,Sport & Leisure,Supplies and Services,384540,Miscellaneous Expenses,01-Mar-2013,2563545-18707,"4,075.00",ALLWAG PROMOTIONS LTD.
Neighbourhood Services,Technical Services,Construction Work,908112,Capital - Drainage,01-Mar-2013,2563544-60268123-35,"5,089.50",AECOM LTD.
Neighbourhood Services,Technical Services,Third Party Payments,460157,Contract Payments,01-Mar-2013,2563646-SIN7033610,"22,545.96",HCS DRAIN SERVICES LTD.
Neighbourhood Services,Technical Services,Supplies and Services,304221,Equipment and Materials,01-Mar-2013,2563670-08/70410,537.56,JOHN DAVIDSON (PIPES) LTD.
Neighbourhood Services,Technical Services,Supplies and Services,304221,Equipment and Materials,01-Mar-2013,2563751-049605,946.12,PREMIER WASTE MANAGEMENT LTD.
Neighbourhood Services,Technical Services,Supplies and Services,304221,Equipment and Materials,01-Mar-2013,2563751-049659,"1,151.22",PREMIER WASTE MANAGEMENT LTD.
Neighbourhood Services,Technical Services,Supplies and Services,304221,Equipment and Materials,01-Mar-2013,2563816-34834,"1,100.00",W MARLEY AGRICULTURAL CONTRACTORS LTD.
Neighbourhood Services,Technical Services,Third Party Payments,430100,Rendered by Private Contractors,01-Mar-2013,2563734-DI20159538,"1,097.01",NORTHERN POWERGRID (NORTHEAST) LTD.
Neighbourhood Services,Technical Services,Third Party Payments,430100,Rendered by Private Contractors,01-Mar-2013,2563754-7621,"1,100.00",PROTECTOR SECURITY GROUP LTD.
RED HRA,HRA Capital,Construction Work,908105,Construction work,01-Mar-2013,2563549-85889,"1,285.00",AQUEOUS 1ST KWIK FLOW.
RED HRA,HRA Capital,Construction Work,908105,Construction work,01-Mar-2013,2563549-85890,"1,785.00",AQUEOUS 1ST KWIK FLOW.
Regeneration & Economic Development,Economic Development and Housing,Construction Work,908105,Construction work,01-Mar-2013,2563702-3492,525.00,LUCION ENVIRONMENTAL LLP LTD.
Regeneration & Economic Development,Economic Development and Housing,Construction Work,908105,Construction work,01-Mar-2013,2563731-NEC12236,"11,923.75",NORTHERN ENERGY CONNECTIONS LTD.
Regeneration & Economic Development,Economic Development and Housing,Construction Work,908105,Construction work,01-Mar-2013,2563809-000534539,"6,433.70",TURNER & TOWNSEND LLP.
Regeneration & Economic Development,Economic Development and Housing,Supplies and Services,384199,Miscellaneous Expenses,01-Mar-2013,2563723-NM29021,"2,880.00",NEW MIND INTERNET CONSULTANCY LTD.
Regeneration & Economic Development,Economic Development and Housing,Other Expenses,914006,Tenants Allowances,01-Mar-2013,2563711-HL/GRT,"1,464.00",REDACTED - PAYMENT TO INDIVIDUAL
Regeneration & Economic Development,"Spatial Policy, Planning, Assets & Environment",Supplies and Services,336005,Advertising,01-Mar-2013,2563805-100000917119,"1,063.03",TMP (UK) LTD (RECRUITMENT).
Regeneration & Economic Development,"Spatial Policy, Planning, Assets & Environment",Supplies and Services,336005,Advertising,01-Mar-2013,2563805-100000918978,590.57,TMP (UK) LTD (RECRUITMENT).
Regeneration & Economic Development,"Spatial Policy, Planning, Assets & Environment",Supplies and Services,336005,Advertising,01-Mar-2013,2563805-100000918979,"1,063.03",TMP (UK) LTD (RECRUITMENT).
Regeneration & Economic Development,"Spatial Policy, Planning, Assets & Environment",Supplies and Services,336005,Advertising,01-Mar-2013,2563805-100000919858,"1,122.09",TMP (UK) LTD (RECRUITMENT).
Regeneration & Economic Development,"Spatial Policy, Planning, Assets & Environment",Supplies and Services,336005,Advertising,01-Mar-2013,2563805-100000921032,826.80,TMP (UK) LTD (RECRUITMENT).
Regeneration & Economic Development,"Spatial Policy, Planning, Assets & Environment",Supplies and Services,336005,Advertising,01-Mar-2013,2563805-100000922315,"1,358.32",TMP (UK) LTD (RECRUITMENT).
Regeneration & Economic Development,"Spatial Policy, Planning, Assets & Environment",Work In Progress,928002,Rechargeable works,01-Mar-2013,2563822-INS-APPA,"8,900.00",WICKSTEED LEISURE LTD.
Regeneration & Economic Development,"Spatial Policy, Planning, Assets & Environment",Premises,125009,Rents,01-Mar-2013,2563770-042659,"1,166.98",SALTIRE CLIENT TRUST A/C.
Regeneration & Economic Development,"Spatial Policy, Planning, Assets & Environment",Supplies and Services,338005,Services,01-Mar-2013,2563790-S2132613,553.04,STOREYS SSP.
Regeneration & Economic Development,Strategy Programmes and Performance,Supplies and Services,384899,Miscellaneous Expenses,01-Mar-2013,2563609-ED49/11,"1,656.64",DURHAM RURAL COMMUNITY COUNCIL LTD.
Regeneration & Economic Development,Transport,Transport,230005,Contract Hire,01-Mar-2013,2563692-17163,780.00,LEES COACHES.
Regeneration & Economic Development,Transport,Transport,230005,Contract Hire,01-Mar-2013,2563692-17163JAN13,780.00,LEES COACHES.
Regeneration & Economic Development,Transport,Creditors,952025,Creditor-private street works,01-Mar-2013,2563829-PSWBOND,"1,378.85",YUILL HOMES LTD.
Regeneration & Economic Development,Transport,Other Expenses,914001,Other capital expenses,01-Mar-2013,2563596-INS-WRR,716.92,COUPE LINE LTD.
Regeneration & Economic Development,Transport,Third Party Payments,440999,Other Third Party Payments,01-Mar-2013,2563753-SIN000408,"1,668.00",PROJECT GENESIS MANAGEMENT CO LTD.
Regeneration & Economic Development,Transport,Third Party Payments,430106,Rendered by Private Contractors,01-Mar-2013,2563583-42SCHM-F6/1/13-2/2/13,"1,079.90",CENTRAL COACHES.
Regeneration & Economic Development,Transport,Third Party Payments,430106,Rendered by Private Contractors,01-Mar-2013,2563671-DCC1-2/13,"3,068.83",JOHN JAMES BRUNSKILL.
Regeneration & Economic Development,Transport,Third Party Payments,430106,Rendered by Private Contractors,01-Mar-2013,2563677-LINK2INV36,"3,025.92",JOVIAL PRIVATE HIRE.
Regeneration & Economic Development,Transport,Third Party Payments,430106,Rendered by Private Contractors,01-Mar-2013,2563680-ED1120605-JAN2013,"4,674.80",KEITH HAMMOND.
Regeneration & Economic Development,Transport,Third Party Payments,430106,Rendered by Private Contractors,01-Mar-2013,2563755-622,"1,172.64",PYGALL COACH HIRE.
Regeneration & Economic Development,Transport,Third Party Payments,430106,Rendered by Private Contractors,01-Mar-2013,2563757-282,"9,330.60",R COOPER T/A DC TAXIS.
Regeneration & Economic Development,Transport,Third Party Payments,430106,Rendered by Private Contractors,01-Mar-2013,2563772-71,"6,934.31",SB TRAVEL.
Regeneration & Economic Development,Transport,Third Party Payments,430106,Rendered by Private Contractors,01-Mar-2013,2563807-PPT3308-10/12-5/1/13,"1,456.90",TONYS TAXIS (A BIRCH).
Regeneration & Economic Development,Transport,Third Party Payments,430106,Rendered by Private Contractors,01-Mar-2013,2563807-PPT3308-6/1-2/2/13,"2,099.50",TONYS TAXIS (A BIRCH).
Regeneration & Economic Development,Transport,Third Party Payments,430106,Rendered by Private Contractors,01-Mar-2013,2563807-PPT330812/11-10/12/12,"2,066.50",TONYS TAXIS (A BIRCH).
Regeneration & Economic Development,Transport,Supplies and Services,338045,Services,01-Mar-2013,2563710-330480,500.00,MR ANTHONY GILL.
Adults Wellbeing and Health,Head of Adults,Third Party Payments,478101,Purchase of Care,04-Mar-2013,2564135-SLSINV/00001446,"1,668.24",REAL LIFE OPTIONS.
Adults Wellbeing and Health,Social Inclusion,Third Party Payments,440999,Other Third Party Payments,04-Mar-2013,2563838-INV01816,"5,633.00",ACUMEN COMM ENTERPRISE DEVELOPMENT TRUST LTD.
Adults Wellbeing and Health,Social Inclusion,Third Party Payments,440999,Other Third Party Payments,04-Mar-2013,2563838-INV01821,"2,358.00",ACUMEN COMM ENTERPRISE DEVELOPMENT TRUST LTD.
Adults Wellbeing and Health,Social Inclusion,Third Party Payments,479111,Purchase of Care,04-Mar-2013,2563906-3139347,"29,880.00",CO DURHAM & DARLINGTON NHS FOUNDATION TRUST.
Assistant Chief Executive,Partnerships & Community Engagement Div.,Supplies and Services,384085,Miscellaneous Expenses,04-Mar-2013,2563894-BAIB15-12DAVK15-12,550.00,CHESTER LE STREET COMMUNITY ASSOCIATION.
Assistant Chief Executive,Partnerships & Community Engagement Div.,Supplies and Services,384085,Miscellaneous Expenses,04-Mar-2013,2564032-DAVK14-12,550.00,LIBERTY FROM ADDICTION.
Assistant Chief Executive,Partnerships & Community Engagement Div.,Supplies and Services,384085,Miscellaneous Expenses,04-Mar-2013,2564185-MARD05-12,500.00,STANLEY YOUTH CENTRE.
Assistant Chief Executive,Partnerships & Community Engagement Div.,Supplies and Services,384085,Miscellaneous Expenses,04-Mar-2013,2564241-CARC10-12,500.00,WEST PELTON & HIGH HOLD TENANTS & RESIDENTS ASSOCIATION.
Assistant Chief Executive,Partnerships & Community Engagement Div.,Supplies and Services,312010,"Newspapers, Books and Periodicals",04-Mar-2013,2564064-231239/0,"1,018.35",NATIONAL LEAFLET CO LTD.
Children and Young Peoples Services,CYPS - Local Authority,Transport,230005,Contract Hire,04-Mar-2013,2563837-E27/QFH,"1,075.00",AABAT TAXIS.
Children and Young Peoples Services,CYPS - Local Authority,Supplies and Services,384504,Miscellaneous Expenses,04-Mar-2013,2564138-02614,"1,003.24",RIAS RI ACCOMMODATION & SUPPORT LTD.
Children and Young Peoples Services,CYPS - Local Authority,Supplies and Services,384504,Miscellaneous Expenses,04-Mar-2013,2564138-02615,"1,003.24",RIAS RI ACCOMMODATION & SUPPORT LTD.
Children and Young Peoples Services,CYPS - Local Authority,Supplies and Services,384504,Miscellaneous Expenses,04-Mar-2013,2564138-02616,"1,003.24",RIAS RI ACCOMMODATION & SUPPORT LTD.
Children and Young Peoples Services,CYPS - Local Authority,Supplies and Services,384504,Miscellaneous Expenses,04-Mar-2013,2564138-02631,"1,003.24",RIAS RI ACCOMMODATION & SUPPORT LTD.
Children and Young Peoples Services,CYPS - Local Authority,Supplies and Services,384504,Miscellaneous Expenses,04-Mar-2013,2564138-02639,"1,003.24",RIAS RI ACCOMMODATION & SUPPORT LTD.
Children and Young Peoples Services,CYPS - Local Authority,Supplies and Services,384906,Miscellaneous Expenses,04-Mar-2013,2563994-FFS,750.00,HERMITAGE ACADEMY.
Children and Young Peoples Services,CYPS - Local Authority,Employees,040149,"Recruitment, Instruction and Training",04-Mar-2013,2564218-731,600.00,TRAINING LADDER LTD.
Children and Young Peoples Services,CYPS - Local Authority,Third Party Payments,425041,Rendered by Voluntary Organisations,04-Mar-2013,2564079-M0005808731,"8,758.66",NORTH TYNESIDE COUNCIL.
Children and Young Peoples Services,CYPS - Local Authority,Supplies and Services,338027,Services,04-Mar-2013,2564233-VJF0322,612.40,VANESSA FOSTER.
Children and Young Peoples Services,Dedicated Schools Grant,Third Party Payments,410037,Rendered by Other Local Authorities,04-Mar-2013,2564051-6249001,"27,020.68",MIDDLESBROUGH BOROUGH COUNCIL.
Children and Young Peoples Services,Dedicated Schools Grant,Supplies and Services,338094,Services,04-Mar-2013,2564031-2006813,800.00,LEISUREWORKS.
Corporate Resources,ICT Services incl. Design and Print,Supplies and Services,342215,Computers and Communications,04-Mar-2013,2564020-66671,958.00,KNOWLEDGE IT.
Corporate Resources,ICT Services incl. Design and Print,Debtors,930167,Debtor-Telephone Holding Account,04-Mar-2013,2563875-VP90592270M09301,"16,285.47",BRITISH TELECOMMUNICATIONS PLC.
Corporate Resources,ICT Services incl. Design and Print,Supplies and Services,340001,Postages,04-Mar-2013,2564146-9041854582,"11,170.41",ROYAL MAIL GROUP PLC.
Corporate Resources,ICT Services incl. Design and Print,Supplies and Services,340001,Postages,04-Mar-2013,2564146-9041935357,"16,483.21",ROYAL MAIL GROUP PLC.
Corporate Resources,ICT Services incl. Design and Print,Stock,926900,Stock in hand-Inventory system,04-Mar-2013,2563932-7402002761,"2,195.00",DELL COMPUTER CORPORATION LTD.
Corporate Resources,ICT Services incl. Design and Print,Stock,926900,Stock in hand-Inventory system,04-Mar-2013,2563932-7402003363,"2,195.00",DELL COMPUTER CORPORATION LTD.
Neighbourhood Services,Direct Services,Transport,230005,Contract Hire,04-Mar-2013,2564115-22140,910.00,PREMIER TRUCK HIRE LTD.
Neighbourhood Services,Direct Services,Transport,230005,Contract Hire,04-Mar-2013,2564187-49149,851.00,STENNETTS LTD.
Neighbourhood Services,Direct Services,Third Party Payments,460003,Contract Payments,04-Mar-2013,2564024-13012,"23,793.14",LANGUARD LTD.
Neighbourhood Services,Direct Services,Supplies and Services,304221,Equipment and Materials,04-Mar-2013,2564111-164830,657.77,PLUMBING TRADE SUPPLIES LTD.
Neighbourhood Services,Direct Services,Supplies and Services,304221,Equipment and Materials,04-Mar-2013,2564112-164418,"3,922.80",PLUMBING TRADE SUPPLIES LTD.
Neighbourhood Services,Direct Services,Supplies and Services,304221,Equipment and Materials,04-Mar-2013,2564211-94610,"3,954.25",TOMMY WARDLE.
Neighbourhood Services,Direct Services,Supplies and Services,304221,Equipment and Materials,04-Mar-2013,2564211-94611,631.70,TOMMY WARDLE.
Neighbourhood Services,Direct Services,Third Party Payments,430100,Rendered by Private Contractors,04-Mar-2013,2563886-13294,"1,335.07",CATHEDRAL LOCK & SAFE SERVICES LTD.
Neighbourhood Services,Direct Services,Third Party Payments,430100,Rendered by Private Contractors,04-Mar-2013,2563985-0286/13,"1,485.00",H BRADLEY.
Neighbourhood Services,Direct Services,Third Party Payments,430100,Rendered by Private Contractors,04-Mar-2013,2564100-0669,900.00,PAUL TIERNEY.
Neighbourhood Services,Direct Services,Third Party Payments,430100,Rendered by Private Contractors,04-Mar-2013,2564139-2743,"1,000.00",RINGLAND SCAFFOLDING.
Neighbourhood Services,Direct Services,Supplies and Services,338027,Services,04-Mar-2013,2563990-0000064538,"9,000.00",HARVARD ENGINEERING PLC.
Neighbourhood Services,Direct Services,Stock,926900,Stock in hand-Inventory system,04-Mar-2013,2563967-591984,719.29,FRED WILLIAMSON & SONS LTD.
Neighbourhood Services,Direct Services,Stock,926900,Stock in hand-Inventory system,04-Mar-2013,2563981-06/448624,"1,013.80",GREENHAM TRADING LTD.
Neighbourhood Services,Direct Services,Stock,926900,Stock in hand-Inventory system,04-Mar-2013,2564096-XL076811,670.37,PARK ELECTRICAL DISTRIBUTORS LTD.
Neighbourhood Services,Direct Services,Stock,926900,Stock in hand-Inventory system,04-Mar-2013,2564196-9028771421,680.20,TARMAC LTD.
Neighbourhood Services,Direct Services,Stock,926900,Stock in hand-Inventory system,04-Mar-2013,2564244-79719833,"4,825.87",WOLSELEY UK LTD.
Neighbourhood Services,Direct Services,Stock,926900,Stock in hand-Inventory system,04-Mar-2013,2564244-79732255,820.78,WOLSELEY UK LTD.
Neighbourhood Services,"Heritage, Culture & Libraries",Supplies and Services,304040,Equipment and Materials,04-Mar-2013,2564209-SLS094571,533.10,TICKETSCOM LTD.
Neighbourhood Services,Sport & Leisure,Third Party Payments,430100,Rendered by Private Contractors,04-Mar-2013,2564029-LCPMF9769,"18,260.30",LEISURE CONNECTION LTD.
Neighbourhood Services,Sport & Leisure,Third Party Payments,430100,Rendered by Private Contractors,04-Mar-2013,2564030-LCL1122,"40,479.20",LEISURE IN THE COMMUNITY LTD.
Neighbourhood Services,Sport & Leisure,Third Party Payments,430100,Rendered by Private Contractors,04-Mar-2013,2564030-LTC0001,"37,616.58",LEISURE IN THE COMMUNITY LTD.
Neighbourhood Services,Technical Services,Supplies and Services,304221,Equipment and Materials,04-Mar-2013,2564022-3A01666970,641.20,LAFARGE AGGREGATES LTD.
Neighbourhood Services,Technical Services,Supplies and Services,304221,Equipment and Materials,04-Mar-2013,2564116-049362,"3,378.20",PREMIER WASTE MANAGEMENT LTD.
Neighbourhood Services,Technical Services,Supplies and Services,304221,Equipment and Materials,04-Mar-2013,2564116-049714,608.02,PREMIER WASTE MANAGEMENT LTD.
Neighbourhood Services,Technical Services,Supplies and Services,304221,Equipment and Materials,04-Mar-2013,2564116-049717,"3,567.58",PREMIER WASTE MANAGEMENT LTD.
Neighbourhood Services,Technical Services,Supplies and Services,304221,Equipment and Materials,04-Mar-2013,2564116-049797,"1,658.28",PREMIER WASTE MANAGEMENT LTD.
Neighbourhood Services,Technical Services,Supplies and Services,304357,Equipment and Materials,04-Mar-2013,2563972-DCC240213,"10,236.32",GAP GROUP LTD.
RED HRA,HRA Capital,Construction Work,908105,Construction work,04-Mar-2013,2563966-50344-5,"11,692.72",FRANK HASLAM MILAN & CO LTD.
RED HRA,HRA Capital,Construction Work,908105,Construction work,04-Mar-2013,2563966-50349/2,"242,065.30",FRANK HASLAM MILAN & CO LTD.
RED HRA,HRA Capital,Other Expenses,914001,Other capital expenses,04-Mar-2013,2563931-107826,"13,385.61",DEERNESS FENCING LTD.
Regeneration & Economic Development,Economic Development and Housing,Construction Work,908105,Construction work,04-Mar-2013,2564023-INV00233648,"1,300.00",LANES GROUP PLC.
Regeneration & Economic Development,Economic Development and Housing,Construction Work,908105,Construction work,04-Mar-2013,2564023-INV00233673,"2,325.00",LANES GROUP PLC.
Regeneration & Economic Development,Economic Development and Housing,Other Expenses,914001,Other capital expenses,04-Mar-2013,2564058-SFG,"7,592.91",REDACTED - PAYMENT TO INDIVIDUAL
Regeneration & Economic Development,Strategy Programmes and Performance,Supplies and Services,384899,Miscellaneous Expenses,04-Mar-2013,2563936-NPD120/15,"1,281.48",DURHAM RURAL COMMUNITY COUNCIL LTD.
Adults Wellbeing and Health,Head of Adults,Transport,230005,Contract Hire,05-Mar-2013,2564902-138,660.00,CONNORS MINI BUSES.
Adults Wellbeing and Health,Head of Adults,Transport,230005,Contract Hire,05-Mar-2013,2564902-139,"1,080.00",CONNORS MINI BUSES.
Adults Wellbeing and Health,Head of Adults,Transport,230005,Contract Hire,05-Mar-2013,2564902-140,800.00,CONNORS MINI BUSES.
Adults Wellbeing and Health,Head of Adults,Transport,230005,Contract Hire,05-Mar-2013,2564941-7957,576.00,GREENCROFT MINI COACHES.
Adults Wellbeing and Health,Head of Adults,Transport,230005,Contract Hire,05-Mar-2013,2564960-CH6FEB2013,616.00,JOVIAL PRIVATE HIRE.
Adults Wellbeing and Health,Head of Adults,Transport,230005,Contract Hire,05-Mar-2013,2565008-0229,870.00,PETER`S PRIVATE HIRE/PETER BEST.
Adults Wellbeing and Health,Head of Adults,Third Party Payments,478101,Purchase of Care,05-Mar-2013,2565013-SLSINV/00001590,"3,521.84",REAL LIFE OPTIONS.
Adults Wellbeing and Health,Planning and Performance,Supplies and Services,352001,Conference Expenses,05-Mar-2013,2564891-CTD-254,500.00,CENTAUR TRAINING LTD.
Adults Wellbeing and Health,Social Inclusion,Supplies and Services,304259,Equipment and Materials,05-Mar-2013,2564951-802687951,966.00,INSTITUTE OF LEADERSHIP & MANAGEMENT ILM.
Children and Young Peoples Services,CYPS - Local Authority,Supplies and Services,352001,Conference Expenses,05-Mar-2013,2564930-854504,670.00,FAMILY PLANNING ASSOCIATION.
Children and Young Peoples Services,CYPS - Local Authority,Supplies and Services,352001,Conference Expenses,05-Mar-2013,2565027-727,"1,800.00",SCHOOL & FAMILY NURTURING PROGRAMME.
Children and Young Peoples Services,CYPS - Local Authority,Transport,230007,Contract Hire,05-Mar-2013,2564906-4021/02/13,"1,713.30",COUNTY COACHES.
Children and Young Peoples Services,CYPS - Local Authority,Transport,230007,Contract Hire,05-Mar-2013,2564906-4026/02/03,"1,401.75",COUNTY COACHES.
Children and Young Peoples Services,CYPS - Local Authority,Transport,230007,Contract Hire,05-Mar-2013,2564921-16842,"2,024.85",DURHAM CITY COACHES.
Children and Young Peoples Services,CYPS - Local Authority,Transport,230007,Contract Hire,05-Mar-2013,2564921-16843,"6,118.20",DURHAM CITY COACHES.
Children and Young Peoples Services,CYPS - Local Authority,Transport,230007,Contract Hire,05-Mar-2013,2564921-16844,"2,024.85",DURHAM CITY COACHES.
Children and Young Peoples Services,CYPS - Local Authority,Transport,230007,Contract Hire,05-Mar-2013,2564921-16845,"2,324.85",DURHAM CITY COACHES.
Children and Young Peoples Services,CYPS - Local Authority,Transport,230007,Contract Hire,05-Mar-2013,2564966-13,"1,050.00",K & B TAXIS.
Children and Young Peoples Services,CYPS - Local Authority,Transport,230007,Contract Hire,05-Mar-2013,2564978-KDC010213,"1,921.05",MJ TIMNEY.
Children and Young Peoples Services,CYPS - Local Authority,Transport,230007,Contract Hire,05-Mar-2013,2564984-37,900.00,MR CHRISTOPHER BRECHIN T/A CB TAXI`S.
Children and Young Peoples Services,CYPS - Local Authority,Transport,230007,Contract Hire,05-Mar-2013,2565008-0228,"1,890.00",PETER`S PRIVATE HIRE/PETER BEST.
Children and Young Peoples Services,CYPS - Local Authority,Transport,230007,Contract Hire,05-Mar-2013,2565008-0230,600.00,PETER`S PRIVATE HIRE/PETER BEST.
Children and Young Peoples Services,CYPS - Local Authority,Transport,230007,Contract Hire,05-Mar-2013,2565032-71020,"1,200.00",SHOTTON PRIVATE HIRE.
Children and Young Peoples Services,CYPS - Local Authority,Transport,230007,Contract Hire,05-Mar-2013,2565034-8,600.00,SIMONS TAXIS.
Children and Young Peoples Services,CYPS - Local Authority,Transport,230007,Contract Hire,05-Mar-2013,2565043-DCC077/E004,"1,989.90",STEPHEN COXON.
Children and Young Peoples Services,CYPS - Local Authority,Transport,230007,Contract Hire,05-Mar-2013,2565044-00006,975.00,STEVES TAXIS.
Children and Young Peoples Services,CYPS - Local Authority,Transport,230007,Contract Hire,05-Mar-2013,2565047-0045/3080,"1,185.00",TA TRAVEL.
Children and Young Peoples Services,CYPS - Local Authority,Transport,230007,Contract Hire,05-Mar-2013,2565047-0045/4079,"1,035.00",TA TRAVEL.
Children and Young Peoples Services,CYPS - Local Authority,Transport,230007,Contract Hire,05-Mar-2013,2565047-045/W078,"3,360.00",TA TRAVEL.
Children and Young Peoples Services,CYPS - Local Authority,Transport,230007,Contract Hire,05-Mar-2013,2565049-DCC/2013/05,"1,170.00",TAYLOR`S TAXIS.
Children and Young Peoples Services,CYPS - Local Authority,Transport,230007,Contract Hire,05-Mar-2013,2565049-DCC/2013/06,"1,605.00",TAYLOR`S TAXIS.
Children and Young Peoples Services,CYPS - Local Authority,Transport,230007,Contract Hire,05-Mar-2013,2565049-DCC/2013/07,"1,230.00",TAYLOR`S TAXIS.
Children and Young Peoples Services,CYPS - Local Authority,Transport,230007,Contract Hire,05-Mar-2013,2565049-DCC/2013/08,915.00,TAYLOR`S TAXIS.
Children and Young Peoples Services,CYPS - Local Authority,Transport,230007,Contract Hire,05-Mar-2013,2565051-5021-FEB2013,"1,090.20",TED WILFORD COACHES.
Children and Young Peoples Services,CYPS - Local Authority,Transport,230007,Contract Hire,05-Mar-2013,2565051-CON5030FEB13,"1,446.45",TED WILFORD COACHES.
Children and Young Peoples Services,CYPS - Local Authority,Transport,230007,Contract Hire,05-Mar-2013,2565058-3,655.00,TRIDENT TAXIS.
Children and Young Peoples Services,CYPS - Local Authority,Creditors,952132,D.A.S.H.,05-Mar-2013,2564968-1000116,"1,638.90",KING JAMES I ACADEMY.
Children and Young Peoples Services,CYPS - Local Authority,Supplies and Services,364999,Grants to Voluntary Organisations,05-Mar-2013,2564858-BG-FEB13,518.00,2ND BISHOP AUCKLAND SCOUT GROUP.
Children and Young Peoples Services,CYPS - Local Authority,Supplies and Services,364999,Grants to Voluntary Organisations,05-Mar-2013,2564917-BG-25/2/13,"10,000.00",DUKE OF EDINBURGHS AWARD.
Children and Young Peoples Services,CYPS - Local Authority,Supplies and Services,364999,Grants to Voluntary Organisations,05-Mar-2013,2564955-GA,"3,346.00",JACK DRUM ARTS LTD.
Children and Young Peoples Services,CYPS - Local Authority,Supplies and Services,364999,Grants to Voluntary Organisations,05-Mar-2013,2564982-GA,"3,500.00",MOORSIDE COMMUNITY ASSOCIATION.
Children and Young Peoples Services,CYPS - Local Authority,Supplies and Services,364999,Grants to Voluntary Organisations,05-Mar-2013,2565028-YWDG-FISHB,"1,000.00",SEDGEFIELD YOUTH DEVELOPMENT.
Children and Young Peoples Services,CYPS - Local Authority,Supplies and Services,364999,Grants to Voluntary Organisations,05-Mar-2013,2565038-YWDG-YP,550.00,SOUTH HETTON & DISTRICT COMMUNITY ASSOCIATION.
Children and Young Peoples Services,CYPS - Local Authority,Supplies and Services,364999,Grants to Voluntary Organisations,05-Mar-2013,2565059-YWDG,"1,210.00",TRIMDON COMMUNITY COLLEGE YOUTH GROUP FORUM.
Children and Young Peoples Services,CYPS - Local Authority,Supplies and Services,384199,Miscellaneous Expenses,05-Mar-2013,2565037-DEC12,"4,899.50",SOUL PURPOSE LEARNING & LIFE MANAGEMENT LTD.
Children and Young Peoples Services,CYPS - Local Authority,Premises,125009,Rents,05-Mar-2013,2564875-L/12/30,511.50,BISHOP AUCKLAND METHODIST CHURCH.
Children and Young Peoples Services,CYPS - Local Authority,Transfer Payments,510026,School Children,05-Mar-2013,2564904-EDS/SUS/51,"2,000.00",COTHERSTONE PRE SCHOOL PLAYGROUP.
Children and Young Peoples Services,CYPS - Local Authority,Supplies and Services,338027,Services,05-Mar-2013,2564950-DURH/0330,"35,040.04",INSPIREDSPACES DURHAM LTD.
Children and Young Peoples Services,CYPS - Local Authority,Supplies and Services,338040,Services,05-Mar-2013,2564948-CPF,"5,200.00",HMCTS.
Children and Young Peoples Services,Dedicated Schools Grant,Transport,230007,Contract Hire,05-Mar-2013,2564910-LO10/FEB/13,"1,470.00",CRAIG`S CABS.
Children and Young Peoples Services,Dedicated Schools Grant,Transport,230007,Contract Hire,05-Mar-2013,2565015-2087,616.00,RICHIES TAXIS.
Children and Young Peoples Services,Dedicated Schools Grant,Supplies and Services,384540,Miscellaneous Expenses,05-Mar-2013,2564994-3514164,586.53,NEWSQUEST (YORKSHIRE & NORTH EAST) LTD.
Children and Young Peoples Services,Dedicated Schools Grant,Third Party Payments,410037,Rendered by Other Local Authorities,05-Mar-2013,2564999-073136,"21,676.69",NORTHUMBERLAND COUNTY COUNCIL.
Children and Young Peoples Services,Dedicated Schools Grant,Third Party Payments,425005,Rendered by Voluntary Organisations,05-Mar-2013,2564871-203301798,"9,908.49",BARNARDOS.
Corporate Resources,ICT Services incl. Design and Print,Supplies and Services,342223,Computers and Communications,05-Mar-2013,2564915-7402004055,"8,723.11",DELL COMPUTER CORPORATION LTD.
Corporate Resources,ICT Services incl. Design and Print,Supplies and Services,342033,Computers and Communications,05-Mar-2013,2564915-7402004413,568.99,DELL COMPUTER CORPORATION LTD.
Corporate Resources,ICT Services incl. Design and Print,Debtors,930167,Debtor-Telephone Holding Account,05-Mar-2013,2564887-11777242,841.50,CABLE & WIRELESS UK.
Corporate Resources,ICT Services incl. Design and Print,Employees,040149,"Recruitment, Instruction and Training",05-Mar-2013,2565004-INV-0024,"10,730.00",ON BRAND PARTNERS UK LTD.
Corporate Resources,ICT Services incl. Design and Print,Employees,040149,"Recruitment, Instruction and Training",05-Mar-2013,2565004-INV-0034,"10,730.00",ON BRAND PARTNERS UK LTD.
Corporate Resources,Legal & Democratic Services,Supplies and Services,338025,Services,05-Mar-2013,2564897-S44961-00160,"1,050.00",CO-OPERATIVE FUNERAL CARE.
Corporate Resources,Legal & Democratic Services,Supplies and Services,338025,Services,05-Mar-2013,2564898-VAR-24/11/12-6/1/13,"1,480.00",CO-OPERATIVE FUNERAL CARE.
Corporate Resources,Legal & Democratic Services,Supplies and Services,338057,Services,05-Mar-2013,2564926-1142,"1,438.50",ELYSIAN PATHOLOGY SERVICES LTD.
Neighbourhood Services,Direct Services,Premises,145009,Cleaning and Domestic Supplies,05-Mar-2013,2564894-CC85797,682.75,CITY CLEAN.
Neighbourhood Services,Direct Services,Transport,230005,Contract Hire,05-Mar-2013,2564874-284460,900.00,BICKFORD TRUCK HIRE LTD.
Neighbourhood Services,Direct Services,Debtors,930046,Debtor-leasing,05-Mar-2013,2565023-10012715,"12,658.53",S JENNINGS LTD.
Neighbourhood Services,Direct Services,Premises,120021,Energy Costs,05-Mar-2013,2565070-2010,557.83,WELLSPRINGS PROPERTIES LTD.
Neighbourhood Services,Direct Services,Supplies and Services,304221,Equipment and Materials,05-Mar-2013,2565009-4120146288,753.38,PLUMBING TRADE SUPPLIES LTD.
Neighbourhood Services,Direct Services,Supplies and Services,384199,Miscellaneous Expenses,05-Mar-2013,2564970-13007,706.50,LANGUARD LTD.
Neighbourhood Services,Direct Services,Supplies and Services,324117,Provisions,05-Mar-2013,2564881-31279316,582.52,BRAKE BROS FOODSERVICE LTD.
Neighbourhood Services,Direct Services,Supplies and Services,324117,Provisions,05-Mar-2013,2564881-31306766,886.04,BRAKE BROS FOODSERVICE LTD.
Neighbourhood Services,Direct Services,Supplies and Services,324117,Provisions,05-Mar-2013,2564882-6098560,720.46,BRAMBLES FOODS LTD.
Neighbourhood Services,Direct Services,Supplies and Services,324117,Provisions,05-Mar-2013,2564962-M63995,"2,444.23",JR HOLLAND FOOD SERVICES LTD.
Neighbourhood Services,Direct Services,Supplies and Services,324117,Provisions,05-Mar-2013,2564962-M63996,608.96,JR HOLLAND FOOD SERVICES LTD.
Neighbourhood Services,Direct Services,Third Party Payments,430101,Rendered by Private Contractors,05-Mar-2013,2564947-INV09041799,522.60,HI Q TYRESERVICES.
Neighbourhood Services,Direct Services,Stock,926900,Stock in hand-Inventory system,05-Mar-2013,2564892-0328578,"2,800.00",CHAMBERLAIN DOORS LTD.
Neighbourhood Services,Direct Services,Stock,926900,Stock in hand-Inventory system,05-Mar-2013,2564911-9950/01525996,"1,157.09",CTD.
Neighbourhood Services,Direct Services,Stock,926900,Stock in hand-Inventory system,05-Mar-2013,2564937-SINV-055809,"1,929.98",GELPACK EXCELSIOR LTD.
Neighbourhood Services,Direct Services,Stock,926900,Stock in hand-Inventory system,05-Mar-2013,2564942-06/451167,"1,326.16",GREENHAM TRADING LTD.
Neighbourhood Services,Direct Services,Supplies and Services,344033,Telephones,05-Mar-2013,2564883-NE18185966Q06261,646.18,BRITISH TELECOMMUNICATIONS PLC.
Neighbourhood Services,"Environment,Health & Consumer Protection",Supplies and Services,338027,Services,05-Mar-2013,2564861-W00733,620.00,ACOUSTIC 1.
Neighbourhood Services,"Heritage, Culture & Libraries",Supplies and Services,336005,Advertising,05-Mar-2013,2564990-3200773,965.00,NCJ MEDIA LTD.
Neighbourhood Services,"Heritage, Culture & Libraries",Supplies and Services,304040,Equipment and Materials,05-Mar-2013,2564885-I051173,"1,166.25",BUILDING AUTOMATION SOLUTIONS.
Neighbourhood Services,"Heritage, Culture & Libraries",Supplies and Services,304259,Equipment and Materials,05-Mar-2013,2564996-000810,"2,387.90",NORTHERN LIGHT STAGE & TECHNICAL SERVICES LTD.
Neighbourhood Services,"Heritage, Culture & Libraries",Supplies and Services,324001,Provisions,05-Mar-2013,2564889-EW53585181,"1,185.58",CARLSBERG UK LTD.
Neighbourhood Services,"Heritage, Culture & Libraries",Supplies and Services,338047,Services,05-Mar-2013,2564867-SIN005554,"5,000.00",AVALON PROMOTIONS LTD.
Neighbourhood Services,"Heritage, Culture & Libraries",Supplies and Services,338047,Services,05-Mar-2013,2564867-SIN005565,"1,000.00",AVALON PROMOTIONS LTD.
Neighbourhood Services,"Heritage, Culture & Libraries",Supplies and Services,338047,Services,05-Mar-2013,2564972-1373,800.00,M6 THEATRE CO LTD.
Neighbourhood Services,"Heritage, Culture & Libraries",Supplies and Services,338047,Services,05-Mar-2013,2565063-IN13007674,"1,990.25",UNIVERSAL PICTURES INTERNATIONAL UK & EIRE LTD.
Neighbourhood Services,Sport & Leisure,Premises,145023,Cleaning and Domestic Supplies,05-Mar-2013,2564942-08/362200,767.56,GREENHAM TRADING LTD.
Neighbourhood Services,Sport & Leisure,Supplies and Services,384540,Miscellaneous Expenses,05-Mar-2013,2564994-3445912,500.00,NEWSQUEST (YORKSHIRE & NORTH EAST) LTD.
Neighbourhood Services,Sport & Leisure,Supplies and Services,384540,Miscellaneous Expenses,05-Mar-2013,2564994-3445918,500.00,NEWSQUEST (YORKSHIRE & NORTH EAST) LTD.
Neighbourhood Services,Sport & Leisure,Supplies and Services,384540,Miscellaneous Expenses,05-Mar-2013,2564994-3445947,500.00,NEWSQUEST (YORKSHIRE & NORTH EAST) LTD.
Neighbourhood Services,Sport & Leisure,Supplies and Services,384540,Miscellaneous Expenses,05-Mar-2013,2564994-3446046,675.00,NEWSQUEST (YORKSHIRE & NORTH EAST) LTD.
Neighbourhood Services,Technical Services,Construction Work,908112,Capital - Drainage,05-Mar-2013,2564994-3477041,897.04,NEWSQUEST (YORKSHIRE & NORTH EAST) LTD.
Neighbourhood Services,Technical Services,Third Party Payments,460350,Contract Payments,05-Mar-2013,2564863-JAN2013,"2,245.00",ALLAN STEEL T/A JT & I STEEL & SON.
Neighbourhood Services,Technical Services,Third Party Payments,460351,Contract Payments,05-Mar-2013,2564995-029612,587.30,NORTHERN DISPOSAL SERVICES LTD.
Neighbourhood Services,Technical Services,Premises,120009,Energy Costs,05-Mar-2013,2565001-NN07DWCL,"327,527.33",NPOWER.
Neighbourhood Services,Technical Services,Supplies and Services,304221,Equipment and Materials,05-Mar-2013,2564860-LLI271104,"2,845.64",A THOMPSON & SONS LTD.
Neighbourhood Services,Technical Services,Supplies and Services,304221,Equipment and Materials,05-Mar-2013,2564862-17622988,"1,841.97",AGGREGATE INDUSTRIES UK LTD.
Neighbourhood Services,Technical Services,Supplies and Services,304221,Equipment and Materials,05-Mar-2013,2564862-17655908,"1,064.78",AGGREGATE INDUSTRIES UK LTD.
Neighbourhood Services,Technical Services,Supplies and Services,304221,Equipment and Materials,05-Mar-2013,2564862-17655914,"1,207.20",AGGREGATE INDUSTRIES UK LTD.
Neighbourhood Services,Technical Services,Supplies and Services,304221,Equipment and Materials,05-Mar-2013,2564862-17667226,556.24,AGGREGATE INDUSTRIES UK LTD.
Neighbourhood Services,Technical Services,Supplies and Services,304221,Equipment and Materials,05-Mar-2013,2564862-17672923,566.84,AGGREGATE INDUSTRIES UK LTD.
Neighbourhood Services,Technical Services,Supplies and Services,304221,Equipment and Materials,05-Mar-2013,2564862-17672927,"8,040.00",AGGREGATE INDUSTRIES UK LTD.
Neighbourhood Services,Technical Services,Supplies and Services,304221,Equipment and Materials,05-Mar-2013,2564862-17679665,865.76,AGGREGATE INDUSTRIES UK LTD.
Neighbourhood Services,Technical Services,Supplies and Services,304221,Equipment and Materials,05-Mar-2013,2564862-17679668,"3,512.40",AGGREGATE INDUSTRIES UK LTD.
Neighbourhood Services,Technical Services,Supplies and Services,304358,Equipment and Materials,05-Mar-2013,2565030-2013001,"1,319.25",SHIREHAVEN LTD.
Neighbourhood Services,Technical Services,Supplies and Services,304358,Equipment and Materials,05-Mar-2013,2565030-2013002,540.00,SHIREHAVEN LTD.
Neighbourhood Services,Technical Services,Third Party Payments,430100,Rendered by Private Contractors,05-Mar-2013,2564908-15326,643.07,COUPE LINE LTD.
Neighbourhood Services,Technical Services,Third Party Payments,430100,Rendered by Private Contractors,05-Mar-2013,2564908-15334,"1,110.56",COUPE LINE LTD.
Neighbourhood Services,Technical Services,Third Party Payments,430100,Rendered by Private Contractors,05-Mar-2013,2564940-19894,"1,690.00",GRAB & DELIVER LTD.
RED HRA,Housing Revenue Account,Supplies and Services,338027,Services,05-Mar-2013,2565060-2062629,"1,720.00",TROWERS & HAMLINS.
RED HRA,HRA Capital,Construction Work,908105,Construction work,05-Mar-2013,2564956-200286,"1,050.00",JAMIES ROOFING & PROPERTY SERVICES LTD.
RED HRA,HRA Capital,Construction Work,908105,Construction work,05-Mar-2013,2564956-200287,"1,050.00",JAMIES ROOFING & PROPERTY SERVICES LTD.
RED HRA,HRA Capital,Construction Work,908105,Construction work,05-Mar-2013,2564967-50306/11,"67,241.07",KIER SERVICES LTD.
RED HRA,HRA Capital,Construction Work,908105,Construction work,05-Mar-2013,2564977-CON60430,525.00,MIS ENVIRONMENTAL LTD.
RED HRA,HRA Capital,Construction Work,908105,Construction work,05-Mar-2013,2565067-50330/5,"18,689.55",WATES CONSTRUCTION LTD.
RED HRA,HRA Capital,Construction Work,908105,Construction work,05-Mar-2013,2565067-50342/5,"67,670.33",WATES CONSTRUCTION LTD.
Regeneration & Economic Development,Economic Development and Housing,Other Expenses,914001,Other capital expenses,05-Mar-2013,2564865-PV/ART/03/2013,"3,405.99",ARTWORKS.
Regeneration & Economic Development,Economic Development and Housing,Other Expenses,914001,Other capital expenses,05-Mar-2013,2564924-PV/DWT/02/2013,"2,949.75",DURHAM WILDLIFE TRUST LTD.
Regeneration & Economic Development,Economic Development and Housing,Supplies and Services,332029,"Printing, Stationery and Gen Off Exps",05-Mar-2013,2564994-3444730,781.52,NEWSQUEST (YORKSHIRE & NORTH EAST) LTD.
Regeneration & Economic Development,Economic Development and Housing,Supplies and Services,332029,"Printing, Stationery and Gen Off Exps",05-Mar-2013,2564994-3444732,824.95,NEWSQUEST (YORKSHIRE & NORTH EAST) LTD.
Regeneration & Economic Development,Economic Development and Housing,Supplies and Services,332029,"Printing, Stationery and Gen Off Exps",05-Mar-2013,2564994-3488698,781.52,NEWSQUEST (YORKSHIRE & NORTH EAST) LTD.
Regeneration & Economic Development,Economic Development and Housing,Supplies and Services,332029,"Printing, Stationery and Gen Off Exps",05-Mar-2013,2564994-3488790,824.94,NEWSQUEST (YORKSHIRE & NORTH EAST) LTD.
Regeneration & Economic Development,"Spatial Policy, Planning, Assets & Environment",Supplies and Services,336005,Advertising,05-Mar-2013,2564994-3430278,"1,302.54",NEWSQUEST (YORKSHIRE & NORTH EAST) LTD.
Regeneration & Economic Development,"Spatial Policy, Planning, Assets & Environment",Supplies and Services,336005,Advertising,05-Mar-2013,2564994-3453401,"1,172.29",NEWSQUEST (YORKSHIRE & NORTH EAST) LTD.
Regeneration & Economic Development,"Spatial Policy, Planning, Assets & Environment",Supplies and Services,336005,Advertising,05-Mar-2013,2564994-3477057,"1,172.29",NEWSQUEST (YORKSHIRE & NORTH EAST) LTD.
Regeneration & Economic Development,"Spatial Policy, Planning, Assets & Environment",Supplies and Services,384199,Miscellaneous Expenses,05-Mar-2013,2564936-BMARCH13,514.18,REDACTED - PAYMENT TO INDIVIDUAL
Regeneration & Economic Development,"Spatial Policy, Planning, Assets & Environment",Supplies and Services,338029,Services,05-Mar-2013,2564905-NPAONB01-2,"1,700.00",COUNTRYSCAPE.
Regeneration & Economic Development,Transport,Other Expenses,914001,Other capital expenses,05-Mar-2013,2564994-3475997,666.19,NEWSQUEST (YORKSHIRE & NORTH EAST) LTD.
Regeneration & Economic Development,Transport,Third Party Payments,430108,Rendered by Private Contractors,05-Mar-2013,2565011-122734,796.00,PREMIER TRAFFIC MANAGEMENT LTD.
Regeneration & Economic Development,Transport,Third Party Payments,430108,Rendered by Private Contractors,05-Mar-2013,2565011-123109,580.00,PREMIER TRAFFIC MANAGEMENT LTD.
Regeneration & Economic Development,Transport,Third Party Payments,430106,Rendered by Private Contractors,05-Mar-2013,2564919-0415,"8,078.60",DUNN MOTOR TRACTION LTD T/A YOUR BUS.
Regeneration & Economic Development,Transport,Third Party Payments,430106,Rendered by Private Contractors,05-Mar-2013,2565069-0627,"23,372.65",WEARDALE MOTOR SERVICES LTD.
Adults Wellbeing and Health,Central Charges,Supplies and Services,342053,Computers and Communications,06-Mar-2013,2565111-335096,"7,221.04",BYTES SOFTWARE SERVICES.
Adults Wellbeing and Health,Commissioning inc Supporting People,Third Party Payments,479101,Purchase of Care,06-Mar-2013,2565130-3139692,"12,250.00",CO DURHAM & DARLINGTON NHS FOUNDATION TRUST.
Adults Wellbeing and Health,Head of Adults,Supplies and Services,328041,"Clothing, Uniforms and Laundry",06-Mar-2013,2565190-06/451708,779.30,GREENHAM TRADING LTD.
Adults Wellbeing and Health,Head of Adults,Transport,230005,Contract Hire,06-Mar-2013,2565211-IR1302008,960.00,I & R EXECUTIVE TRAVEL.
Adults Wellbeing and Health,Head of Adults,Summary Income Level,720044,Fees and Charges,06-Mar-2013,217811-RC,506.01,REDACTED - PAYMENT TO INDIVIDUAL
Adults Wellbeing and Health,Head of Adults,Supplies and Services,384199,Miscellaneous Expenses,06-Mar-2013,2565147-5790,540.00,D & H WEBSTER.
Adults Wellbeing and Health,Head of Adults,Third Party Payments,478111,Purchase of Care,06-Mar-2013,2565273-1803777,"1,501.20",MENCAP.
Adults Wellbeing and Health,Head of Adults,Supplies and Services,338365,Services,06-Mar-2013,2565364-187404,648.50,SARABEC LTD.
Adults Wellbeing and Health,Planning and Performance,Supplies and Services,338089,Services,06-Mar-2013,2565342-540,"3,450.00",RELEASE POTENTIAL.
Adults Wellbeing and Health,Social Inclusion,Supplies and Services,352001,Conference Expenses,06-Mar-2013,2565130-3139688,"4,350.00",CO DURHAM & DARLINGTON NHS FOUNDATION TRUST.
Adults Wellbeing and Health,Social Inclusion,Supplies and Services,352001,Conference Expenses,06-Mar-2013,2565130-3139690,"2,000.00",CO DURHAM & DARLINGTON NHS FOUNDATION TRUST.
Adults Wellbeing and Health,Social Inclusion,Supplies and Services,384199,Miscellaneous Expenses,06-Mar-2013,217743-DTV657,"14,071.75",DURHAM TEES VALLEY PROBATION TRUST.
Adults Wellbeing and Health,Social Inclusion,Supplies and Services,384199,Miscellaneous Expenses,06-Mar-2013,217743-DTV729,"14,071.75",DURHAM TEES VALLEY PROBATION TRUST.
Adults Wellbeing and Health,Social Inclusion,Supplies and Services,384199,Miscellaneous Expenses,06-Mar-2013,217743-DTV784,"21,856.50",DURHAM TEES VALLEY PROBATION TRUST.
Adults Wellbeing and Health,Social Inclusion,Supplies and Services,384199,Miscellaneous Expenses,06-Mar-2013,2565140-LMAPC,500.00,CONSETT AMATEUR BOXING CLUB.
Adults Wellbeing and Health,Social Inclusion,Third Party Payments,440999,Other Third Party Payments,06-Mar-2013,2565242-K1246,"5,700.00",KLARRATI CIC.
Adults Wellbeing and Health,Social Inclusion,Third Party Payments,479101,Purchase of Care,06-Mar-2013,2565399-430024160,"1,666.67",TEES ESK & WEAR VALLEY NHS FOUNDATION TRUST.
Adults Wellbeing and Health,Social Inclusion,Third Party Payments,479111,Purchase of Care,06-Mar-2013,2565130-3138533,"60,597.00",CO DURHAM & DARLINGTON NHS FOUNDATION TRUST.
Adults Wellbeing and Health,Social Inclusion,Supplies and Services,338089,Services,06-Mar-2013,2565130-3139691,"1,625.00",CO DURHAM & DARLINGTON NHS FOUNDATION TRUST.
Assistant Chief Executive,Partnerships & Community Engagement Div.,Supplies and Services,384085,Miscellaneous Expenses,06-Mar-2013,217758-MARD06-12,500.00,FRIENDS OF BLOEMFONTEIN SCHOOL.
Assistant Chief Executive,Partnerships & Community Engagement Div.,Supplies and Services,384086,Miscellaneous Expenses,06-Mar-2013,2565421-12NB-MDUR005,"3,000.00",USHAW MOOR ACTION GROUP.
Children and Young Peoples Services,CYPS - Local Authority,Premises,145015,Cleaning and Domestic Supplies,06-Mar-2013,2565153-163508,699.00,DENIS RAWLINS LTD.
Children and Young Peoples Services,CYPS - Local Authority,Construction Work,908105,Construction work,06-Mar-2013,2565124-3065,"2,144.00",CITY FABRICATIONS.
Children and Young Peoples Services,CYPS - Local Authority,Construction Work,908105,Construction work,06-Mar-2013,2565246-INV00237446,675.00,LANES GROUP PLC.
Children and Young Peoples Services,CYPS - Local Authority,Construction Work,908105,Construction work,06-Mar-2013,2565258-3495,550.00,LUCION ENVIRONMENTAL LLP LTD.
Children and Young Peoples Services,CYPS - Local Authority,Transport,230005,Contract Hire,06-Mar-2013,2565129-CLUB13008A,610.00,CLUBMAN CABS.
Children and Young Peoples Services,CYPS - Local Authority,Transport,230005,Contract Hire,06-Mar-2013,2565146-3705-FRC,"1,352.04",CROFT BUSINESS SERVICES (UK) LTD T/A CROFT TAXIS.
Children and Young Peoples Services,CYPS - Local Authority,Transport,230005,Contract Hire,06-Mar-2013,2565146-3708-FRC,"1,041.87",CROFT BUSINESS SERVICES (UK) LTD T/A CROFT TAXIS.
Children and Young Peoples Services,CYPS - Local Authority,Transport,230005,Contract Hire,06-Mar-2013,2565146-3713-FRC,716.70,CROFT BUSINESS SERVICES (UK) LTD T/A CROFT TAXIS.
Children and Young Peoples Services,CYPS - Local Authority,Transport,230007,Contract Hire,06-Mar-2013,217748-32135234,"1,750.00",EAST RIDING OF YORKSHIRE COUNCIL.
Children and Young Peoples Services,CYPS - Local Authority,Transport,230007,Contract Hire,06-Mar-2013,217748-32135250,955.40,EAST RIDING OF YORKSHIRE COUNCIL.
Children and Young Peoples Services,CYPS - Local Authority,Transport,230007,Contract Hire,06-Mar-2013,217845-004117,"1,102.00",STATION TAXIS (SUNDERLAND).
Children and Young Peoples Services,CYPS - Local Authority,Transport,230007,Contract Hire,06-Mar-2013,2565128-597,"1,500.00",CLIVE HUBERY.
Children and Young Peoples Services,CYPS - Local Authority,Transport,230007,Contract Hire,06-Mar-2013,2565167-64,980.00,ELITE TAXIS.
Children and Young Peoples Services,CYPS - Local Authority,Transport,230007,Contract Hire,06-Mar-2013,2565179-0241,"1,064.10",FMR SILVA PITA.
Children and Young Peoples Services,CYPS - Local Authority,Transport,230007,Contract Hire,06-Mar-2013,2565179-0242,622.95,FMR SILVA PITA.
Children and Young Peoples Services,CYPS - Local Authority,Transport,230007,Contract Hire,06-Mar-2013,2565185-764FEB13,"1,873.24",GEM TRAVEL.
Children and Young Peoples Services,CYPS - Local Authority,Transport,230007,Contract Hire,06-Mar-2013,2565202-6,"1,017.50",HENRYS TAXIS.
Children and Young Peoples Services,CYPS - Local Authority,Transport,230007,Contract Hire,06-Mar-2013,2565211-290,"1,062.00",I & R EXECUTIVE TRAVEL.
Children and Young Peoples Services,CYPS - Local Authority,Transport,230007,Contract Hire,06-Mar-2013,2565211-IR1302004,"1,360.00",I & R EXECUTIVE TRAVEL.
Children and Young Peoples Services,CYPS - Local Authority,Transport,230007,Contract Hire,06-Mar-2013,2565211-IR1302005,750.00,I & R EXECUTIVE TRAVEL.
Children and Young Peoples Services,CYPS - Local Authority,Transport,230007,Contract Hire,06-Mar-2013,2565211-IR1302007,"1,080.00",I & R EXECUTIVE TRAVEL.
Children and Young Peoples Services,CYPS - Local Authority,Transport,230007,Contract Hire,06-Mar-2013,2565224-10,"1,035.00",JACK`S TAXIS.
Children and Young Peoples Services,CYPS - Local Authority,Transport,230007,Contract Hire,06-Mar-2013,2565224-11,975.00,JACK`S TAXIS.
Children and Young Peoples Services,CYPS - Local Authority,Transport,230007,Contract Hire,06-Mar-2013,2565227-W054FEB13,"1,020.00",JASPERS TAXIS.
Children and Young Peoples Services,CYPS - Local Authority,Transport,230007,Contract Hire,06-Mar-2013,2565228-249,"1,020.00",JDS PRIVATE HIRE DURHAM.
Children and Young Peoples Services,CYPS - Local Authority,Transport,230007,Contract Hire,06-Mar-2013,2565228-250,780.00,JDS PRIVATE HIRE DURHAM.
Children and Young Peoples Services,CYPS - Local Authority,Transport,230007,Contract Hire,06-Mar-2013,2565228-251,"1,329.00",JDS PRIVATE HIRE DURHAM.
Children and Young Peoples Services,CYPS - Local Authority,Transport,230007,Contract Hire,06-Mar-2013,2565228-253,930.00,JDS PRIVATE HIRE DURHAM.
Children and Young Peoples Services,CYPS - Local Authority,Transport,230007,Contract Hire,06-Mar-2013,2565228-254,"1,750.00",JDS PRIVATE HIRE DURHAM.
Children and Young Peoples Services,CYPS - Local Authority,Transport,230007,Contract Hire,06-Mar-2013,2565228-255,"1,027.00",JDS PRIVATE HIRE DURHAM.
Children and Young Peoples Services,CYPS - Local Authority,Transport,230007,Contract Hire,06-Mar-2013,2565229-2103,"1,274.90",JEFF ANDERSON COACHES LTD.
Children and Young Peoples Services,CYPS - Local Authority,Transport,230007,Contract Hire,06-Mar-2013,2565229-2104,"1,266.90",JEFF ANDERSON COACHES LTD.
Children and Young Peoples Services,CYPS - Local Authority,Transport,230007,Contract Hire,06-Mar-2013,2565231-JK43,623.00,JK TAXIS.
Children and Young Peoples Services,CYPS - Local Authority,Transport,230007,Contract Hire,06-Mar-2013,2565232-2012/46,"1,131.00",JM HUMBLE COACH HIRE.
Children and Young Peoples Services,CYPS - Local Authority,Transport,230007,Contract Hire,06-Mar-2013,2565233-13,565.50,JOHN RIDLEY.
Children and Young Peoples Services,CYPS - Local Authority,Transport,230007,Contract Hire,06-Mar-2013,2565234-37,"1,162.00",JOHNS TAXIS (CHESTER LE STREET).
Children and Young Peoples Services,CYPS - Local Authority,Transport,230007,Contract Hire,06-Mar-2013,2565237-PH6,"1,440.00",JOVIAL PRIVATE HIRE.
Children and Young Peoples Services,CYPS - Local Authority,Transport,230007,Contract Hire,06-Mar-2013,2565244-6,675.00,L & R PRIVATE HIRE.
Children and Young Peoples Services,CYPS - Local Authority,Transport,230007,Contract Hire,06-Mar-2013,2565244-6-28/2/13,"1,035.00",L & R PRIVATE HIRE.
Children and Young Peoples Services,CYPS - Local Authority,Transport,230007,Contract Hire,06-Mar-2013,2565249-089-28/2/13,"1,980.00",LD TAXIS.
Children and Young Peoples Services,CYPS - Local Authority,Transport,230007,Contract Hire,06-Mar-2013,2565249-091,810.00,LD TAXIS.
Children and Young Peoples Services,CYPS - Local Authority,Transport,230007,Contract Hire,06-Mar-2013,2565255-1429,"1,813.05",LOCAL TRANSPORT LTD.
Children and Young Peoples Services,CYPS - Local Authority,Transport,230007,Contract Hire,06-Mar-2013,2565255-1432,560.00,LOCAL TRANSPORT LTD.
Children and Young Peoples Services,CYPS - Local Authority,Transport,230007,Contract Hire,06-Mar-2013,2565263-14,"1,050.00",M & S TAXIS.
Children and Young Peoples Services,CYPS - Local Authority,Transport,230007,Contract Hire,06-Mar-2013,2565266-220213,600.00,MARKS TAXIS.
Children and Young Peoples Services,CYPS - Local Authority,Transport,230007,Contract Hire,06-Mar-2013,2565266-480213,750.00,MARKS TAXIS.
Children and Young Peoples Services,CYPS - Local Authority,Transport,230007,Contract Hire,06-Mar-2013,2565268-006,"1,350.00",MARTIN`S TAXIS.
Children and Young Peoples Services,CYPS - Local Authority,Transport,230007,Contract Hire,06-Mar-2013,2565270-MB005,"1,008.00",MB TAXIS.
Children and Young Peoples Services,CYPS - Local Authority,Transport,230007,Contract Hire,06-Mar-2013,2565271-MCD/FEB13/07,"1,557.60",MCDONALD TRAVEL.
Children and Young Peoples Services,CYPS - Local Authority,Transport,230007,Contract Hire,06-Mar-2013,2565271-MCD/FEB13/09,"1,635.00",MCDONALD TRAVEL.
Children and Young Peoples Services,CYPS - Local Authority,Transport,230007,Contract Hire,06-Mar-2013,2565271-MCD/FEB2013/08,"1,485.00",MCDONALD TRAVEL.
Children and Young Peoples Services,CYPS - Local Authority,Transport,230007,Contract Hire,06-Mar-2013,2565278-5,"1,050.00",MOOR PRIVATE HIRE.
Children and Young Peoples Services,CYPS - Local Authority,Transport,230007,Contract Hire,06-Mar-2013,2565279-06,570.00,MR DEREK HENDERSON.
Children and Young Peoples Services,CYPS - Local Authority,Transport,230007,Contract Hire,06-Mar-2013,2565298-2365,"2,009.25",NIGHTINGALE COACHES.
Children and Young Peoples Services,CYPS - Local Authority,Transport,230007,Contract Hire,06-Mar-2013,2565298-2366,"1,905.00",NIGHTINGALE COACHES.
Children and Young Peoples Services,CYPS - Local Authority,Transport,230007,Contract Hire,06-Mar-2013,2565298-2367,"1,954.35",NIGHTINGALE COACHES.
Children and Young Peoples Services,CYPS - Local Authority,Transport,230007,Contract Hire,06-Mar-2013,2565298-2375,"2,048.55",NIGHTINGALE COACHES.
Children and Young Peoples Services,CYPS - Local Authority,Transport,230007,Contract Hire,06-Mar-2013,2565303-534,"2,595.00",NORTH STAR TRAVEL.
Children and Young Peoples Services,CYPS - Local Authority,Transport,230007,Contract Hire,06-Mar-2013,2565320-022,805.35,PAUL SAVAGE.
Children and Young Peoples Services,CYPS - Local Authority,Transport,230007,Contract Hire,06-Mar-2013,2565321-6,840.00,PAUL SMITH T/A LANGLEY TAXIS.
Children and Young Peoples Services,CYPS - Local Authority,Transport,230007,Contract Hire,06-Mar-2013,2565322-ST29/13,"1,236.60",PB PRIVATE HIRE.
Children and Young Peoples Services,CYPS - Local Authority,Transport,230007,Contract Hire,06-Mar-2013,2565324-14,900.00,PETER HOLMES.
Children and Young Peoples Services,CYPS - Local Authority,Transport,230007,Contract Hire,06-Mar-2013,2565325-288,795.00,PETERLEE EXECUTIVE CARS.
Children and Young Peoples Services,CYPS - Local Authority,Transport,230007,Contract Hire,06-Mar-2013,2565325-289,"1,125.00",PETERLEE EXECUTIVE CARS.
Children and Young Peoples Services,CYPS - Local Authority,Transport,230007,Contract Hire,06-Mar-2013,2565325-291,810.00,PETERLEE EXECUTIVE CARS.
Children and Young Peoples Services,CYPS - Local Authority,Transport,230007,Contract Hire,06-Mar-2013,2565325-292,840.00,PETERLEE EXECUTIVE CARS.
Children and Young Peoples Services,CYPS - Local Authority,Transport,230007,Contract Hire,06-Mar-2013,2565325-297,810.00,PETERLEE EXECUTIVE CARS.
Children and Young Peoples Services,CYPS - Local Authority,Transport,230007,Contract Hire,06-Mar-2013,2565332-130233,"1,174.50",PRATTS TAXIS.
Children and Young Peoples Services,CYPS - Local Authority,Transport,230007,Contract Hire,06-Mar-2013,2565332-130234,939.70,PRATTS TAXIS.
Children and Young Peoples Services,CYPS - Local Authority,Transport,230007,Contract Hire,06-Mar-2013,2565332-130235,"2,256.75",PRATTS TAXIS.
Children and Young Peoples Services,CYPS - Local Authority,Transport,230007,Contract Hire,06-Mar-2013,2565347-88,616.00,ROAD RUNNERS (N.E) LTD.
Children and Young Peoples Services,CYPS - Local Authority,Transport,230007,Contract Hire,06-Mar-2013,2565348-6431,"7,308.00",ROBERTS OF WINGATE.
Children and Young Peoples Services,CYPS - Local Authority,Transport,230007,Contract Hire,06-Mar-2013,2565348-6433,"2,453.10",ROBERTS OF WINGATE.
Children and Young Peoples Services,CYPS - Local Authority,Transport,230007,Contract Hire,06-Mar-2013,2565351-N029AFEB2013,560.00,RONS TAXI.
Children and Young Peoples Services,CYPS - Local Authority,Transport,230007,Contract Hire,06-Mar-2013,2565352-1548,"1,470.00",RONS TAXIS.
Children and Young Peoples Services,CYPS - Local Authority,Transport,230007,Contract Hire,06-Mar-2013,2565352-1549,"1,875.00",RONS TAXIS.
Children and Young Peoples Services,CYPS - Local Authority,Transport,230007,Contract Hire,06-Mar-2013,2565352-1550,"1,500.00",RONS TAXIS.
Children and Young Peoples Services,CYPS - Local Authority,Transport,230007,Contract Hire,06-Mar-2013,2565360-6264,"2,408.85",SAFARI TRAVEL.
Children and Young Peoples Services,CYPS - Local Authority,Transport,230007,Contract Hire,06-Mar-2013,2565365-39,"1,044.00",SAZ CABS.
Children and Young Peoples Services,CYPS - Local Authority,Transport,230007,Contract Hire,06-Mar-2013,2565369-71019,"1,200.00",SHOTTON PRIVATE HIRE.
Children and Young Peoples Services,CYPS - Local Authority,Transport,230007,Contract Hire,06-Mar-2013,2565369-71021,"1,165.20",SHOTTON PRIVATE HIRE.
Children and Young Peoples Services,CYPS - Local Authority,Transport,230007,Contract Hire,06-Mar-2013,2565372-22,"1,260.00",SJ MACKENZIE T/A SCOTTS TAXIS.
Children and Young Peoples Services,CYPS - Local Authority,Transport,230007,Contract Hire,06-Mar-2013,2565372-24-28/2/13,"1,830.00",SJ MACKENZIE T/A SCOTTS TAXIS.
Children and Young Peoples Services,CYPS - Local Authority,Transport,230007,Contract Hire,06-Mar-2013,2565377-JC00014,750.00,SPENNYMOOR TAXIS.
Children and Young Peoples Services,CYPS - Local Authority,Transport,230007,Contract Hire,06-Mar-2013,2565377-SAZ00013,"1,030.00",SPENNYMOOR TAXIS.
Children and Young Peoples Services,CYPS - Local Authority,Transport,230007,Contract Hire,06-Mar-2013,2565429-934,690.00,WE CONNOR.
Children and Young Peoples Services,CYPS - Local Authority,Supplies and Services,304259,Equipment and Materials,06-Mar-2013,217835-50189,840.00,SAQ INTERNATIONAL.
Children and Young Peoples Services,CYPS - Local Authority,Supplies and Services,364352,Grants to Voluntary Organisations,06-Mar-2013,2565387-68614-SL,649.48,STONHAM HOUSING ASSOCIATION LTD.
Children and Young Peoples Services,CYPS - Local Authority,Supplies and Services,364999,Grants to Voluntary Organisations,06-Mar-2013,2565385-YWDG,"2,000.00",STANLEY YOUTH CENTRE.
Children and Young Peoples Services,CYPS - Local Authority,Supplies and Services,384199,Miscellaneous Expenses,06-Mar-2013,2565300-206,500.00,NORTH EAST ENVIRONMENT NETWORK LTD.
Children and Young Peoples Services,CYPS - Local Authority,Supplies and Services,340001,Postages,06-Mar-2013,2565287-AS660425MAR0613,"1,000.00",NEOPOST LTD CREDIFON RCB ACCOUNT.
Children and Young Peoples Services,CYPS - Local Authority,Transport,235057,Public Transport,06-Mar-2013,2565127-326458,"2,340.78",CLICK TRAVEL LTD.
Children and Young Peoples Services,CYPS - Local Authority,Employees,040149,"Recruitment, Instruction and Training",06-Mar-2013,2565292-50054846,"1,050.00",NEW COLLEGE DURHAM.
Children and Young Peoples Services,CYPS - Local Authority,Supplies and Services,338040,Services,06-Mar-2013,217766-CF-15/2/13,"6,800.00",HMCTS.
Children and Young Peoples Services,CYPS - Local Authority,Supplies and Services,338040,Services,06-Mar-2013,217767-CF-21/2/13,"7,375.00",HMCTS.
Children and Young Peoples Services,Dedicated Schools Grant,Supplies and Services,342053,Computers and Communications,06-Mar-2013,217810-LAPTOP,500.00,REDACTED - PAYMENT TO INDIVIDUAL
Children and Young Peoples Services,Dedicated Schools Grant,Supplies and Services,342053,Computers and Communications,06-Mar-2013,217821-LAPTOP,500.00,REDACTED - PAYMENT TO INDIVIDUAL
Children and Young Peoples Services,Dedicated Schools Grant,Transport,230005,Contract Hire,06-Mar-2013,2565082-03/12B,"1,368.00",ADVANCE TRAVEL.
Children and Young Peoples Services,Dedicated Schools Grant,Transport,230007,Contract Hire,06-Mar-2013,2565225-L008FFEB13,"1,209.00",JAFFAS TAXIS.
Children and Young Peoples Services,Dedicated Schools Grant,Transport,230007,Contract Hire,06-Mar-2013,2565232-2012/45,585.00,JM HUMBLE COACH HIRE.
Children and Young Peoples Services,Dedicated Schools Grant,Transport,230007,Contract Hire,06-Mar-2013,2565241-115,600.00,KAB IT.
Children and Young Peoples Services,Dedicated Schools Grant,Transport,230007,Contract Hire,06-Mar-2013,2565266-210213,"1,050.00",MARKS TAXIS.
Children and Young Peoples Services,Dedicated Schools Grant,Transport,230007,Contract Hire,06-Mar-2013,2565347-92,"1,440.00",ROAD RUNNERS (N.E) LTD.
Children and Young Peoples Services,Dedicated Schools Grant,Third Party Payments,410037,Rendered by Other Local Authorities,06-Mar-2013,2565386-533142,"1,242.54",STOCKTON ON TEES BOROUGH COUNCIL.
Children and Young Peoples Services,Dedicated Schools Grant,Third Party Payments,410037,Rendered by Other Local Authorities,06-Mar-2013,2565386-533143,"4,564.59",STOCKTON ON TEES BOROUGH COUNCIL.
Corporate Resources,Centrally Administered Costs,Supplies and Services,338013,Services,06-Mar-2013,2565269-835204,"33,318.00",MAZARS LLP.
Corporate Resources,Financing- Resources,Supplies and Services,372009,Subscriptions,06-Mar-2013,2565122-3079283,"5,425.00",CIPFA LTD.
Corporate Resources,Human Resources Total,Supplies and Services,338210,Services,06-Mar-2013,2565178-92844787,"1,485.00",FIRSTASSIST SERVICES LTD.
Corporate Resources,ICT Services incl. Design and Print,"Vehicles, Equipment, Furniture and Fittings",912701,Computer equipment,06-Mar-2013,2565152-7402004414,"4,625.00",DELL COMPUTER CORPORATION LTD.
Corporate Resources,ICT Services incl. Design and Print,Construction Work,908105,Construction work,06-Mar-2013,2565397-PSI-9059205,533.00,TECHNOLOGY SERVICES GROUP LTD.
Corporate Resources,ICT Services incl. Design and Print,Construction Work,908105,Construction work,06-Mar-2013,2565397-PSI-9059374,"1,565.20",TECHNOLOGY SERVICES GROUP LTD.
Corporate Resources,ICT Services incl. Design and Print,Supplies and Services,304303,Equipment and Materials,06-Mar-2013,2565217-1213820,"1,245.00",INSIGHT DIRECT (UK) LTD.
Corporate Resources,ICT Services incl. Design and Print,Stock,926900,Stock in hand-Inventory system,06-Mar-2013,2565425-2318654,"46,875.00",VIGLEN LTD.
Corporate Resources,Legal & Democratic Services,Supplies and Services,352001,Conference Expenses,06-Mar-2013,2565104-15177,"1,021.25",BOURNEMOUTH CONVENTION BUREAU LTD.
Corporate Resources,Legal & Democratic Services,Supplies and Services,384151,Miscellaneous Expenses,06-Mar-2013,2565130-3139697,"1,492.50",CO DURHAM & DARLINGTON NHS FOUNDATION TRUST.
Corporate Resources,Legal & Democratic Services,Supplies and Services,384199,Miscellaneous Expenses,06-Mar-2013,2565388-935,"18,600.00",STOPFORD INFORMATION SYSTEMS LTD.
Neighbourhood Services,Direct Services,Supplies and Services,328041,"Clothing, Uniforms and Laundry",06-Mar-2013,2565230-6121,"2,907.90",JG UNIFORMS.
Neighbourhood Services,Direct Services,Supplies and Services,304221,Equipment and Materials,06-Mar-2013,2565085-0000010673,"1,939.00",AMBEROL LTD.
Neighbourhood Services,Direct Services,Supplies and Services,304221,Equipment and Materials,06-Mar-2013,2565109-1650/0722179,545.28,BSS GROUP PLC.
Neighbourhood Services,Direct Services,Supplies and Services,304221,Equipment and Materials,06-Mar-2013,2565157-291976,"10,802.96",DESIGNPLAN LIGHTING LTD.
Neighbourhood Services,Direct Services,Supplies and Services,304221,Equipment and Materials,06-Mar-2013,2565199-4401811,"1,209.00",HEADLAM (FLOORCOVERING DISTRIBUTORS) LTD.
Neighbourhood Services,Direct Services,Supplies and Services,304221,Equipment and Materials,06-Mar-2013,2565330-165577,908.60,PLUMBING TRADE SUPPLIES LTD.
Neighbourhood Services,Direct Services,Supplies and Services,304221,Equipment and Materials,06-Mar-2013,2565330-4120146565,671.53,PLUMBING TRADE SUPPLIES LTD.
Neighbourhood Services,Direct Services,Supplies and Services,304221,Equipment and Materials,06-Mar-2013,2565330-4120146660,689.24,PLUMBING TRADE SUPPLIES LTD.
Neighbourhood Services,Direct Services,Supplies and Services,304221,Equipment and Materials,06-Mar-2013,2565330-4120146661,668.26,PLUMBING TRADE SUPPLIES LTD.
Neighbourhood Services,Direct Services,Supplies and Services,304221,Equipment and Materials,06-Mar-2013,2565330-4120146736,708.60,PLUMBING TRADE SUPPLIES LTD.
Neighbourhood Services,Direct Services,Supplies and Services,304221,Equipment and Materials,06-Mar-2013,2565330-4120146750,746.09,PLUMBING TRADE SUPPLIES LTD.
Neighbourhood Services,Direct Services,Supplies and Services,304221,Equipment and Materials,06-Mar-2013,2565331-164722,"4,253.20",PLUMBING TRADE SUPPLIES LTD.
Neighbourhood Services,Direct Services,Supplies and Services,304221,Equipment and Materials,06-Mar-2013,2565400-96277837,943.40,TERBERG MATEC (UK) LTD.
Neighbourhood Services,Direct Services,Supplies and Services,304221,Equipment and Materials,06-Mar-2013,2565408-94756,"2,594.00",TOMMY WARDLE.
Neighbourhood Services,Direct Services,Supplies and Services,304221,Equipment and Materials,06-Mar-2013,2565439-79925333,708.22,WOLSELEY UK LTD.
Neighbourhood Services,Direct Services,Supplies and Services,304221,Equipment and Materials,06-Mar-2013,2565439-79925334,640.57,WOLSELEY UK LTD.
Neighbourhood Services,Direct Services,Supplies and Services,304221,Equipment and Materials,06-Mar-2013,2565439-79925335,835.20,WOLSELEY UK LTD.
Neighbourhood Services,Direct Services,Supplies and Services,304221,Equipment and Materials,06-Mar-2013,2565439-79925336,832.40,WOLSELEY UK LTD.
Neighbourhood Services,Direct Services,Supplies and Services,304221,Equipment and Materials,06-Mar-2013,2565439-79925337,846.76,WOLSELEY UK LTD.
Neighbourhood Services,Direct Services,Supplies and Services,304221,Equipment and Materials,06-Mar-2013,2565439-79925338,690.27,WOLSELEY UK LTD.
Neighbourhood Services,Direct Services,Supplies and Services,304221,Equipment and Materials,06-Mar-2013,2565439-79925343,837.45,WOLSELEY UK LTD.
Neighbourhood Services,Direct Services,Supplies and Services,304221,Equipment and Materials,06-Mar-2013,2565439-79925349,872.13,WOLSELEY UK LTD.
Neighbourhood Services,Direct Services,Supplies and Services,304221,Equipment and Materials,06-Mar-2013,2565439-79925351,685.48,WOLSELEY UK LTD.
Neighbourhood Services,Direct Services,Supplies and Services,304259,Equipment and Materials,06-Mar-2013,2565293-61415,"3,404.55",NEW ROW FARM NURSERIES.
Neighbourhood Services,Direct Services,Summary Income Level,720299,Fees and Charges,06-Mar-2013,217866-REFRS,"3,421.00",WOLSEY PROBATE.
Neighbourhood Services,Direct Services,Third Party Payments,430100,Rendered by Private Contractors,06-Mar-2013,2565100-46029879,811.88,BELL TRUCK SALES LTD.
Neighbourhood Services,Direct Services,Third Party Payments,430100,Rendered by Private Contractors,06-Mar-2013,2565124-3070,982.00,CITY FABRICATIONS.
Neighbourhood Services,Direct Services,Third Party Payments,430100,Rendered by Private Contractors,06-Mar-2013,2565150-0530974,"3,082.18",DAWSONRENTALS/SWEEPERS.
Neighbourhood Services,Direct Services,Third Party Payments,430100,Rendered by Private Contractors,06-Mar-2013,2565317-016,670.91,PARAMOUNT CEILINGS & PARTITIONS.
Neighbourhood Services,Direct Services,Third Party Payments,430100,Rendered by Private Contractors,06-Mar-2013,2565344-2745,676.00,RINGLAND SCAFFOLDING.
Neighbourhood Services,Direct Services,Transport,210057,Repair and Maintenance of Vehicles,06-Mar-2013,2565256-93621,"1,262.98",LONDONDERRY GARAGE LTD.
Neighbourhood Services,Direct Services,Premises,108251,Service Repairs and Maintenance,06-Mar-2013,2565265-36966,520.00,MARIAN DOORS & SHUTTERS.
Neighbourhood Services,Direct Services,Stock,926004,Stock,06-Mar-2013,2565183-8991862,"1,252.02",GB OILS T/A BRETT FUELS.
Neighbourhood Services,Direct Services,Stock,926004,Stock,06-Mar-2013,2565183-9049519,"2,898.25",GB OILS T/A BRETT FUELS.
Neighbourhood Services,Direct Services,Stock,926004,Stock,06-Mar-2013,2565183-9124040,"17,595.00",GB OILS T/A BRETT FUELS.
Neighbourhood Services,Direct Services,Stock,926004,Stock,06-Mar-2013,2565183-9124042,"3,150.20",GB OILS T/A BRETT FUELS.
Neighbourhood Services,Direct Services,Stock,926004,Stock,06-Mar-2013,2565183-9158440,"17,509.37",GB OILS T/A BRETT FUELS.
Neighbourhood Services,Direct Services,Stock,926004,Stock,06-Mar-2013,2565183-9158441,"2,100.60",GB OILS T/A BRETT FUELS.
Neighbourhood Services,Direct Services,Stock,926900,Stock in hand-Inventory system,06-Mar-2013,2565080-LLI271669,591.36,A THOMPSON & SONS LTD.
Neighbourhood Services,Direct Services,Stock,926900,Stock in hand-Inventory system,06-Mar-2013,2565165-059-116405,"1,148.34",EDMUNDSON ELECTRICAL LTD.
Neighbourhood Services,Direct Services,Stock,926900,Stock in hand-Inventory system,06-Mar-2013,2565169-18SI/163077,"1,172.00",ENCON INSULATION LTD.
Neighbourhood Services,Direct Services,Stock,926900,Stock in hand-Inventory system,06-Mar-2013,2565190-06/451815,"1,179.68",GREENHAM TRADING LTD.
Neighbourhood Services,Direct Services,Stock,926900,Stock in hand-Inventory system,06-Mar-2013,2565218-401042,"2,307.20",INSTARMAC GROUP PLC.
Neighbourhood Services,Direct Services,Stock,926900,Stock in hand-Inventory system,06-Mar-2013,2565240-STI376638,572.73,JT DOVE LTD.
Neighbourhood Services,Direct Services,Stock,926900,Stock in hand-Inventory system,06-Mar-2013,2565240-STI376672,859.20,JT DOVE LTD.
Neighbourhood Services,Direct Services,Stock,926900,Stock in hand-Inventory system,06-Mar-2013,2565253-LFP/13/0464,745.00,LIFELINE FIRE PREVENTION LTD.
Neighbourhood Services,Direct Services,Stock,926900,Stock in hand-Inventory system,06-Mar-2013,2565420-INV014411,"4,076.20",URBIS LIGHTING LTD.
Neighbourhood Services,Direct Services,Stock,926900,Stock in hand-Inventory system,06-Mar-2013,2565439-78565228,"2,979.44",WOLSELEY UK LTD.
Neighbourhood Services,Direct Services,Stock,926900,Stock in hand-Inventory system,06-Mar-2013,2565439-79841467,836.49,WOLSELEY UK LTD.
Neighbourhood Services,Direct Services,Stock,926900,Stock in hand-Inventory system,06-Mar-2013,2565439-79852364,"1,735.53",WOLSELEY UK LTD.
Neighbourhood Services,"Environment,Health & Consumer Protection",Supplies and Services,372009,Subscriptions,06-Mar-2013,217753-EMP5141,685.60,ENVIRONMENTAL MANAGEMENT PUBLISHING.
Neighbourhood Services,"Heritage, Culture & Libraries",Employees,080025,Agency Staff,06-Mar-2013,2565283-JAN/FEB2013,610.00,REDACTED - PAYMENT TO INDIVIDUAL
Neighbourhood Services,"Heritage, Culture & Libraries",Supplies and Services,304259,Equipment and Materials,06-Mar-2013,2565327-59611025,610.64,PHS GROUP PLC.
Neighbourhood Services,"Heritage, Culture & Libraries",Supplies and Services,304245,Equipment and Materials,06-Mar-2013,217719-000788,965.00,CLEARVIEW TECHNICAL LTD.
Neighbourhood Services,"Heritage, Culture & Libraries",Supplies and Services,384199,Miscellaneous Expenses,06-Mar-2013,2565204-HBBATH17,700.00,HILARITY BITES COMEDY CLUB.
Neighbourhood Services,"Heritage, Culture & Libraries",Supplies and Services,312013,"Newspapers, Books and Periodicals",06-Mar-2013,2565093-3784910,506.09,ASKEWS & HOLTS LIBRARY SERVICES LTD.
Neighbourhood Services,"Heritage, Culture & Libraries",Supplies and Services,312013,"Newspapers, Books and Periodicals",06-Mar-2013,2565093-3785340,546.91,ASKEWS & HOLTS LIBRARY SERVICES LTD.
Neighbourhood Services,"Heritage, Culture & Libraries",Supplies and Services,324117,Provisions,06-Mar-2013,2565168-00011534,539.10,EMPIRE POPCORN.
Neighbourhood Services,"Heritage, Culture & Libraries",Supplies and Services,338047,Services,06-Mar-2013,217742-TCF,"2,115.60",DURHAM DRAMATIC SOCIETY.
Neighbourhood Services,Projects and Business services,Supplies and Services,340001,Postages,06-Mar-2013,2565354-9042202530,"1,882.03",ROYAL MAIL GROUP PLC.
Neighbourhood Services,Sport & Leisure,Supplies and Services,336005,Advertising,06-Mar-2013,2565363-2402043,"1,200.00",SAGITTARIAN EMBROIDERY.
Neighbourhood Services,Sport & Leisure,Supplies and Services,336005,Advertising,06-Mar-2013,2565363-2403003,"1,200.00",SAGITTARIAN EMBROIDERY.
Neighbourhood Services,Sport & Leisure,Supplies and Services,336005,Advertising,06-Mar-2013,2565363-2403004,"1,200.00",SAGITTARIAN EMBROIDERY.
Neighbourhood Services,Sport & Leisure,Supplies and Services,336005,Advertising,06-Mar-2013,2565363-2403005,"1,080.00",SAGITTARIAN EMBROIDERY.
Neighbourhood Services,Sport & Leisure,Premises,145023,Cleaning and Domestic Supplies,06-Mar-2013,2565371-260106,849.75,SIS CHEMICALS.
Neighbourhood Services,Sport & Leisure,Supplies and Services,342223,Computers and Communications,06-Mar-2013,2565217-1208401,"1,674.27",INSIGHT DIRECT (UK) LTD.
Neighbourhood Services,Sport & Leisure,Fees,901002,Professional fees,06-Mar-2013,2565374-732/1/PJ1202,"8,500.00",SOUTHERN GREEN LTD.
Neighbourhood Services,Sport & Leisure,Supplies and Services,304221,Equipment and Materials,06-Mar-2013,2565084-7742,608.40,ALISON BLACK LTD T/A SPORTMAX.
Neighbourhood Services,Sport & Leisure,Supplies and Services,384199,Miscellaneous Expenses,06-Mar-2013,2565118-B3352,768.00,CHARLETON FENCING.
Neighbourhood Services,Sport & Leisure,Supplies and Services,338099,Services,06-Mar-2013,2565243-3898,"2,027.00",KNIGHT KAVANAGH & PAGE (KKP).
Neighbourhood Services,Technical Services,Third Party Payments,460350,Contract Payments,06-Mar-2013,217829-60,"13,566.00",P & EB ROBSON.
Neighbourhood Services,Technical Services,Third Party Payments,460350,Contract Payments,06-Mar-2013,2565213-2004,881.50,IAN C LIDDLE.
Neighbourhood Services,Technical Services,Third Party Payments,460350,Contract Payments,06-Mar-2013,2565213-2006,"2,214.00",IAN C LIDDLE.
Neighbourhood Services,Technical Services,Third Party Payments,460350,Contract Payments,06-Mar-2013,2565213-2007,"2,063.00",IAN C LIDDLE.
Neighbourhood Services,Technical Services,Third Party Payments,460350,Contract Payments,06-Mar-2013,2565222-969,"1,039.50",J & JG GILL & SONS LTD.
Neighbourhood Services,Technical Services,Third Party Payments,460350,Contract Payments,06-Mar-2013,2565222-980,"2,429.50",J & JG GILL & SONS LTD.
Neighbourhood Services,Technical Services,Third Party Payments,460350,Contract Payments,06-Mar-2013,2565223-5304224,"1,527.50",JA GILSON (AGRICULTURAL CONTRACTORS) LTD.
Neighbourhood Services,Technical Services,Third Party Payments,460350,Contract Payments,06-Mar-2013,2565223-5304228,"5,255.00",JA GILSON (AGRICULTURAL CONTRACTORS) LTD.
Neighbourhood Services,Technical Services,Third Party Payments,460350,Contract Payments,06-Mar-2013,2565358-293,"6,551.50",S & R LANDSCAPES.
Neighbourhood Services,Technical Services,Third Party Payments,460350,Contract Payments,06-Mar-2013,2565358-294,"4,629.50",S & R LANDSCAPES.
Neighbourhood Services,Technical Services,Third Party Payments,460351,Contract Payments,06-Mar-2013,2565304-029676,617.64,NORTHERN DISPOSAL SERVICES LTD.
Neighbourhood Services,Technical Services,Supplies and Services,304221,Equipment and Materials,06-Mar-2013,217704-2406,"1,993.50",ALTHON LTD.
Neighbourhood Services,Technical Services,Supplies and Services,304221,Equipment and Materials,06-Mar-2013,2565079-LLI271633,"1,750.94",A THOMPSON & SONS LTD.
Neighbourhood Services,Technical Services,Supplies and Services,304221,Equipment and Materials,06-Mar-2013,2565083-17688505,"2,161.20",AGGREGATE INDUSTRIES UK LTD.
Neighbourhood Services,Technical Services,Supplies and Services,304221,Equipment and Materials,06-Mar-2013,2565083-17694360,"1,475.31",AGGREGATE INDUSTRIES UK LTD.
Neighbourhood Services,Technical Services,Supplies and Services,304221,Equipment and Materials,06-Mar-2013,2565083-17699857,503.70,AGGREGATE INDUSTRIES UK LTD.
Neighbourhood Services,Technical Services,Supplies and Services,304221,Equipment and Materials,06-Mar-2013,2565083-17699861,"4,803.60",AGGREGATE INDUSTRIES UK LTD.
Neighbourhood Services,Technical Services,Supplies and Services,304221,Equipment and Materials,06-Mar-2013,2565083-17706205,660.12,AGGREGATE INDUSTRIES UK LTD.
Neighbourhood Services,Technical Services,Supplies and Services,304221,Equipment and Materials,06-Mar-2013,2565083-17706208,"4,803.60",AGGREGATE INDUSTRIES UK LTD.
Neighbourhood Services,Technical Services,Supplies and Services,304221,Equipment and Materials,06-Mar-2013,2565267-ZBB0387096,"2,808.09",MARSHALLS MONO LTD.
Neighbourhood Services,Technical Services,Supplies and Services,304221,Equipment and Materials,06-Mar-2013,2565267-ZBB0387097,"2,808.09",MARSHALLS MONO LTD.
Neighbourhood Services,Technical Services,Supplies and Services,304221,Equipment and Materials,06-Mar-2013,2565267-ZBB0389095,549.63,MARSHALLS MONO LTD.
Neighbourhood Services,Technical Services,Supplies and Services,304221,Equipment and Materials,06-Mar-2013,2565370-60409,"1,468.70",SIMMONSIGNS LTD.
Neighbourhood Services,Technical Services,Supplies and Services,304221,Equipment and Materials,06-Mar-2013,2565395-9029312288,505.38,TARMAC LTD.
Neighbourhood Services,Technical Services,Supplies and Services,304221,Equipment and Materials,06-Mar-2013,2565395-9029313562,666.06,TARMAC LTD.
Neighbourhood Services,Technical Services,Supplies and Services,304221,Equipment and Materials,06-Mar-2013,2565395-9029313569,597.83,TARMAC LTD.
Neighbourhood Services,Technical Services,Supplies and Services,304221,Equipment and Materials,06-Mar-2013,2565433-811,600.00,WILF HUSBAND PLANT HIRE.
Neighbourhood Services,Technical Services,Supplies and Services,304221,Equipment and Materials,06-Mar-2013,2565433-824,600.00,WILF HUSBAND PLANT HIRE.
Neighbourhood Services,Technical Services,Supplies and Services,304358,Equipment and Materials,06-Mar-2013,2565443-2995,596.00,YOULL CONSTRUCTION LTD.
Neighbourhood Services,Technical Services,Supplies and Services,304358,Equipment and Materials,06-Mar-2013,2565443-3024,894.00,YOULL CONSTRUCTION LTD.
Neighbourhood Services,Technical Services,Supplies and Services,304358,Equipment and Materials,06-Mar-2013,2565443-3030,925.75,YOULL CONSTRUCTION LTD.
Neighbourhood Services,Technical Services,Third Party Payments,430100,Rendered by Private Contractors,06-Mar-2013,2565275-147,"1,100.80",MICHAEL KELLY.
Neighbourhood Services,Technical Services,Third Party Payments,430100,Rendered by Private Contractors,06-Mar-2013,2565333-123270,"6,935.95",PREMIER TRAFFIC MANAGEMENT LTD.
Neighbourhood Services,Technical Services,Supplies and Services,338027,Services,06-Mar-2013,2565197-0000066980,"9,000.00",HARVARD ENGINEERING PLC.
Neighbourhood Services,Technical Services,Stock,926004,Stock,06-Mar-2013,2565126-90124149,"4,781.04",CLEVELAND POTASH LTD.
Neighbourhood Services,Technical Services,Stock,926004,Stock,06-Mar-2013,2565126-90124150,"1,547.25",CLEVELAND POTASH LTD.
Neighbourhood Services,Technical Services,Stock,926004,Stock,06-Mar-2013,2565126-90124151,"5,359.16",CLEVELAND POTASH LTD.
Neighbourhood Services,Technical Services,Stock,926004,Stock,06-Mar-2013,2565126-90124152,"7,554.48",CLEVELAND POTASH LTD.
RED HRA,Housing Revenue Account,Supplies and Services,342007,Computers and Communications,06-Mar-2013,2565442-DCC045,"1,425.00",WYNYARD IT & CONSULTANCY SERVICES LT.
RED HRA,HRA Control Codes,Provisions,958100,Provision HRA MEARS,06-Mar-2013,2565158-249456,"4,330.00",DICKINSON DEES LLP.
Regeneration & Economic Development,Economic Development and Housing,Cap Exp on Grants & Other Financial Assistance (REFCUS),918401,Capital grants,06-Mar-2013,217797-TBIG-DH,"3,864.00",REDACTED - PAYMENT TO INDIVIDUAL
Regeneration & Economic Development,Economic Development and Housing,Cap Exp on Grants & Other Financial Assistance (REFCUS),918401,Capital grants,06-Mar-2013,2565137-TBIG,"6,650.00",COMPUTER CENTRE.
Regeneration & Economic Development,Economic Development and Housing,Cap Exp on Grants & Other Financial Assistance (REFCUS),918401,Capital grants,06-Mar-2013,2565175-20/2/13,"2,472.00",F TIFFEN BUILDING SERVICES.
Regeneration & Economic Development,Economic Development and Housing,Cap Exp on Grants & Other Financial Assistance (REFCUS),918401,Capital grants,06-Mar-2013,2565175-DFG374/12,"3,495.00",F TIFFEN BUILDING SERVICES.
Regeneration & Economic Development,Economic Development and Housing,Cap Exp on Grants & Other Financial Assistance (REFCUS),918401,Capital grants,06-Mar-2013,2565221-DFG467/12,"12,921.60",J & B NELSON CONSTRUCTION.
Regeneration & Economic Development,Economic Development and Housing,Cap Exp on Grants & Other Financial Assistance (REFCUS),918401,Capital grants,06-Mar-2013,2565262-2013/532,"5,509.00",M & R DEVELOPMENTS & CONTRACTORS LTD..
Regeneration & Economic Development,Economic Development and Housing,Cap Exp on Grants & Other Financial Assistance (REFCUS),918401,Capital grants,06-Mar-2013,2565407-DFG394/12,"4,091.00",THYSSENKRUPP ENCASA LTD.
Regeneration & Economic Development,Economic Development and Housing,Cap Exp on Grants & Other Financial Assistance (REFCUS),918401,Capital grants,06-Mar-2013,2565410-640,"4,745.00",TORONTO ELECTRICAL SERVICES & TESTING (TEST).
Regeneration & Economic Development,Economic Development and Housing,Premises,106099,Centrally Controlled Rep and Maint,06-Mar-2013,2565362-226,804.47,SAFEGUARD SECURITY (NE) LTD.
Regeneration & Economic Development,Economic Development and Housing,Fees,901002,Professional fees,06-Mar-2013,2565201-HR29420,"1,368.00",HENRY RILEY T/A RILEY CONSULTING.
Regeneration & Economic Development,Economic Development and Housing,Fees,901002,Professional fees,06-Mar-2013,2565389-NE121231-7,"4,000.00",SUMMERS INMAN.
Regeneration & Economic Development,Economic Development and Housing,Other Expenses,914001,Other capital expenses,06-Mar-2013,217762-PV/GLS/01/2013,700.00,GREEN LANE CE PRIMARY SCHOOL.
Regeneration & Economic Development,Economic Development and Housing,Other Expenses,914001,Other capital expenses,06-Mar-2013,2565323-5431,"13,606.91",PENNINE PLAYGROUNDS LTD.
Regeneration & Economic Development,Economic Development and Housing,Third Party Payments,479111,Purchase of Care,06-Mar-2013,2565155-RMIN/00000397,"3,000.00",DERWENTSIDE HOMES LTD.
Regeneration & Economic Development,Economic Development and Housing,Supplies and Services,338001,Services,06-Mar-2013,2565171-INV-0196,"1,876.00",ENERGY FRIEND LTD.
Regeneration & Economic Development,"Spatial Policy, Planning, Assets & Environment",Supplies and Services,342225,Computers and Communications,06-Mar-2013,2565355-86975872,660.00,RS COMPONENTS LTD.
Regeneration & Economic Development,"Spatial Policy, Planning, Assets & Environment",Supplies and Services,352001,Conference Expenses,06-Mar-2013,2565341-BMARCH13,579.60,REDACTED - PAYMENT TO INDIVIDUAL
Regeneration & Economic Development,"Spatial Policy, Planning, Assets & Environment",Supplies and Services,364999,Grants to Voluntary Organisations,06-Mar-2013,2565163-381,"1,210.00",ECO ENTERPRISES LTD.
Regeneration & Economic Development,"Spatial Policy, Planning, Assets & Environment",Supplies and Services,384199,Miscellaneous Expenses,06-Mar-2013,217791-CG,"2,418.00",LS & CR STALEY.
Regeneration & Economic Development,"Spatial Policy, Planning, Assets & Environment",Summary Income Level,725025,Rents,06-Mar-2013,2565110-TM27/2/13,"4,079.00",BURNOPFIELD CRICKET CLUB.
Regeneration & Economic Development,Transport,Supplies and Services,384199,Miscellaneous Expenses,06-Mar-2013,2565319-3442,"2,539.20",PATROL.
Regeneration & Economic Development,Transport,Third Party Payments,430109,Rendered by Private Contractors,06-Mar-2013,2565112-104753,"2,749.80",CA TRAFFIC LTD.
Adults Wellbeing and Health,Commissioning inc Supporting People,Supplies and Services,338099,Services,07-Mar-2013,2565530-114976,645.00,CALCO PUBLICATIONS.
Adults Wellbeing and Health,Head of Adults,Transport,230005,Contract Hire,07-Mar-2013,2565771-31,720.00,MR DAVID CULLEN.
Adults Wellbeing and Health,Head of Adults,Supplies and Services,338365,Services,07-Mar-2013,2565912-59221,633.00,SPACEKRAFT LTD.
Adults Wellbeing and Health,Head of Adults,Transfer Payments,515201,Social Services Clients,07-Mar-2013,2565704-SF,527.50,REDACTED - PAYMENT TO INDIVIDUAL
Assistant Chief Executive,Partnerships & Community Engagement Div.,Cap Exp on Grants & Other Financial Assistance (REFCUS),918004,Contributions to other bodies,07-Mar-2013,2565759-12NB-TEES023,"2,500.00",MIDDLETON IN TEESDALE COMMUNITY FITNESS SUITE.
Assistant Chief Executive,Partnerships & Community Engagement Div.,Supplies and Services,384086,Miscellaneous Expenses,07-Mar-2013,2565915-12NB-3TWN032,"2,000.00",ST CATHERINES COMMUNITY ASSOCIATION.
Assistant Chief Executive,Partnerships & Community Engagement Div.,Transfer Payments,525030,Other,07-Mar-2013,2565955-TEES011-AB11-2013,"11,350.00",THE WITHAM.
Children and Young Peoples Services,CYPS - Local Authority,Construction Work,908105,Construction work,07-Mar-2013,2565702-INS3-GL,"1,442.65",JOHN WADE (HAULAGE) LTD.
Children and Young Peoples Services,CYPS - Local Authority,Construction Work,908105,Construction work,07-Mar-2013,2566012-496086165,"6,333.00",YORKSHIRE PURCHASING ORGANISATION.
Children and Young Peoples Services,CYPS - Local Authority,Transport,230007,Contract Hire,07-Mar-2013,2565449-52,"1,575.00",A & P TAXIS.
Children and Young Peoples Services,CYPS - Local Authority,Transport,230007,Contract Hire,07-Mar-2013,2565454-0098,"1,380.00",ABC & OUSTON CABS.
Children and Young Peoples Services,CYPS - Local Authority,Transport,230007,Contract Hire,07-Mar-2013,2565454-0100,840.00,ABC & OUSTON CABS.
Children and Young Peoples Services,CYPS - Local Authority,Transport,230007,Contract Hire,07-Mar-2013,2565454-0103,"1,420.80",ABC & OUSTON CABS.
Children and Young Peoples Services,CYPS - Local Authority,Transport,230007,Contract Hire,07-Mar-2013,2565456-45,750.50,ACE TAXIS..
Children and Young Peoples Services,CYPS - Local Authority,Transport,230007,Contract Hire,07-Mar-2013,2565496-282013,570.00,AVALON TAXIS.
Children and Young Peoples Services,CYPS - Local Authority,Transport,230007,Contract Hire,07-Mar-2013,2565514-64,934.50,BL TAXIS.
Children and Young Peoples Services,CYPS - Local Authority,Transport,230007,Contract Hire,07-Mar-2013,2565517-0088-28/2/13,"1,401.75",BOBBY DOVE.
Children and Young Peoples Services,CYPS - Local Authority,Transport,230007,Contract Hire,07-Mar-2013,2565517-0089-28/2/13,"1,275.00",BOBBY DOVE.
Children and Young Peoples Services,CYPS - Local Authority,Transport,230007,Contract Hire,07-Mar-2013,2565527-PS0043,750.00,BURNDALE PRIVATE HIRE.
Children and Young Peoples Services,CYPS - Local Authority,Transport,230007,Contract Hire,07-Mar-2013,2565529-BIL0018,"1,024.50",CA MUSGROVE.
Children and Young Peoples Services,CYPS - Local Authority,Transport,230007,Contract Hire,07-Mar-2013,2565549-43664,"1,557.60",CJ GRIERSON.
Children and Young Peoples Services,CYPS - Local Authority,Transport,230007,Contract Hire,07-Mar-2013,2565549-43665,"1,335.00",CJ GRIERSON.
Children and Young Peoples Services,CYPS - Local Authority,Transport,230007,Contract Hire,07-Mar-2013,2565549-43666,"1,485.00",CJ GRIERSON.
Children and Young Peoples Services,CYPS - Local Authority,Transport,230007,Contract Hire,07-Mar-2013,2565549-43667,"3,472.00",CJ GRIERSON.
Children and Young Peoples Services,CYPS - Local Authority,Transport,230007,Contract Hire,07-Mar-2013,2565549-43668,"1,470.00",CJ GRIERSON.
Children and Young Peoples Services,CYPS - Local Authority,Transport,230007,Contract Hire,07-Mar-2013,2565549-43674,"1,635.00",CJ GRIERSON.
Children and Young Peoples Services,CYPS - Local Authority,Transport,230007,Contract Hire,07-Mar-2013,2565583-H006,"1,164.00",D IRVING T/A BJ TAXIS.
Children and Young Peoples Services,CYPS - Local Authority,Transport,230007,Contract Hire,07-Mar-2013,2565616-F472/FEB/2013,750.00,EMMA`S CABS.
Children and Young Peoples Services,CYPS - Local Authority,Transport,230007,Contract Hire,07-Mar-2013,2565617-0536,"1,275.00",EN ROUTE TRAVEL.
Children and Young Peoples Services,CYPS - Local Authority,Transport,230007,Contract Hire,07-Mar-2013,2565617-0537,"2,088.30",EN ROUTE TRAVEL.
Children and Young Peoples Services,CYPS - Local Authority,Transport,230007,Contract Hire,07-Mar-2013,2565623-7,600.00,FINLEY`S TAXIS.
Children and Young Peoples Services,CYPS - Local Authority,Transport,230007,Contract Hire,07-Mar-2013,2565634-CA005-1/3/13,581.00,GARY JACKSON PRIVATE HIRE.
Children and Young Peoples Services,CYPS - Local Authority,Transport,230007,Contract Hire,07-Mar-2013,2565669-11,720.00,HORNDALE AJ`S TAXIS.
Children and Young Peoples Services,CYPS - Local Authority,Transport,230007,Contract Hire,07-Mar-2013,2565669-12,690.00,HORNDALE AJ`S TAXIS.
Children and Young Peoples Services,CYPS - Local Authority,Transport,230007,Contract Hire,07-Mar-2013,2565674-037,"1,520.00",I CLYDESDALE T/A BURNOPFIELD TAXIS.
Children and Young Peoples Services,CYPS - Local Authority,Transport,230007,Contract Hire,07-Mar-2013,2565674-040-28/2/13,"1,120.00",I CLYDESDALE T/A BURNOPFIELD TAXIS.
Children and Young Peoples Services,CYPS - Local Authority,Transport,230007,Contract Hire,07-Mar-2013,2565674-041-28/2/13,"1,329.18",I CLYDESDALE T/A BURNOPFIELD TAXIS.
Children and Young Peoples Services,CYPS - Local Authority,Transport,230007,Contract Hire,07-Mar-2013,2565674-042-28/2/13,"1,200.00",I CLYDESDALE T/A BURNOPFIELD TAXIS.
Children and Young Peoples Services,CYPS - Local Authority,Transport,230007,Contract Hire,07-Mar-2013,2565692-280,660.00,J YOUNG T/A VIP TAXIS.
Children and Young Peoples Services,CYPS - Local Authority,Transport,230007,Contract Hire,07-Mar-2013,2565692-281,"1,340.00",J YOUNG T/A VIP TAXIS.
Children and Young Peoples Services,CYPS - Local Authority,Transport,230007,Contract Hire,07-Mar-2013,2565692-282,870.00,J YOUNG T/A VIP TAXIS.
Children and Young Peoples Services,CYPS - Local Authority,Transport,230007,Contract Hire,07-Mar-2013,2565692-283,900.00,J YOUNG T/A VIP TAXIS.
Children and Young Peoples Services,CYPS - Local Authority,Transport,230007,Contract Hire,07-Mar-2013,2565692-284,"1,440.00",J YOUNG T/A VIP TAXIS.
Children and Young Peoples Services,CYPS - Local Authority,Transport,230007,Contract Hire,07-Mar-2013,2565692-285,945.00,J YOUNG T/A VIP TAXIS.
Children and Young Peoples Services,CYPS - Local Authority,Transport,230007,Contract Hire,07-Mar-2013,2565692-A013AFEB13,"1,380.00",J YOUNG T/A VIP TAXIS.
Children and Young Peoples Services,CYPS - Local Authority,Transport,230007,Contract Hire,07-Mar-2013,2565706-N193FEB13,910.00,K & R TAXIS.
Children and Young Peoples Services,CYPS - Local Authority,Transport,230007,Contract Hire,07-Mar-2013,2565708-6-28/2/13,"1,725.00",KD TAXIS.
Children and Young Peoples Services,CYPS - Local Authority,Transport,230007,Contract Hire,07-Mar-2013,2565709-006-28/2/13,525.00,KDH TAXIS.
Children and Young Peoples Services,CYPS - Local Authority,Transport,230007,Contract Hire,07-Mar-2013,2565710-S007006,"1,476.00",KEITH HAMMOND.
Children and Young Peoples Services,CYPS - Local Authority,Transport,230007,Contract Hire,07-Mar-2013,2565711-28213,975.00,KEITH STONELY.
Children and Young Peoples Services,CYPS - Local Authority,Transport,230007,Contract Hire,07-Mar-2013,2565714-10213,799.00,KEVIN EDMUNDSON.
Children and Young Peoples Services,CYPS - Local Authority,Transport,230007,Contract Hire,07-Mar-2013,2565724-038,"1,155.00",LEE`S TAXIS.
Children and Young Peoples Services,CYPS - Local Authority,Transport,230007,Contract Hire,07-Mar-2013,2565734-1426,"1,419.75",LOCAL TRANSPORT LTD.
Children and Young Peoples Services,CYPS - Local Authority,Transport,230007,Contract Hire,07-Mar-2013,2565734-1428,"1,874.40",LOCAL TRANSPORT LTD.
Children and Young Peoples Services,CYPS - Local Authority,Transport,230007,Contract Hire,07-Mar-2013,2565734-1430,"1,200.00",LOCAL TRANSPORT LTD.
Children and Young Peoples Services,CYPS - Local Authority,Transport,230007,Contract Hire,07-Mar-2013,2565734-1434,960.00,LOCAL TRANSPORT LTD.
Children and Young Peoples Services,CYPS - Local Authority,Transport,230007,Contract Hire,07-Mar-2013,2565741-02,828.00,LUKES TAXIS.
Children and Young Peoples Services,CYPS - Local Authority,Transport,230007,Contract Hire,07-Mar-2013,2565744-28,"1,903.00",M BUTCHER.
Children and Young Peoples Services,CYPS - Local Authority,Transport,230007,Contract Hire,07-Mar-2013,2565745-G2,"1,222.20",MA BODDY.
Children and Young Peoples Services,CYPS - Local Authority,Transport,230007,Contract Hire,07-Mar-2013,2565769-5-28/2/13,660.00,MR BW YOUNG.
Children and Young Peoples Services,CYPS - Local Authority,Transport,230007,Contract Hire,07-Mar-2013,2565770-056,"1,635.45",MR D KEMP T/A ACE EXECUTIVE.
Children and Young Peoples Services,CYPS - Local Authority,Transport,230007,Contract Hire,07-Mar-2013,2565771-30,504.00,MR DAVID CULLEN.
Children and Young Peoples Services,CYPS - Local Authority,Transport,230007,Contract Hire,07-Mar-2013,2565773-81-28/2/13,"1,808.10",MR GN ROBBINS T/A GNR MINIBUS HIRE.
Children and Young Peoples Services,CYPS - Local Authority,Transport,230007,Contract Hire,07-Mar-2013,2565773-82,675.00,MR GN ROBBINS T/A GNR MINIBUS HIRE.
Children and Young Peoples Services,CYPS - Local Authority,Transport,230007,Contract Hire,07-Mar-2013,2565777-AO39/02/13,"1,290.00",MR M ALLISON.
Children and Young Peoples Services,CYPS - Local Authority,Transport,230007,Contract Hire,07-Mar-2013,2565777-N071/02/13,"1,477.50",MR M ALLISON.
Children and Young Peoples Services,CYPS - Local Authority,Transport,230007,Contract Hire,07-Mar-2013,2565777-NO81/02/13,975.00,MR M ALLISON.
Children and Young Peoples Services,CYPS - Local Authority,Transport,230007,Contract Hire,07-Mar-2013,2565777-NO84/02/13,705.00,MR M ALLISON.
Children and Young Peoples Services,CYPS - Local Authority,Transport,230007,Contract Hire,07-Mar-2013,2565786-31,"1,098.45",N FORBES.
Children and Young Peoples Services,CYPS - Local Authority,Transport,230007,Contract Hire,07-Mar-2013,2565786-32-28/2/13,840.00,N FORBES.
Children and Young Peoples Services,CYPS - Local Authority,Transport,230007,Contract Hire,07-Mar-2013,2565786-33,840.00,N FORBES.
Children and Young Peoples Services,CYPS - Local Authority,Transport,230007,Contract Hire,07-Mar-2013,2565799-2368,"1,950.00",NIGHTINGALE COACHES.
Children and Young Peoples Services,CYPS - Local Authority,Transport,230007,Contract Hire,07-Mar-2013,2565799-2369,"1,650.00",NIGHTINGALE COACHES.
Children and Young Peoples Services,CYPS - Local Authority,Transport,230007,Contract Hire,07-Mar-2013,2565799-2370,"2,025.00",NIGHTINGALE COACHES.
Children and Young Peoples Services,CYPS - Local Authority,Transport,230007,Contract Hire,07-Mar-2013,2565799-2371,"2,235.00",NIGHTINGALE COACHES.
Children and Young Peoples Services,CYPS - Local Authority,Transport,230007,Contract Hire,07-Mar-2013,2565799-2372,"2,235.00",NIGHTINGALE COACHES.
Children and Young Peoples Services,CYPS - Local Authority,Transport,230007,Contract Hire,07-Mar-2013,2565799-2373,"1,875.00",NIGHTINGALE COACHES.
Children and Young Peoples Services,CYPS - Local Authority,Transport,230007,Contract Hire,07-Mar-2013,2565799-2374,"2,100.00",NIGHTINGALE COACHES.
Children and Young Peoples Services,CYPS - Local Authority,Transport,230007,Contract Hire,07-Mar-2013,2565799-2384,560.00,NIGHTINGALE COACHES.
Children and Young Peoples Services,CYPS - Local Authority,Transport,230007,Contract Hire,07-Mar-2013,2565823-1153,"1,800.00",PAUL WATSON TRAVEL.
Children and Young Peoples Services,CYPS - Local Authority,Transport,230007,Contract Hire,07-Mar-2013,2565823-1154,735.00,PAUL WATSON TRAVEL.
Children and Young Peoples Services,CYPS - Local Authority,Transport,230007,Contract Hire,07-Mar-2013,2565823-1155,"1,950.00",PAUL WATSON TRAVEL.
Children and Young Peoples Services,CYPS - Local Authority,Transport,230007,Contract Hire,07-Mar-2013,2565823-1156,"2,025.00",PAUL WATSON TRAVEL.
Children and Young Peoples Services,CYPS - Local Authority,Transport,230007,Contract Hire,07-Mar-2013,2565831-00330,643.50,PHILLIPS TAXIS LTD.
Children and Young Peoples Services,CYPS - Local Authority,Transport,230007,Contract Hire,07-Mar-2013,2565838-850,855.00,PODA LTD.
Children and Young Peoples Services,CYPS - Local Authority,Transport,230007,Contract Hire,07-Mar-2013,2565838-851,645.00,PODA LTD.
Children and Young Peoples Services,CYPS - Local Authority,Transport,230007,Contract Hire,07-Mar-2013,2565858-6A,"1,479.60",RAYNERS COACHES.
Children and Young Peoples Services,CYPS - Local Authority,Transport,230007,Contract Hire,07-Mar-2013,2565858-6C,"1,869.00",RAYNERS COACHES.
Children and Young Peoples Services,CYPS - Local Authority,Transport,230007,Contract Hire,07-Mar-2013,2565868-2088,713.10,RICHIES TAXIS.
Children and Young Peoples Services,CYPS - Local Authority,Transport,230007,Contract Hire,07-Mar-2013,2565873-6432,"2,777.40",ROBERTS OF WINGATE.
Children and Young Peoples Services,CYPS - Local Authority,Transport,230007,Contract Hire,07-Mar-2013,2565880-SO11/06,"1,350.00",S & S TRAVEL LTD.
Children and Young Peoples Services,CYPS - Local Authority,Transport,230007,Contract Hire,07-Mar-2013,2565880-W075/06,"1,260.00",S & S TRAVEL LTD.
Children and Young Peoples Services,CYPS - Local Authority,Transport,230007,Contract Hire,07-Mar-2013,2565886-38,"1,125.00",SAZ CABS.
Children and Young Peoples Services,CYPS - Local Authority,Transport,230007,Contract Hire,07-Mar-2013,2565901-F523-02-13,714.00,SIMON ELLIFF.
Children and Young Peoples Services,CYPS - Local Authority,Transport,230007,Contract Hire,07-Mar-2013,2565909-1896,"7,252.50",SNOWDON COACHES.
Children and Young Peoples Services,CYPS - Local Authority,Transport,230007,Contract Hire,07-Mar-2013,2565923-157,"1,497.00",STEPHEN MAUDE LTD T/A MAUDES COACHES.
Children and Young Peoples Services,CYPS - Local Authority,Transport,230007,Contract Hire,07-Mar-2013,2565923-158,"1,647.00",STEPHEN MAUDE LTD T/A MAUDES COACHES.
Children and Young Peoples Services,CYPS - Local Authority,Transport,230007,Contract Hire,07-Mar-2013,2565923-159,"1,440.00",STEPHEN MAUDE LTD T/A MAUDES COACHES.
Children and Young Peoples Services,CYPS - Local Authority,Transport,230007,Contract Hire,07-Mar-2013,2565923-160,870.00,STEPHEN MAUDE LTD T/A MAUDES COACHES.
Children and Young Peoples Services,CYPS - Local Authority,Transport,230007,Contract Hire,07-Mar-2013,2565925-STYL4322,"3,114.90",STYLE TRAVEL NORTH EAST.
Children and Young Peoples Services,CYPS - Local Authority,Transport,230007,Contract Hire,07-Mar-2013,2565995-000542,"1,245.00",WATSON OF SPENNYMOOR.
Children and Young Peoples Services,CYPS - Local Authority,Transport,230007,Contract Hire,07-Mar-2013,2565996-722,"1,500.00",WAYNE`S TAXIS.
Children and Young Peoples Services,CYPS - Local Authority,Transport,230007,Contract Hire,07-Mar-2013,2565996-723,"1,320.00",WAYNE`S TAXIS.
Children and Young Peoples Services,CYPS - Local Authority,Supplies and Services,384199,Miscellaneous Expenses,07-Mar-2013,2565794-SLINV/00000207,"11,158.00",NEW COLLEGE DURHAM.
Children and Young Peoples Services,CYPS - Local Authority,Supplies and Services,340001,Postages,07-Mar-2013,2565793-251207-52,"1,000.00",NEOPOST LTD CREDIFON RCB ACCOUNT.
Children and Young Peoples Services,CYPS - Local Authority,Transfer Payments,510026,School Children,07-Mar-2013,2565515-EDS/SUS/55,"5,000.00",BLUE SKY CHILDCARE.
Children and Young Peoples Services,CYPS - Local Authority,Transfer Payments,510034,School Children,07-Mar-2013,2565591-PP,882.58,DARLINGTON EDUCATION VILLAGE.
Children and Young Peoples Services,CYPS - Local Authority,Transfer Payments,510034,School Children,07-Mar-2013,2565672-PP,"1,246.00",HUMMERSKNOTT SCHOOL.
Children and Young Peoples Services,Dedicated Schools Grant,Supplies and Services,342013,Computers and Communications,07-Mar-2013,2565929-5372378,520.00,SUPPLIES TEAM LTD.
Children and Young Peoples Services,Dedicated Schools Grant,Transport,230005,Contract Hire,07-Mar-2013,2565600-014,"1,050.00",DUNCAN G CUMMINGS T/A DC TAXIS.
Children and Young Peoples Services,Dedicated Schools Grant,Transport,230005,Contract Hire,07-Mar-2013,2565973-GAP43,"1,270.00",TRIDENT TAXIS.
Children and Young Peoples Services,Dedicated Schools Grant,Transport,230007,Contract Hire,07-Mar-2013,2565616-9058/FEB/2013,810.00,EMMA`S CABS.
Children and Young Peoples Services,Dedicated Schools Grant,Transport,230007,Contract Hire,07-Mar-2013,2565753-0015,930.00,MARTIN TAYLOR TAXI.
Corporate Resources,ICT Services incl. Design and Print,Supplies and Services,304245,Equipment and Materials,07-Mar-2013,2565670-16780078,595.27,HOWARD SMITH PAPER GROUP.
Neighbourhood Services,Direct Services,Employees,080025,Agency Staff,07-Mar-2013,2565560-525332,"169,429.46",COMENSURA LTD.
Neighbourhood Services,Direct Services,Supplies and Services,304221,Equipment and Materials,07-Mar-2013,2565621-DCC65,900.00,FARNLEY FARM PARTNERS.
Neighbourhood Services,Direct Services,Third Party Payments,430100,Rendered by Private Contractors,07-Mar-2013,2565621-DCC64,580.00,FARNLEY FARM PARTNERS.
Neighbourhood Services,Direct Services,Transport,210057,Repair and Maintenance of Vehicles,07-Mar-2013,2565545-573015,806.56,CHATFIELDS.
Neighbourhood Services,Direct Services,Transport,210057,Repair and Maintenance of Vehicles,07-Mar-2013,2565607-S179932,566.48,ECON ENGINEERING LTD.
Neighbourhood Services,Direct Services,Supplies and Services,338078,Services,07-Mar-2013,2565852-3120,"5,088.20",QW SECURITY LTD.
Neighbourhood Services,Direct Services,Stock,926004,Stock,07-Mar-2013,2565505-25126339,688.55,BELL TRUCK SALES LTD.
Neighbourhood Services,Direct Services,Stock,926900,Stock in hand-Inventory system,07-Mar-2013,2565506-DUR/128908,712.80,BEMCO LTD.
Neighbourhood Services,Direct Services,Stock,926900,Stock in hand-Inventory system,07-Mar-2013,2565647-06/449621,841.44,GREENHAM TRADING LTD.
Neighbourhood Services,Direct Services,Stock,926900,Stock in hand-Inventory system,07-Mar-2013,2565826-4039559,"2,834.00",PDT SEALING SYSTEMS LTD.
Neighbourhood Services,Direct Services,Stock,926900,Stock in hand-Inventory system,07-Mar-2013,2565826-4039618,"2,834.00",PDT SEALING SYSTEMS LTD.
Neighbourhood Services,Direct Services,Stock,926900,Stock in hand-Inventory system,07-Mar-2013,2565870-42485,540.00,RIGHT OFFICE INTERIORS LTD.
Neighbourhood Services,Direct Services,Stock,926900,Stock in hand-Inventory system,07-Mar-2013,2565907-180620,"2,640.00",SNAPFAST.
Neighbourhood Services,Direct Services,Stock,926900,Stock in hand-Inventory system,07-Mar-2013,2565907-180621,"2,980.34",SNAPFAST.
Neighbourhood Services,Direct Services,Stock,926900,Stock in hand-Inventory system,07-Mar-2013,2565907-180646,"1,492.56",SNAPFAST.
Neighbourhood Services,"Heritage, Culture & Libraries",Construction Work,908105,Construction work,07-Mar-2013,2565842-PHP/16404/1,"500,000.00",PRIMARY HEALTH INVESTMENT PROPERTIES LTD.
Neighbourhood Services,"Heritage, Culture & Libraries",Supplies and Services,304040,Equipment and Materials,07-Mar-2013,2565586-2833394,"1,380.88",DAISY TELECOM LTD.
Neighbourhood Services,"Heritage, Culture & Libraries",Supplies and Services,338047,Services,07-Mar-2013,2565550-CT467-13,"2,600.00",CLARE TEAL PRODUCTIONS LTD.
Neighbourhood Services,"Heritage, Culture & Libraries",Supplies and Services,338047,Services,07-Mar-2013,2565830-4841,"2,255.65",PHIL MCINTYRE ENTERTAINMENTS LTD.
Neighbourhood Services,"Heritage, Culture & Libraries",Supplies and Services,338047,Services,07-Mar-2013,2565859-B6986,"2,909.87",RBM.
Neighbourhood Services,"Heritage, Culture & Libraries",Supplies and Services,338047,Services,07-Mar-2013,2565957-008,"5,216.16",THREE PIN PRODUCTIONS LTD.
Neighbourhood Services,Sport & Leisure,Supplies and Services,342051,Computers and Communications,07-Mar-2013,2566010-SUP0195,"1,961.40",XN LEISURE SYSTEMS LTD.
Neighbourhood Services,Technical Services,Construction Work,908105,Construction work,07-Mar-2013,2565575-15310,726.59,COUPE LINE LTD.
Neighbourhood Services,Technical Services,Supplies and Services,384199,Miscellaneous Expenses,07-Mar-2013,2565845-738,"4,000.00",PUPPET BROADCASTING CO.
RED HRA,HRA Capital,Construction Work,908105,Construction work,07-Mar-2013,2565702-INS3-DV,"1,676.01",JOHN WADE (HAULAGE) LTD.
RED HRA,HRA Capital,Construction Work,908105,Construction work,07-Mar-2013,2565994-50343/3,"303,518.56",WATES CONSTRUCTION LTD.
Regeneration & Economic Development,Economic Development and Housing,Cap Exp on Grants & Other Financial Assistance (REFCUS),918401,Capital grants,07-Mar-2013,2565743-2013/533,"7,943.00",M & R DEVELOPMENTS & CONTRACTORS LTD..
Adults Wellbeing and Health,Central Charges,Supplies and Services,342223,Computers and Communications,08-Mar-2013,2566261-OP/L600753,"1,600.00",SPECIALIST COMPUTER CENTRES PLC.
Adults Wellbeing and Health,Commissioning inc Supporting People,Supplies and Services,384540,Miscellaneous Expenses,08-Mar-2013,2566225-7854,"1,272.00",PA PROMOTIONS LTD.
Adults Wellbeing and Health,Head of Adults,Premises,106099,Centrally Controlled Rep and Maint,08-Mar-2013,2566143-7080303935,"15,333.53",HONEYWELL NOVAR SYSTEMS LTD.
Adults Wellbeing and Health,Head of Adults,Transport,230005,Contract Hire,08-Mar-2013,2566172-20213,"1,512.00",KEVIN EDMUNDSON.
Adults Wellbeing and Health,Head of Adults,Premises,108301,Service Repairs and Maintenance,08-Mar-2013,2566039-27748,972.00,AYCLIFFE FABRICATIONS LTD.
Adults Wellbeing and Health,Head of Adults,Supplies and Services,338365,Services,08-Mar-2013,2566181-1930,"2,505.92",LYNCH HEALTHCARE LTD.
Adults Wellbeing and Health,Head of Adults,Supplies and Services,338364,Services,08-Mar-2013,2566060-1851,"1,217.16",CARE ABILITY.
Adults Wellbeing and Health,Head of Adults,Supplies and Services,338364,Services,08-Mar-2013,2566060-5620,678.30,CARE ABILITY.
Adults Wellbeing and Health,Planning and Performance,Supplies and Services,352001,Conference Expenses,08-Mar-2013,2566115-395,"3,950.00",FIRST IN TRAINING LTD.
Adults Wellbeing and Health,Planning and Performance,Supplies and Services,352001,Conference Expenses,08-Mar-2013,2566200-AD8,600.00,NEDATS.
Adults Wellbeing and Health,Planning and Performance,Supplies and Services,352001,Conference Expenses,08-Mar-2013,2566200-AD9,600.00,NEDATS.
Adults Wellbeing and Health,Planning and Performance,Supplies and Services,352001,Conference Expenses,08-Mar-2013,2566224-16213,"4,907.00",OPUS PHARMACY SERVICES LTD.
Adults Wellbeing and Health,Planning and Performance,Supplies and Services,352001,Conference Expenses,08-Mar-2013,2566224-16215,"4,907.00",OPUS PHARMACY SERVICES LTD.
Adults Wellbeing and Health,Planning and Performance,Supplies and Services,352001,Conference Expenses,08-Mar-2013,2566231-FWDAPR13SM,760.00,PETER ROONEY T/A COLOURS COMMUNICATION TRAINING..
Adults Wellbeing and Health,Planning and Performance,Supplies and Services,384540,Miscellaneous Expenses,08-Mar-2013,2566242-SNE006097,"1,070.00",REAL RADIO (NORTH EAST) LTD.
Adults Wellbeing and Health,Planning and Performance,Supplies and Services,384540,Miscellaneous Expenses,08-Mar-2013,2566294-2873,"1,600.00",TYNE TEES MODELS LTD.
Adults Wellbeing and Health,Planning and Performance,Employees,040149,"Recruitment, Instruction and Training",08-Mar-2013,2566065-161,"4,560.00",C H B
Adults Wellbeing and Health,Planning and Performance,Employees,040149,"Recruitment, Instruction and Training",08-Mar-2013,2566224-16214,"4,907.00",OPUS PHARMACY SERVICES LTD.
Adults Wellbeing and Health,Planning and Performance,Employees,040149,"Recruitment, Instruction and Training",08-Mar-2013,2566224-16216,600.00,OPUS PHARMACY SERVICES LTD.
Adults Wellbeing and Health,Social Inclusion,Premises,106099,Centrally Controlled Rep and Maint,08-Mar-2013,2566075-464639,"23,782.96",CLEARWATER TECHNOLOGY LTD.
Adults Wellbeing and Health,Social Inclusion,Supplies and Services,304245,Equipment and Materials,08-Mar-2013,2566171-C28/2/2013,530.00,KEITH MATTHEWS T/A CEOLRED MONGER.
Assistant Chief Executive,Partnerships & Community Engagement Div.,Cap Exp on Grants & Other Financial Assistance (REFCUS),918004,Contributions to other bodies,08-Mar-2013,2566128-12NB/NB09-BASH021/014,"39,877.00",GROUNDWORK NORTH EAST.
Assistant Chief Executive,Partnerships & Community Engagement Div.,Cap Exp on Grants & Other Financial Assistance (REFCUS),918004,Contributions to other bodies,08-Mar-2013,2566303-12NB-3TWN037,"2,000.00",WEST DURHAM YOUTH & COMMUNITY RESOURCE.
Assistant Chief Executive,Partnerships & Community Engagement Div.,Supplies and Services,384086,Miscellaneous Expenses,08-Mar-2013,2566167-12NB-STAN035,"1,459.00",JUST FOR WOMEN CENTRE.
Assistant Chief Executive,Partnerships & Community Engagement Div.,Supplies and Services,384086,Miscellaneous Expenses,08-Mar-2013,2566274-12NB-TEES024,"4,000.00",TEESDALE YMCA.
Assistant Chief Executive,Partnerships & Community Engagement Div.,Supplies and Services,384700,Miscellaneous Expenses,08-Mar-2013,2566017-STANPB13-14,"6,623.00",2ND ANNFIELD PLAIN SCOUT GROUP.
Assistant Chief Executive,Partnerships & Community Engagement Div.,Supplies and Services,384700,Miscellaneous Expenses,08-Mar-2013,2566099-TTP,"2,290.75",DURHAM CITY FORUM LTD.
Assistant Chief Executive,Partnerships & Community Engagement Div.,Transfer Payments,525030,Other,08-Mar-2013,2566174-12AB-DVLY014,"5,000.00",LEARNING ABILITIES TV.
Children and Young Peoples Services,CYPS - Local Authority,Premises,106099,Centrally Controlled Rep and Maint,08-Mar-2013,2566146-114291,"1,150.00",HUTCHINSON DRAINAGE LTD.
Children and Young Peoples Services,CYPS - Local Authority,Premises,106099,Centrally Controlled Rep and Maint,08-Mar-2013,2566146-114574,"1,440.00",HUTCHINSON DRAINAGE LTD.
Children and Young Peoples Services,CYPS - Local Authority,Premises,145023,Cleaning and Domestic Supplies,08-Mar-2013,2566300-WS/13/02/003,627.00,WATER SOLUTIONS (EUROPE) LTD.
Children and Young Peoples Services,CYPS - Local Authority,Transport,230007,Contract Hire,08-Mar-2013,2566022-05/13,780.00,ADVANCE TRAVEL.
Children and Young Peoples Services,CYPS - Local Authority,Transport,230007,Contract Hire,08-Mar-2013,2566061-344,870.00,CARE FREE PRIVATE HIRE.
Children and Young Peoples Services,CYPS - Local Authority,Transport,230007,Contract Hire,08-Mar-2013,2566077-FEB001,900.00,CM TAXIS.
Children and Young Peoples Services,CYPS - Local Authority,Transport,230007,Contract Hire,08-Mar-2013,2566080-E035,"1,582.50",COLIN FRANKS T/A FRANKS COACHES.
Children and Young Peoples Services,CYPS - Local Authority,Transport,230007,Contract Hire,08-Mar-2013,2566080-E042C02,"1,495.00",COLIN FRANKS T/A FRANKS COACHES.
Children and Young Peoples Services,CYPS - Local Authority,Transport,230007,Contract Hire,08-Mar-2013,2566258-1895,"2,760.00",SNOWDON COACHES.
Children and Young Peoples Services,CYPS - Local Authority,Supplies and Services,304259,Equipment and Materials,08-Mar-2013,2566134-GC00009429,510.50,HARLOW PRINTING LTD.
Children and Young Peoples Services,CYPS - Local Authority,Supplies and Services,308011,Furniture,08-Mar-2013,2566309-496105597,545.00,YORKSHIRE PURCHASING ORGANISATION.
Children and Young Peoples Services,CYPS - Local Authority,Supplies and Services,364999,Grants to Voluntary Organisations,08-Mar-2013,2566218-17285,675.00,OCN NORTH EAST REGION.
Children and Young Peoples Services,CYPS - Local Authority,Supplies and Services,384199,Miscellaneous Expenses,08-Mar-2013,2566206-SLINV/00000208,"19,680.00",NEW COLLEGE DURHAM.
Children and Young Peoples Services,CYPS - Local Authority,Supplies and Services,384199,Miscellaneous Expenses,08-Mar-2013,2566283-1903,"9,375.00",TINARTS.
Children and Young Peoples Services,CYPS - Local Authority,Supplies and Services,340001,Postages,08-Mar-2013,2566203-DB1012510164,"1,000.00",NEOPOST LTD CREDIFON RCB ACCOUNT.
Children and Young Peoples Services,CYPS - Local Authority,Third Party Payments,479101,Purchase of Care,08-Mar-2013,2566078-3139425,"7,402.67",CO DURHAM & DARLINGTON NHS FOUNDATION TRUST.
Children and Young Peoples Services,CYPS - Local Authority,Transfer Payments,510026,School Children,08-Mar-2013,2566178-EDS/SUS/054,"11,608.04",LITTLE BUNDLES OF MURTON LTD.
Children and Young Peoples Services,CYPS - Local Authority,Transfer Payments,510032,School Children,08-Mar-2013,2566108-ACT0008455,"13,997.10",EMERALD NURSERY.
Children and Young Peoples Services,CYPS - Local Authority,Premises,108099,Service Repairs and Maintenance,08-Mar-2013,2566021-22597259-61,520.00,ADT FIRE & SECURITY PLC.
Children and Young Peoples Services,CYPS - Local Authority,Premises,108099,Service Repairs and Maintenance,08-Mar-2013,2566143-7080308806,"15,460.71",HONEYWELL NOVAR SYSTEMS LTD.
Children and Young Peoples Services,CYPS - Local Authority,Supplies and Services,338099,Services,08-Mar-2013,2566279-2437,700.00,THE WORK PLACE (AYCLIFFE) LTD.
Children and Young Peoples Services,Dedicated Schools Grant,Transport,230005,Contract Hire,08-Mar-2013,2566022-04/12,996.00,ADVANCE TRAVEL.
Children and Young Peoples Services,Dedicated Schools Grant,Supplies and Services,304999,Equipment and Materials,08-Mar-2013,2566181-1975,"1,054.00",LYNCH HEALTHCARE LTD.
Corporate Resources,Financing- Resources,Supplies and Services,384199,Miscellaneous Expenses,08-Mar-2013,2566049-101196,"29,900.00",BEYOND SYSTEMS.
Corporate Resources,Financing- Resources,Supplies and Services,384199,Miscellaneous Expenses,08-Mar-2013,2566058-92859762,"2,761.50",CAPITA BUSINESS SERVICES LTD.
Corporate Resources,Financing- Resources,Employees,040149,"Recruitment, Instruction and Training",08-Mar-2013,2566169-SINV13-019252,"1,361.67",KAPLAN FINANCIAL LTD.
Corporate Resources,ICT Services incl. Design and Print,"Vehicles, Equipment, Furniture and Fittings",912701,Computer equipment,08-Mar-2013,2566041-14046828,"2,470.00",AZZURRI COMMUNICATIONS LTD.
Corporate Resources,ICT Services incl. Design and Print,"Vehicles, Equipment, Furniture and Fittings",912701,Computer equipment,08-Mar-2013,2566152-1217520,"1,923.23",INSIGHT DIRECT (UK) LTD.
Corporate Resources,ICT Services incl. Design and Print,Supplies and Services,342033,Computers and Communications,08-Mar-2013,2566064-HR13-5851,719.00,CELERITY LTD.
Corporate Resources,ICT Services incl. Design and Print,Supplies and Services,304245,Equipment and Materials,08-Mar-2013,2566308-968437646,828.00,XEROX OFFICE SUPPLIES.
Corporate Resources,ICT Services incl. Design and Print,Supplies and Services,304303,Equipment and Materials,08-Mar-2013,2566129-INV0148190,"1,137.00",GV MULTI MEDIA LTD.
Corporate Resources,ICT Services incl. Design and Print,Stock,926900,Stock in hand-Inventory system,08-Mar-2013,2566152-1217677,"1,320.00",INSIGHT DIRECT (UK) LTD.
Corporate Resources,ICT Services incl. Design and Print,Supplies and Services,344033,Telephones,08-Mar-2013,2566272-04556830,557.28,TALKTALK BUSINESS.
Corporate Resources,Legal & Democratic Services,Supplies and Services,332047,"Printing, Stationery and Gen Off Exps",08-Mar-2013,2566269-5419397,894.86,SUPPLIES TEAM LTD.
Neighbourhood Services,Direct Services,Premises,106099,Centrally Controlled Rep and Maint,08-Mar-2013,2566021-22811556-61,"1,514.37",ADT FIRE & SECURITY PLC.
Neighbourhood Services,Direct Services,Premises,106099,Centrally Controlled Rep and Maint,08-Mar-2013,2566021-22819394-61,799.26,ADT FIRE & SECURITY PLC.
Neighbourhood Services,Direct Services,Premises,106099,Centrally Controlled Rep and Maint,08-Mar-2013,2566072-3865415,716.00,CHUBB ELECTRONIC SECURITY SYSTEMS LTD.
Neighbourhood Services,Direct Services,Premises,106099,Centrally Controlled Rep and Maint,08-Mar-2013,2566138-91193,755.04,HEPSCOTT WATER SYSTEMS LTD.
Neighbourhood Services,Direct Services,Premises,106099,Centrally Controlled Rep and Maint,08-Mar-2013,2566148-6297,900.00,HYGIENIC MAINTENANCE LTD.
Neighbourhood Services,Direct Services,Debtors,930046,Debtor-leasing,08-Mar-2013,2566211-225943,"34,501.00",NORTH EAST TRUCK & VAN LTD.
Neighbourhood Services,Direct Services,Debtors,930046,Debtor-leasing,08-Mar-2013,2566211-225944,"34,501.00",NORTH EAST TRUCK & VAN LTD.
Neighbourhood Services,Direct Services,Supplies and Services,304221,Equipment and Materials,08-Mar-2013,2566070-103740,"2,836.35",CHAS LONG & SON (AGGREGATES) LTD.
Neighbourhood Services,Direct Services,Supplies and Services,304221,Equipment and Materials,08-Mar-2013,2566226-202708,550.00,PALINTEST LTD.
Neighbourhood Services,Direct Services,Supplies and Services,304221,Equipment and Materials,08-Mar-2013,2566235-165230,"1,326.12",PLUMBING TRADE SUPPLIES LTD.
Neighbourhood Services,Direct Services,Supplies and Services,304221,Equipment and Materials,08-Mar-2013,2566235-165231,"1,354.13",PLUMBING TRADE SUPPLIES LTD.
Neighbourhood Services,Direct Services,Supplies and Services,304221,Equipment and Materials,08-Mar-2013,2566235-4120146692,554.40,PLUMBING TRADE SUPPLIES LTD.
Neighbourhood Services,Direct Services,Supplies and Services,304221,Equipment and Materials,08-Mar-2013,2566235-4120146765,836.91,PLUMBING TRADE SUPPLIES LTD.
Neighbourhood Services,Direct Services,Supplies and Services,304221,Equipment and Materials,08-Mar-2013,2566235-4120146802,624.06,PLUMBING TRADE SUPPLIES LTD.
Neighbourhood Services,Direct Services,Supplies and Services,304221,Equipment and Materials,08-Mar-2013,2566293-47767,"5,120.00",TURF CARE SPECIALISTS LTD.
Neighbourhood Services,Direct Services,Supplies and Services,304221,Equipment and Materials,08-Mar-2013,2566307-79892050,573.01,WOLSELEY UK LTD.
Neighbourhood Services,Direct Services,Supplies and Services,304221,Equipment and Materials,08-Mar-2013,2566307-80031150,696.83,WOLSELEY UK LTD.
Neighbourhood Services,Direct Services,Supplies and Services,304221,Equipment and Materials,08-Mar-2013,2566307-80031154,792.51,WOLSELEY UK LTD.
Neighbourhood Services,Direct Services,Supplies and Services,304259,Equipment and Materials,08-Mar-2013,2566033-1010,"1,280.00",ARBTECH MACHINERY LTD.
Neighbourhood Services,Direct Services,Supplies and Services,304259,Equipment and Materials,08-Mar-2013,2566219-CN18028253,972.66,OCS GROUP UK LTD T/A CANNON HYGIENE.
Neighbourhood Services,Direct Services,Supplies and Services,304259,Equipment and Materials,08-Mar-2013,2566219-CN18201115,758.40,OCS GROUP UK LTD T/A CANNON HYGIENE.
Neighbourhood Services,Direct Services,Supplies and Services,304259,Equipment and Materials,08-Mar-2013,2566257-023170,631.40,SMP (PLAYGROUNDS) LTD.
Neighbourhood Services,Direct Services,Supplies and Services,304998,Equipment and Materials,08-Mar-2013,2566098-AC00044,"2,000.00",DRIVING STANDARDS AGENCY.
Neighbourhood Services,Direct Services,Third Party Payments,430100,Rendered by Private Contractors,08-Mar-2013,2566245-17869,"1,965.00",RJ UTILITY SERVICES LTD.
Neighbourhood Services,Direct Services,Third Party Payments,430100,Rendered by Private Contractors,08-Mar-2013,2566304-32443,"1,220.50",WILLOWCRETE MFG CO LTD.
Neighbourhood Services,Direct Services,Third Party Payments,430100,Rendered by Private Contractors,08-Mar-2013,2566304-32444,"4,895.25",WILLOWCRETE MFG CO LTD.
Neighbourhood Services,Direct Services,Third Party Payments,430100,Rendered by Private Contractors,08-Mar-2013,2566310-27312,727.95,YWC GROUP LTD.
Neighbourhood Services,Direct Services,Premises,108099,Service Repairs and Maintenance,08-Mar-2013,2566143-7080308808,"5,564.45",HONEYWELL NOVAR SYSTEMS LTD.
Neighbourhood Services,Direct Services,Stock,926900,Stock in hand-Inventory system,08-Mar-2013,2566153-401259,"2,387.84",INSTARMAC GROUP PLC.
Neighbourhood Services,Direct Services,Stock,926900,Stock in hand-Inventory system,08-Mar-2013,2566153-INVOICE,895.44,INSTARMAC GROUP PLC.
Neighbourhood Services,Direct Services,Stock,926900,Stock in hand-Inventory system,08-Mar-2013,2566229-4039708,"2,834.00",PDT SEALING SYSTEMS LTD.
Neighbourhood Services,Direct Services,Stock,926900,Stock in hand-Inventory system,08-Mar-2013,2566269-5690418,568.00,SUPPLIES TEAM LTD.
Neighbourhood Services,Direct Services,Stock,926900,Stock in hand-Inventory system,08-Mar-2013,2566282-SIP-122376,"1,380.00",THYSSENKRUPP ENCASA LTD.
Neighbourhood Services,Direct Services,Stock,926900,Stock in hand-Inventory system,08-Mar-2013,2566307-79892067,750.46,WOLSELEY UK LTD.
Neighbourhood Services,Direct Services,Stock,926900,Stock in hand-Inventory system,08-Mar-2013,2566307-79892131,691.05,WOLSELEY UK LTD.
Neighbourhood Services,Direct Services,Stock,926900,Stock in hand-Inventory system,08-Mar-2013,2566307-79892132,691.05,WOLSELEY UK LTD.
Neighbourhood Services,Direct Services,Stock,926900,Stock in hand-Inventory system,08-Mar-2013,2566307-79995849,659.07,WOLSELEY UK LTD.
Neighbourhood Services,Direct Services,Stock,926900,Stock in hand-Inventory system,08-Mar-2013,2566307-79995927,"1,804.43",WOLSELEY UK LTD.
Neighbourhood Services,Direct Services,Stock,926900,Stock in hand-Inventory system,08-Mar-2013,2566307-79995961,739.43,WOLSELEY UK LTD.
Neighbourhood Services,"Environment,Health & Consumer Protection",Premises,106099,Centrally Controlled Rep and Maint,08-Mar-2013,2566280-NE232260,"13,796.70",THOMPSONS OF PRUDHOE LTD.
Neighbourhood Services,"Environment,Health & Consumer Protection",Third Party Payments,430100,Rendered by Private Contractors,08-Mar-2013,2566114-INV/FEB/13,"1,028.58",FAIRMEADOW SERVICES LTD.
Neighbourhood Services,"Environment,Health & Consumer Protection",Supplies and Services,338013,Services,08-Mar-2013,2566233-48033,725.43,PHOENIX SECURITY UK LTD.
Neighbourhood Services,"Environment,Health & Consumer Protection",Supplies and Services,338027,Services,08-Mar-2013,2566233-47779,725.43,PHOENIX SECURITY UK LTD.
Neighbourhood Services,"Heritage, Culture & Libraries",Premises,150005,Apportioned Exps of Operational Blds,08-Mar-2013,2566238-PHP/16404/2,"40,827.00",PRIMARY HEALTH INVESTMENT PROPERTIES LTD.
Neighbourhood Services,"Heritage, Culture & Libraries",Premises,106099,Centrally Controlled Rep and Maint,08-Mar-2013,2566143-7080302966,"1,750.00",HONEYWELL NOVAR SYSTEMS LTD.
Neighbourhood Services,"Heritage, Culture & Libraries",Premises,106099,Centrally Controlled Rep and Maint,08-Mar-2013,2566143-7080308807,"9,117.18",HONEYWELL NOVAR SYSTEMS LTD.
Neighbourhood Services,"Heritage, Culture & Libraries",Premises,106099,Centrally Controlled Rep and Maint,08-Mar-2013,2566143-7080308809,"3,124.63",HONEYWELL NOVAR SYSTEMS LTD.
Neighbourhood Services,"Heritage, Culture & Libraries",Supplies and Services,342225,Computers and Communications,08-Mar-2013,2566152-1217276,690.84,INSIGHT DIRECT (UK) LTD.
Neighbourhood Services,"Heritage, Culture & Libraries",Supplies and Services,364999,Grants to Voluntary Organisations,08-Mar-2013,2566139-553,"2,344.00",HIGHLIGHTS PRODUCTIONS LTD.
Neighbourhood Services,"Heritage, Culture & Libraries",Supplies and Services,364999,Grants to Voluntary Organisations,08-Mar-2013,2566275-1239,"12,900.00",THE FORGE.
Neighbourhood Services,"Heritage, Culture & Libraries",Supplies and Services,384199,Miscellaneous Expenses,08-Mar-2013,2566194-56432,700.00,MR MT HUGHES T/A THE YOUNG`UNS.
Neighbourhood Services,"Heritage, Culture & Libraries",Supplies and Services,384199,Miscellaneous Expenses,08-Mar-2013,2566207-498,"25,375.00",NIGEL BOONHAM.
Neighbourhood Services,"Heritage, Culture & Libraries",Supplies and Services,384199,Miscellaneous Expenses,08-Mar-2013,2566289-OrderNo1246312,"1,735.00",TRAVELEX GLOBAL BUSINESS PAYMENTS LTD.
Neighbourhood Services,"Heritage, Culture & Libraries",Supplies and Services,384199,Miscellaneous Expenses,08-Mar-2013,2566289-OrderNo1246315,"3,045.00",TRAVELEX GLOBAL BUSINESS PAYMENTS LTD.
Neighbourhood Services,"Heritage, Culture & Libraries",Supplies and Services,312013,"Newspapers, Books and Periodicals",08-Mar-2013,2566037-3794136,591.47,ASKEWS & HOLTS LIBRARY SERVICES LTD.
Neighbourhood Services,"Heritage, Culture & Libraries",Third Party Payments,415009,Rendered by Joint Authorities,08-Mar-2013,2566074-2809006373,"45,369.00",CITY OF SUNDERLAND.
Neighbourhood Services,"Heritage, Culture & Libraries",Premises,115125,Repairs to Grounds,08-Mar-2013,2566131-00044,700.00,HAMSTERLEY TREE SURGEONS.
Neighbourhood Services,"Heritage, Culture & Libraries",Supplies and Services,338047,Services,08-Mar-2013,2566081-6288/M,"2,377.45",COMEDY STORE MANAGEMENT.
Neighbourhood Services,"Heritage, Culture & Libraries",Supplies and Services,338047,Services,08-Mar-2013,2566102-2/3/13,"1,847.88",DURHAM SINGERS.
Neighbourhood Services,Projects and Business services,Third Party Payments,430103,Rendered by Private Contractors,08-Mar-2013,2566054-CLAIM234/236,736.27,BRITISH HEART FOUNDATION.
Neighbourhood Services,Projects and Business services,Third Party Payments,430103,Rendered by Private Contractors,08-Mar-2013,2566083-RUC-11-13,"2,683.97",CONSETT YMCA.
Neighbourhood Services,Projects and Business services,Third Party Payments,430103,Rendered by Private Contractors,08-Mar-2013,2566104-RUC-14,972.76,EAST DURHAM PARTNERSHIP.
Neighbourhood Services,Sport & Leisure,Premises,106099,Centrally Controlled Rep and Maint,08-Mar-2013,2566287-1574,"1,347.50",TOTAL FIRE MAINTENANCE LTD.
Neighbourhood Services,Sport & Leisure,Supplies and Services,304259,Equipment and Materials,08-Mar-2013,2566035-687,"3,841.00",ASA JAMES.
Neighbourhood Services,Sport & Leisure,Supplies and Services,304259,Equipment and Materials,08-Mar-2013,2566129-INV0148197,780.00,GV MULTI MEDIA LTD.
Neighbourhood Services,Sport & Leisure,Supplies and Services,384700,Miscellaneous Expenses,08-Mar-2013,2566262-SI-326,546.00,SPORT WORKS LTD.
Neighbourhood Services,Sport & Leisure,"Vehicles, Equipment, Furniture and Fittings",912529,Purchase-equipment,08-Mar-2013,2566184-12464,"33,820.00",MAVERICK INDUSTRIES LTD.
Neighbourhood Services,Sport & Leisure,"Vehicles, Equipment, Furniture and Fittings",912529,Purchase-equipment,08-Mar-2013,2566250-PHAN-8A7DN7,605.00,SHADFORTH VILLAGE COMMUNITY ASSOCIATION.
Neighbourhood Services,Technical Services,Third Party Payments,460157,Contract Payments,08-Mar-2013,2566136-SIN7033822,"5,135.00",HCS DRAIN SERVICES LTD.
Neighbourhood Services,Technical Services,Third Party Payments,460151,Contract Payments,08-Mar-2013,2566153-401258,735.28,INSTARMAC GROUP PLC.
Neighbourhood Services,Technical Services,Third Party Payments,460350,Contract Payments,08-Mar-2013,2566117-2061,"1,548.40",FORSTER HALL & SONS.
Neighbourhood Services,Technical Services,Third Party Payments,460350,Contract Payments,08-Mar-2013,2566149-2008,"1,587.00",IAN C LIDDLE.
Neighbourhood Services,Technical Services,Third Party Payments,460350,Contract Payments,08-Mar-2013,2566158-1026-20/2/13,707.00,J & JG GILL & SONS LTD.
Neighbourhood Services,Technical Services,Third Party Payments,460350,Contract Payments,08-Mar-2013,2566158-1027-20/2/13,562.50,J & JG GILL & SONS LTD.
Neighbourhood Services,Technical Services,Third Party Payments,460350,Contract Payments,08-Mar-2013,2566158-1028,"2,030.50",J & JG GILL & SONS LTD.
Neighbourhood Services,Technical Services,Third Party Payments,460350,Contract Payments,08-Mar-2013,2566159-66,"1,407.50",JD ATKINSON.
Neighbourhood Services,Technical Services,Supplies and Services,304221,Equipment and Materials,08-Mar-2013,2566018-LLI271614,"1,915.67",A THOMPSON & SONS LTD.
Neighbourhood Services,Technical Services,Supplies and Services,304221,Equipment and Materials,08-Mar-2013,2566023-17715259,842.34,AGGREGATE INDUSTRIES UK LTD.
Neighbourhood Services,Technical Services,Supplies and Services,304221,Equipment and Materials,08-Mar-2013,2566024-17715260,"1,020.10",AGGREGATE INDUSTRIES UK LTD.
Neighbourhood Services,Technical Services,Supplies and Services,304221,Equipment and Materials,08-Mar-2013,2566024-17715261,725.55,AGGREGATE INDUSTRIES UK LTD.
Neighbourhood Services,Technical Services,Supplies and Services,304221,Equipment and Materials,08-Mar-2013,2566024-17715262,568.30,AGGREGATE INDUSTRIES UK LTD.
Neighbourhood Services,Technical Services,Supplies and Services,304221,Equipment and Materials,08-Mar-2013,2566024-17715264,"3,067.34",AGGREGATE INDUSTRIES UK LTD.
Neighbourhood Services,Technical Services,Supplies and Services,304221,Equipment and Materials,08-Mar-2013,2566024-17715265,"1,004.00",AGGREGATE INDUSTRIES UK LTD.
Neighbourhood Services,Technical Services,Supplies and Services,304221,Equipment and Materials,08-Mar-2013,2566024-17719168,"1,030.00",AGGREGATE INDUSTRIES UK LTD.
Neighbourhood Services,Technical Services,Supplies and Services,304221,Equipment and Materials,08-Mar-2013,2566024-17724957,842.40,AGGREGATE INDUSTRIES UK LTD.
Neighbourhood Services,Technical Services,Supplies and Services,304221,Equipment and Materials,08-Mar-2013,2566059-CRT1033,"2,320.00",CARBON REDUCTION TECHNOLOGY LTD.
Neighbourhood Services,Technical Services,Supplies and Services,304221,Equipment and Materials,08-Mar-2013,2566140-IN016891,"1,788.08",HILL & SMITH LTD.
Neighbourhood Services,Technical Services,Supplies and Services,304221,Equipment and Materials,08-Mar-2013,2566237-049544,"2,413.08",PREMIER WASTE MANAGEMENT LTD.
Neighbourhood Services,Technical Services,Supplies and Services,304221,Equipment and Materials,08-Mar-2013,2566251-10147,"2,447.80",SHEFFIELD PROCUREMENT SERVICES.
Neighbourhood Services,Technical Services,Supplies and Services,304221,Equipment and Materials,08-Mar-2013,2566253-25215180563,"1,413.43",SIG FIXINGS.
Neighbourhood Services,Technical Services,Supplies and Services,304221,Equipment and Materials,08-Mar-2013,2566256-4517,"4,988.00",SLIMBRIDGE WETLAND PLANTS T/A JPR ENVIRONMENTAL.
Neighbourhood Services,Technical Services,Supplies and Services,304221,Equipment and Materials,08-Mar-2013,2566273-9029332377,741.85,TARMAC LTD.
Neighbourhood Services,Technical Services,Supplies and Services,304221,Equipment and Materials,08-Mar-2013,2566273-9029349187,761.22,TARMAC LTD.
Neighbourhood Services,Technical Services,Supplies and Services,304221,Equipment and Materials,08-Mar-2013,2566304-32465,"4,997.00",WILLOWCRETE MFG CO LTD.
Neighbourhood Services,Technical Services,Supplies and Services,304221,Equipment and Materials,08-Mar-2013,2566304-32466,"4,997.00",WILLOWCRETE MFG CO LTD.
Neighbourhood Services,Technical Services,Third Party Payments,430100,Rendered by Private Contractors,08-Mar-2013,2566136-SIN7033785,"2,925.00",HCS DRAIN SERVICES LTD.
Neighbourhood Services,Technical Services,Third Party Payments,430100,Rendered by Private Contractors,08-Mar-2013,2566136-SIN7033865,"5,267.50",HCS DRAIN SERVICES LTD.
Neighbourhood Services,Technical Services,Third Party Payments,430100,Rendered by Private Contractors,08-Mar-2013,2566136-SIN7033891,"2,925.00",HCS DRAIN SERVICES LTD.
Neighbourhood Services,Technical Services,Stock,926004,Stock,08-Mar-2013,2566076-90124329,"1,518.21",CLEVELAND POTASH LTD.
RED HRA,HRA Capital,Construction Work,908105,Construction work,08-Mar-2013,2566267-LTS/534/009,"14,254.46",SUNTER LTD.
Regeneration & Economic Development,Economic Development and Housing,Cap Exp on Grants & Other Financial Assistance (REFCUS),918401,Capital grants,08-Mar-2013,2566087-104,"2,893.08",CRAIG PATTERSON T/A LET ME GET YOU WET.
Regeneration & Economic Development,Economic Development and Housing,Cap Exp on Grants & Other Financial Assistance (REFCUS),918401,Capital grants,08-Mar-2013,2566168-DFG396/12,"37,834.75",K HARRISON (BUILDER) NE LTD.
Regeneration & Economic Development,Economic Development and Housing,Cap Exp on Grants & Other Financial Assistance (REFCUS),918401,Capital grants,08-Mar-2013,2566173-LM194,"3,032.99",L & M  BUILDING SOLUTIONS LTD.
Regeneration & Economic Development,Economic Development and Housing,Cap Exp on Grants & Other Financial Assistance (REFCUS),918401,Capital grants,08-Mar-2013,2566201-DFG421/12,"3,755.00",NEIL BELL PLUMBERS HEATING & GAS INS.
Regeneration & Economic Development,Economic Development and Housing,Cap Exp on Grants & Other Financial Assistance (REFCUS),918401,Capital grants,08-Mar-2013,2566282-SIP-122355/56,"2,840.00",THYSSENKRUPP ENCASA LTD.
Regeneration & Economic Development,Economic Development and Housing,Premises,106099,Centrally Controlled Rep and Maint,08-Mar-2013,2566021-23038250-61,717.00,ADT FIRE & SECURITY PLC.
Regeneration & Economic Development,Economic Development and Housing,Premises,106099,Centrally Controlled Rep and Maint,08-Mar-2013,2566143-7080303033,"6,128.51",HONEYWELL NOVAR SYSTEMS LTD.
Regeneration & Economic Development,Economic Development and Housing,Premises,106099,Centrally Controlled Rep and Maint,08-Mar-2013,2566209-10021455,946.00,NORSTEAD.
Regeneration & Economic Development,Economic Development and Housing,Construction Work,908105,Construction work,08-Mar-2013,2566057-336111,766.76,BYTES SOFTWARE SERVICES.
Regeneration & Economic Development,Economic Development and Housing,Fees,901002,Professional fees,08-Mar-2013,2566025-1220,"1,500.00",ALISON CAFFYN.
Regeneration & Economic Development,Economic Development and Housing,Fees,901002,Professional fees,08-Mar-2013,2566266-NE120491-11,"1,500.00",SUMMERS INMAN.
Regeneration & Economic Development,Economic Development and Housing,Fees,901002,Professional fees,08-Mar-2013,2566311-INV-2498,"1,075.00",ZINE DESIGN LTD.
Regeneration & Economic Development,Economic Development and Housing,Premises,120009,Energy Costs,08-Mar-2013,2566217-NNO7D2BD,"1,434.56",NPOWER.
Regeneration & Economic Development,Economic Development and Housing,Premises,120009,Energy Costs,08-Mar-2013,2566217-NNO7D2BH,874.54,NPOWER.
Regeneration & Economic Development,Economic Development and Housing,Premises,120021,Energy Costs,08-Mar-2013,2566086-08009796,"1,303.89",CORONA ENERGY RETAIL 2 LTD.
Regeneration & Economic Development,Economic Development and Housing,Fees,901001,Internal fees,08-Mar-2013,2566281-SITRH/0005153,766.80,THREE RIVERS HOUSING ASSOCIATION LTD.
Regeneration & Economic Development,Economic Development and Housing,Third Party Payments,440999,Other Third Party Payments,08-Mar-2013,2566264-EB,"10,780.00",STONHAM HOUSING ASSOCIATION LTD.
Regeneration & Economic Development,Economic Development and Housing,Other Expenses,914006,Tenants Allowances,08-Mar-2013,2566186-HOMELOSS,"4,700.00",REDACTED - PAYMENT TO INDIVIDUAL
Regeneration & Economic Development,"Spatial Policy, Planning, Assets & Environment",Premises,120021,Energy Costs,08-Mar-2013,2566053-161301941,"1,438.82",BRITISH GAS BUSINESS.
Regeneration & Economic Development,"Spatial Policy, Planning, Assets & Environment",Supplies and Services,338027,Services,08-Mar-2013,2566107-0229,"6,930.00",ELVET CONSTRUCTION CONSULTANTS.
Regeneration & Economic Development,"Spatial Policy, Planning, Assets & Environment",Supplies and Services,338027,Services,08-Mar-2013,2566130-4031286,"5,000.00",GVA GRIMLEY LLP.
Regeneration & Economic Development,Transport,Construction Work,908202,Capital - Public Utilities - Telephones Services,08-Mar-2013,2566223-A117474,"1,244.00",OPENREACH.
Regeneration & Economic Development,Transport,Supplies and Services,304221,Equipment and Materials,08-Mar-2013,2566113-M13/36,"7,536.00",EXEGESIS SDM LTD.
Regeneration & Economic Development,Transport,Supplies and Services,384199,Miscellaneous Expenses,08-Mar-2013,2566179-JAN-FEB2013,"1,700.00",LIZ MILLION.
Adults Wellbeing and Health,Head of Adults,Transport,230005,Contract Hire,11-Mar-2013,2566321-0102,552.00,ABC & OUSTON CABS.
Adults Wellbeing and Health,Head of Adults,Transport,230005,Contract Hire,11-Mar-2013,2566367-0090-28/2/13,"1,200.00",BOBBY DOVE.
Adults Wellbeing and Health,Head of Adults,Transport,230005,Contract Hire,11-Mar-2013,2566411-201,"1,140.00",COLIN HOLMES.
Adults Wellbeing and Health,Head of Adults,Transport,230005,Contract Hire,11-Mar-2013,2566517-014,700.00,GS PEARSON.
Adults Wellbeing and Health,Head of Adults,Transport,230005,Contract Hire,11-Mar-2013,2566545-240,943.20,JDS PRIVATE HIRE DURHAM.
Adults Wellbeing and Health,Head of Adults,Transport,230005,Contract Hire,11-Mar-2013,2566652-294,720.00,PETERLEE EXECUTIVE CARS.
Adults Wellbeing and Health,Head of Adults,Transport,230005,Contract Hire,11-Mar-2013,2566654-0231,"1,260.00",PETER`S PRIVATE HIRE/PETER BEST.
Adults Wellbeing and Health,Head of Adults,Transport,230005,Contract Hire,11-Mar-2013,2566729-EAS020FEB2013,"3,111.00",TED WILFORD COACHES.
Adults Wellbeing and Health,Head of Adults,Transport,230005,Contract Hire,11-Mar-2013,2566738-68,608.00,THE TAXI CO.
Assistant Chief Executive,Partnerships & Community Engagement Div.,Supplies and Services,384085,Miscellaneous Expenses,11-Mar-2013,2566370-WILM24-12BLAJ25-12,536.00,BOWBURN BANNER GROUP.
Assistant Chief Executive,Partnerships & Community Engagement Div.,Supplies and Services,384085,Miscellaneous Expenses,11-Mar-2013,2566494-HODM07-12,"1,190.00",FRIENDS OF ANNFIELD PLAIN JUNIOR SCHOOL.
Assistant Chief Executive,Partnerships & Community Engagement Div.,Supplies and Services,384085,Miscellaneous Expenses,11-Mar-2013,2566722-WILSJ06-12,"1,350.00",TANFIELD LEA PARTNERSHIP.
Assistant Chief Executive,Partnerships & Community Engagement Div.,Supplies and Services,384700,Miscellaneous Expenses,11-Mar-2013,2566704-STANPB13-06,"11,750.00",SOUTH MOOR JUNIORS FOOTBALL CLUB.
Assistant Chief Executive,Partnerships & Community Engagement Div.,Supplies and Services,324117,Provisions,11-Mar-2013,2566719-RS,850.00,TA QUINN & SONS.
Children and Young Peoples Services,CYPS - Local Authority,Transport,230007,Contract Hire,11-Mar-2013,2566323-85-28/2/13,675.00,ABLE NOVAK TAXIS.
Children and Young Peoples Services,CYPS - Local Authority,Transport,230007,Contract Hire,11-Mar-2013,2566350-310,597.00,AT TAXIS LTD.
Children and Young Peoples Services,CYPS - Local Authority,Transport,230007,Contract Hire,11-Mar-2013,2566359-357,"1,168.80",BEELINE MINI BUSES.
Children and Young Peoples Services,CYPS - Local Authority,Transport,230007,Contract Hire,11-Mar-2013,2566359-358,"1,723.20",BEELINE MINI BUSES.
Children and Young Peoples Services,CYPS - Local Authority,Transport,230007,Contract Hire,11-Mar-2013,2566387-65-28/2/13,975.00,CASTLE CARS.
Children and Young Peoples Services,CYPS - Local Authority,Transport,230007,Contract Hire,11-Mar-2013,2566391-163,750.00,CENTRAL TAXIS (PETERLEE) LTD.
Children and Young Peoples Services,CYPS - Local Authority,Transport,230007,Contract Hire,11-Mar-2013,2566391-164,"1,155.00",CENTRAL TAXIS (PETERLEE) LTD.
Children and Young Peoples Services,CYPS - Local Authority,Transport,230007,Contract Hire,11-Mar-2013,2566399-CB021,"1,818.30",CHIPPERS TAXIS.
Children and Young Peoples Services,CYPS - Local Authority,Transport,230007,Contract Hire,11-Mar-2013,2566399-KJ006,936.00,CHIPPERS TAXIS.
Children and Young Peoples Services,CYPS - Local Authority,Transport,230007,Contract Hire,11-Mar-2013,2566399-MD011,"1,695.00",CHIPPERS TAXIS.
Children and Young Peoples Services,CYPS - Local Authority,Transport,230007,Contract Hire,11-Mar-2013,2566401-03/2013,840.00,CHRIS`S TAXI.
Children and Young Peoples Services,CYPS - Local Authority,Transport,230007,Contract Hire,11-Mar-2013,2566401-04/2013,"1,080.00",CHRIS`S TAXI.
Children and Young Peoples Services,CYPS - Local Authority,Transport,230007,Contract Hire,11-Mar-2013,2566403-43662,"1,050.00",CJ GRIERSON.
Children and Young Peoples Services,CYPS - Local Authority,Transport,230007,Contract Hire,11-Mar-2013,2566403-43663,"3,600.00",CJ GRIERSON.
Children and Young Peoples Services,CYPS - Local Authority,Transport,230007,Contract Hire,11-Mar-2013,2566404-10/W008FEB2013,"1,555.20",CLARKS MINIBUSES & TAXIS.
Children and Young Peoples Services,CYPS - Local Authority,Transport,230007,Contract Hire,11-Mar-2013,2566410-C/7447,"4,049.55",COCHRANES T/A KELVIN TRAVEL.
Children and Young Peoples Services,CYPS - Local Authority,Transport,230007,Contract Hire,11-Mar-2013,2566410-C/7448,"1,800.00",COCHRANES T/A KELVIN TRAVEL.
Children and Young Peoples Services,CYPS - Local Authority,Transport,230007,Contract Hire,11-Mar-2013,2566412-0000996,"1,240.00",COLORS TAXIS LTD.
Children and Young Peoples Services,CYPS - Local Authority,Transport,230007,Contract Hire,11-Mar-2013,2566415-131,"1,370.55",CONNORS MINI BUSES.
Children and Young Peoples Services,CYPS - Local Authority,Transport,230007,Contract Hire,11-Mar-2013,2566415-132,"1,336.65",CONNORS MINI BUSES.
Children and Young Peoples Services,CYPS - Local Authority,Transport,230007,Contract Hire,11-Mar-2013,2566415-134,"1,426.05",CONNORS MINI BUSES.
Children and Young Peoples Services,CYPS - Local Authority,Transport,230007,Contract Hire,11-Mar-2013,2566422-4003/02/13,"2,772.45",COUNTY COACHES.
Children and Young Peoples Services,CYPS - Local Authority,Transport,230007,Contract Hire,11-Mar-2013,2566422-4029/02/03,"1,417.35",COUNTY COACHES.
Children and Young Peoples Services,CYPS - Local Authority,Transport,230007,Contract Hire,11-Mar-2013,2566433-DZ006,720.00,D & Z TAXIS.
Children and Young Peoples Services,CYPS - Local Authority,Transport,230007,Contract Hire,11-Mar-2013,2566434-21,872.50,D CROOK.
Children and Young Peoples Services,CYPS - Local Authority,Transport,230007,Contract Hire,11-Mar-2013,2566435-1241,"1,237.50",DA TAXIS.
Children and Young Peoples Services,CYPS - Local Authority,Transport,230007,Contract Hire,11-Mar-2013,2566435-1242,"1,050.00",DA TAXIS.
Children and Young Peoples Services,CYPS - Local Authority,Transport,230007,Contract Hire,11-Mar-2013,2566435-1243,"1,350.00",DA TAXIS.
Children and Young Peoples Services,CYPS - Local Authority,Transport,230007,Contract Hire,11-Mar-2013,2566435-1244,"1,050.00",DA TAXIS.
Children and Young Peoples Services,CYPS - Local Authority,Transport,230007,Contract Hire,11-Mar-2013,2566435-1246,"1,425.00",DA TAXIS.
Children and Young Peoples Services,CYPS - Local Authority,Transport,230007,Contract Hire,11-Mar-2013,2566436-012,720.00,DA TRAVEL.
Children and Young Peoples Services,CYPS - Local Authority,Transport,230007,Contract Hire,11-Mar-2013,2566436-013,720.00,DA TRAVEL.
Children and Young Peoples Services,CYPS - Local Authority,Transport,230007,Contract Hire,11-Mar-2013,2566443-1747,"1,386.15",DAVES MINIBUSES.
Children and Young Peoples Services,CYPS - Local Authority,Transport,230007,Contract Hire,11-Mar-2013,2566443-1748,"1,424.40",DAVES MINIBUSES.
Children and Young Peoples Services,CYPS - Local Authority,Transport,230007,Contract Hire,11-Mar-2013,2566443-1749,"1,012.35",DAVES MINIBUSES.
Children and Young Peoples Services,CYPS - Local Authority,Transport,230007,Contract Hire,11-Mar-2013,2566443-1750,"1,418.10",DAVES MINIBUSES.
Children and Young Peoples Services,CYPS - Local Authority,Transport,230007,Contract Hire,11-Mar-2013,2566443-1751,"1,121.40",DAVES MINIBUSES.
Children and Young Peoples Services,CYPS - Local Authority,Transport,230007,Contract Hire,11-Mar-2013,2566444-28,"1,800.00",DAVES TAXIS.
Children and Young Peoples Services,CYPS - Local Authority,Transport,230007,Contract Hire,11-Mar-2013,2566445-6,900.00,DAVEY`S TAXIS.
Children and Young Peoples Services,CYPS - Local Authority,Transport,230007,Contract Hire,11-Mar-2013,2566447-0213-002,"1,061.00",DCM TAXIS.
Children and Young Peoples Services,CYPS - Local Authority,Transport,230007,Contract Hire,11-Mar-2013,2566457-A1202/23,"2,105.18",DMG PRIVATE HIRE.
Children and Young Peoples Services,CYPS - Local Authority,Transport,230007,Contract Hire,11-Mar-2013,2566477-4107/0213,"1,209.60",ELLIOTTS OF TRIMDON.
Children and Young Peoples Services,CYPS - Local Authority,Transport,230007,Contract Hire,11-Mar-2013,2566477-5075/0213,562.50,ELLIOTTS OF TRIMDON.
Children and Young Peoples Services,CYPS - Local Authority,Transport,230007,Contract Hire,11-Mar-2013,2566477-E009/0213,"1,280.85",ELLIOTTS OF TRIMDON.
Children and Young Peoples Services,CYPS - Local Authority,Transport,230007,Contract Hire,11-Mar-2013,2566477-E014/0213,"1,393.95",ELLIOTTS OF TRIMDON.
Children and Young Peoples Services,CYPS - Local Authority,Transport,230007,Contract Hire,11-Mar-2013,2566492-02/13,750.00,FREEDOM PRIVATE HIRE.
Children and Young Peoples Services,CYPS - Local Authority,Transport,230007,Contract Hire,11-Mar-2013,2566503-792,856.65,GEM TRAVEL.
Children and Young Peoples Services,CYPS - Local Authority,Transport,230007,Contract Hire,11-Mar-2013,2566504-021039,750.00,GEORDIES TAXIS.
Children and Young Peoples Services,CYPS - Local Authority,Transport,230007,Contract Hire,11-Mar-2013,2566508-GT02,570.00,GORDON`S TAXIS.
Children and Young Peoples Services,CYPS - Local Authority,Transport,230007,Contract Hire,11-Mar-2013,2566510-116V,"1,246.50",GRAHAMS MOTOR SERVICES.
Children and Young Peoples Services,CYPS - Local Authority,Transport,230007,Contract Hire,11-Mar-2013,2566512-7959,"1,178.10",GREENCROFT MINI COACHES.
Children and Young Peoples Services,CYPS - Local Authority,Transport,230007,Contract Hire,11-Mar-2013,2566522-04/2013,"1,288.20",HARRY DICKSON.
Children and Young Peoples Services,CYPS - Local Authority,Transport,230007,Contract Hire,11-Mar-2013,2566544-LIAM/02,900.00,J & C COACHES.
Children and Young Peoples Services,CYPS - Local Authority,Transport,230007,Contract Hire,11-Mar-2013,2566546-2102,"1,296.90",JEFF ANDERSON COACHES LTD.
Children and Young Peoples Services,CYPS - Local Authority,Transport,230007,Contract Hire,11-Mar-2013,2566550-6A-28/2/13,"1,050.00",JL EBDON.
Children and Young Peoples Services,CYPS - Local Authority,Transport,230007,Contract Hire,11-Mar-2013,2566550-6B,"1,050.00",JL EBDON.
Children and Young Peoples Services,CYPS - Local Authority,Transport,230007,Contract Hire,11-Mar-2013,2566550-6C-28/2/13,"1,020.00",JL EBDON.
Children and Young Peoples Services,CYPS - Local Authority,Transport,230007,Contract Hire,11-Mar-2013,2566550-6D-28/2/13,900.00,JL EBDON.
Children and Young Peoples Services,CYPS - Local Authority,Transport,230007,Contract Hire,11-Mar-2013,2566550-6E-28/2/13,"1,900.00",JL EBDON.
Children and Young Peoples Services,CYPS - Local Authority,Transport,230007,Contract Hire,11-Mar-2013,2566550-6F-28/2/13,"2,023.15",JL EBDON.
Children and Young Peoples Services,CYPS - Local Authority,Transport,230007,Contract Hire,11-Mar-2013,2566550-6G,900.00,JL EBDON.
Children and Young Peoples Services,CYPS - Local Authority,Transport,230007,Contract Hire,11-Mar-2013,2566562-1-17,570.00,KEVIN PARKIN.
Children and Young Peoples Services,CYPS - Local Authority,Transport,230007,Contract Hire,11-Mar-2013,2566573-17294,"1,792.50",LEES COACHES.
Children and Young Peoples Services,CYPS - Local Authority,Transport,230007,Contract Hire,11-Mar-2013,2566588-021303,"1,455.00",MARK & JOHN CHISHOLM T/A (CHEVRON).
Children and Young Peoples Services,CYPS - Local Authority,Transport,230007,Contract Hire,11-Mar-2013,2566588-021304,940.50,MARK & JOHN CHISHOLM T/A (CHEVRON).
Children and Young Peoples Services,CYPS - Local Authority,Transport,230007,Contract Hire,11-Mar-2013,2566588-021305,900.00,MARK & JOHN CHISHOLM T/A (CHEVRON).
Children and Young Peoples Services,CYPS - Local Authority,Transport,230007,Contract Hire,11-Mar-2013,2566596-00532,"2,240.00",MICHAELS TRAVEL.
Children and Young Peoples Services,CYPS - Local Authority,Transport,230007,Contract Hire,11-Mar-2013,2566601-279,"1,716.00",MOLLYS TAXIS.
Children and Young Peoples Services,CYPS - Local Authority,Transport,230007,Contract Hire,11-Mar-2013,2566605-34GG7,"1,460.25",MR GS ANDERSON.
Children and Young Peoples Services,CYPS - Local Authority,Transport,230007,Contract Hire,11-Mar-2013,2566605-35HH8,600.00,MR GS ANDERSON.
Children and Young Peoples Services,CYPS - Local Authority,Transport,230007,Contract Hire,11-Mar-2013,2566605-36119,665.00,MR GS ANDERSON.
Children and Young Peoples Services,CYPS - Local Authority,Transport,230007,Contract Hire,11-Mar-2013,2566606-0053,"2,175.00",MR P CAHILL.
Children and Young Peoples Services,CYPS - Local Authority,Transport,230007,Contract Hire,11-Mar-2013,2566606-0054,"2,460.50",MR P CAHILL.
Children and Young Peoples Services,CYPS - Local Authority,Transport,230007,Contract Hire,11-Mar-2013,2566606-0055,"2,566.65",MR P CAHILL.
Children and Young Peoples Services,CYPS - Local Authority,Transport,230007,Contract Hire,11-Mar-2013,2566609-6B,720.00,MR RAYMOND RENWICK.
Children and Young Peoples Services,CYPS - Local Authority,Transport,230007,Contract Hire,11-Mar-2013,2566609-6C,"1,295.00",MR RAYMOND RENWICK.
Children and Young Peoples Services,CYPS - Local Authority,Transport,230007,Contract Hire,11-Mar-2013,2566610-2712,930.00,MR S BOWERS.
Children and Young Peoples Services,CYPS - Local Authority,Transport,230007,Contract Hire,11-Mar-2013,2566610-2713,750.00,MR S BOWERS.
Children and Young Peoples Services,CYPS - Local Authority,Transport,230007,Contract Hire,11-Mar-2013,2566614-34-28/2/13,540.00,N FORBES.
Children and Young Peoples Services,CYPS - Local Authority,Transport,230007,Contract Hire,11-Mar-2013,2566625-2376,975.00,NIGHTINGALE COACHES.
Children and Young Peoples Services,CYPS - Local Authority,Transport,230007,Contract Hire,11-Mar-2013,2566625-2385,"1,551.15",NIGHTINGALE COACHES.
Children and Young Peoples Services,CYPS - Local Authority,Transport,230007,Contract Hire,11-Mar-2013,2566625-2386,"1,570.80",NIGHTINGALE COACHES.
Children and Young Peoples Services,CYPS - Local Authority,Transport,230007,Contract Hire,11-Mar-2013,2566625-2387,"1,578.00",NIGHTINGALE COACHES.
Children and Young Peoples Services,CYPS - Local Authority,Transport,230007,Contract Hire,11-Mar-2013,2566664-649,"4,349.55",PYGALL COACH HIRE.
Children and Young Peoples Services,CYPS - Local Authority,Transport,230007,Contract Hire,11-Mar-2013,2566718-32313A,"1,245.00",T MOORE & SON.
Children and Young Peoples Services,CYPS - Local Authority,Transport,230007,Contract Hire,11-Mar-2013,2566718-32413B,"1,237.50",T MOORE & SON.
Children and Young Peoples Services,CYPS - Local Authority,Transport,230007,Contract Hire,11-Mar-2013,2566718-32813F,855.00,T MOORE & SON.
Children and Young Peoples Services,CYPS - Local Authority,Transport,230007,Contract Hire,11-Mar-2013,2566720-1164,"1,190.00",TAILORMADE TRAVEL.
Children and Young Peoples Services,CYPS - Local Authority,Transport,230007,Contract Hire,11-Mar-2013,2566721-1789,810.00,TALBOTS TAXIS.
Children and Young Peoples Services,CYPS - Local Authority,Transport,230007,Contract Hire,11-Mar-2013,2566724-02/2013/012,760.00,TARN`S TAXIS.
Children and Young Peoples Services,CYPS - Local Authority,Transport,230007,Contract Hire,11-Mar-2013,2566724-02/2013/014,900.00,TARN`S TAXIS.
Children and Young Peoples Services,CYPS - Local Authority,Transport,230007,Contract Hire,11-Mar-2013,2566724-02/2013/018,"1,242.00",TARN`S TAXIS.
Children and Young Peoples Services,CYPS - Local Authority,Transport,230007,Contract Hire,11-Mar-2013,2566724-02/2013/019,525.00,TARN`S TAXIS.
Children and Young Peoples Services,CYPS - Local Authority,Transport,230007,Contract Hire,11-Mar-2013,2566742-015/12,"1,050.00",TL TAXIS.
Children and Young Peoples Services,CYPS - Local Authority,Transport,230007,Contract Hire,11-Mar-2013,2566743-1922,"3,636.00",TM TRAVEL.
Children and Young Peoples Services,CYPS - Local Authority,Transport,230007,Contract Hire,11-Mar-2013,2566743-1923,"1,770.00",TM TRAVEL.
Children and Young Peoples Services,CYPS - Local Authority,Transport,230007,Contract Hire,11-Mar-2013,2566743-1925,885.00,TM TRAVEL.
Children and Young Peoples Services,CYPS - Local Authority,Transport,230007,Contract Hire,11-Mar-2013,2566746-EDINV115,540.00,TONYS TAXIS (A BIRCH).
Children and Young Peoples Services,CYPS - Local Authority,Transport,230007,Contract Hire,11-Mar-2013,2566746-EDINV117,"1,260.00",TONYS TAXIS (A BIRCH).
Children and Young Peoples Services,CYPS - Local Authority,Transport,230007,Contract Hire,11-Mar-2013,2566755-14,600.00,TRAVEL 6.
Children and Young Peoples Services,CYPS - Local Authority,Transport,230007,Contract Hire,11-Mar-2013,2566760-0783,"3,255.30",TYNESIDE TRAVEL LTD.
Children and Young Peoples Services,CYPS - Local Authority,Transport,230007,Contract Hire,11-Mar-2013,2566780-01/03/13-02,931.00,WOLSINGHAM TAXIS.
Children and Young Peoples Services,CYPS - Local Authority,Transfer Payments,510032,School Children,11-Mar-2013,2566361-ACT0008449,785.70,BISHOP AUCKLAND COLLEGE NURSERY.
Children and Young Peoples Services,CYPS - Local Authority,Transfer Payments,510032,School Children,11-Mar-2013,2566398-ADJ0008546,523.80,CHILDS PLAY PRIVATE NURSERY.
Children and Young Peoples Services,CYPS - Local Authority,Transfer Payments,510032,School Children,11-Mar-2013,2566446-ADJ0008585,"1,455.00",DAYPARK LTD T/A YELLOW WELLIES.
Children and Young Peoples Services,CYPS - Local Authority,Transfer Payments,510032,School Children,11-Mar-2013,2566460-ACT0008452,"4,589.07",DUCKLINGS DAY NURSERY.
Children and Young Peoples Services,CYPS - Local Authority,Transfer Payments,510032,School Children,11-Mar-2013,2566532-ADJ0008557,"1,193.10",HOUSE OF EDEN CHILDRENS NURSERY.
Children and Young Peoples Services,CYPS - Local Authority,Transfer Payments,510032,School Children,11-Mar-2013,2566533-ACT0008459,"11,785.50",HOUSE OF EDEN CHILDRENS NURSERY.
Children and Young Peoples Services,CYPS - Local Authority,Transfer Payments,510032,School Children,11-Mar-2013,2566686-ACT0008467,"2,645.19",SEASIDE LANE NURSERY.
Children and Young Peoples Services,CYPS - Local Authority,Transfer Payments,510032,School Children,11-Mar-2013,2566712-ACT0008471,"4,765.12",SUNSHINE DAY NURSERY.
Children and Young Peoples Services,CYPS - Local Authority,Transfer Payments,510032,School Children,11-Mar-2013,2566736-ADJ0008576,698.40,THE LAURELS CHILD CARE.
Children and Young Peoples Services,Dedicated Schools Grant,Transport,230007,Contract Hire,11-Mar-2013,2566578-2825,"1,320.00",LINCAB TAXIS.
Children and Young Peoples Services,Dedicated Schools Grant,Transport,230007,Contract Hire,11-Mar-2013,2566588-021302,"1,440.00",MARK & JOHN CHISHOLM T/A (CHEVRON).
Children and Young Peoples Services,Dedicated Schools Grant,Transport,230007,Contract Hire,11-Mar-2013,2566718-32613D,767.25,T MOORE & SON.
Children and Young Peoples Services,Dedicated Schools Grant,Transport,230007,Contract Hire,11-Mar-2013,2566718-32713E,"1,125.00",T MOORE & SON.
Children and Young Peoples Services,Dedicated Schools Grant,Transport,230007,Contract Hire,11-Mar-2013,2566748-TS14-6,"1,650.00",TOP STAR TRAVEL.
Children and Young Peoples Services,Dedicated Schools Grant,Transport,230007,Contract Hire,11-Mar-2013,2566755-2010,780.00,TRAVEL 6.
Children and Young Peoples Services,Dedicated Schools Grant,Third Party Payments,410037,Rendered by Other Local Authorities,11-Mar-2013,2566442-2280892,"1,850.00",DARLINGTON BOROUGH COUNCIL.
Neighbourhood Services,Direct Services,Supplies and Services,304221,Equipment and Materials,11-Mar-2013,2566318-LLI271397,970.60,A THOMPSON & SONS LTD.
Neighbourhood Services,Direct Services,Supplies and Services,304221,Equipment and Materials,11-Mar-2013,2566318-LLI271481,"1,128.41",A THOMPSON & SONS LTD.
Neighbourhood Services,Direct Services,Supplies and Services,304221,Equipment and Materials,11-Mar-2013,2566318-LLI271694,"3,008.00",A THOMPSON & SONS LTD.
Neighbourhood Services,Direct Services,Supplies and Services,304221,Equipment and Materials,11-Mar-2013,2566318-LLI271741,"1,134.00",A THOMPSON & SONS LTD.
Neighbourhood Services,Direct Services,Supplies and Services,304221,Equipment and Materials,11-Mar-2013,2566698-123467,"9,098.33",SIKA LIQUID PLASTICS LTD.
Neighbourhood Services,Direct Services,Third Party Payments,430100,Rendered by Private Contractors,11-Mar-2013,2566413-5099,"1,300.00",COMMERCIAL COVERINGS LTD.
Neighbourhood Services,Direct Services,Third Party Payments,430100,Rendered by Private Contractors,11-Mar-2013,2566459-901073149,990.00,DORMA UK LTD.
Neighbourhood Services,Direct Services,Stock,926900,Stock in hand-Inventory system,11-Mar-2013,2566557-STI375986,"1,319.50",JT DOVE LTD.
Neighbourhood Services,"Heritage, Culture & Libraries",Supplies and Services,384199,Miscellaneous Expenses,11-Mar-2013,2566362-00018,"7,551.42",BISHOP CATERING LTD.
Neighbourhood Services,Neighbourhood central costs,Debtors,930017,Debtor-gas contract holding account,11-Mar-2013,2566420-JANUARY2013,"591,495.77",CORONA ENERGY RETAIL 2 LTD.
Neighbourhood Services,Sport & Leisure,Premises,106099,Centrally Controlled Rep and Maint,11-Mar-2013,2566385-92739786,500.00,CAPITA SYMONDS LTD.
Neighbourhood Services,Technical Services,Premises,120037,Energy Costs,11-Mar-2013,2566500-9043416,"1,502.09",GB OILS T/A BRETT FUELS.
Neighbourhood Services,Technical Services,Supplies and Services,304221,Equipment and Materials,11-Mar-2013,2566328-17655909,542.52,AGGREGATE INDUSTRIES UK LTD.
Neighbourhood Services,Technical Services,Supplies and Services,304221,Equipment and Materials,11-Mar-2013,2566328-17655913,"1,776.59",AGGREGATE INDUSTRIES UK LTD.
Neighbourhood Services,Technical Services,Supplies and Services,304221,Equipment and Materials,11-Mar-2013,2566566-3B00614670,"4,788.00",LAFARGE AGGREGATES LTD.
Neighbourhood Services,Technical Services,Supplies and Services,304221,Equipment and Materials,11-Mar-2013,2566566-3B00614770,"4,473.00",LAFARGE AGGREGATES LTD.
Neighbourhood Services,Technical Services,Supplies and Services,304221,Equipment and Materials,11-Mar-2013,2566566-3B00614870,"4,347.00",LAFARGE AGGREGATES LTD.
Neighbourhood Services,Technical Services,Supplies and Services,304221,Equipment and Materials,11-Mar-2013,2566566-3B00614970,"4,599.00",LAFARGE AGGREGATES LTD.
Neighbourhood Services,Technical Services,Supplies and Services,304221,Equipment and Materials,11-Mar-2013,2566566-3B00615070,"2,961.00",LAFARGE AGGREGATES LTD.
Neighbourhood Services,Technical Services,Supplies and Services,384199,Miscellaneous Expenses,11-Mar-2013,2566481-0000355044,933.00,ENVIRONMENTAL SCIENTIFICS GROUP LTD.
Regeneration & Economic Development,"Spatial Policy, Planning, Assets & Environment",Supplies and Services,384199,Miscellaneous Expenses,11-Mar-2013,2566334-BMARCH13,828.00,ALISTAIR LOCKETT.
Regeneration & Economic Development,Transport,Summary Income Level,720451,Fees and Charges,11-Mar-2013,2566490-NCP,"3,165.64",FRAZER KIDD & PARTNERS.
Regeneration & Economic Development,Transport,Third Party Payments,430106,Rendered by Private Contractors,11-Mar-2013,2566496-15042,"22,510.35",GARNETTS LTD (COACHES).
Regeneration & Economic Development,Transport,Third Party Payments,430100,Rendered by Private Contractors,11-Mar-2013,2566312-21315,822.00,24/7 TAXI SERVICES LTD.
Adults Wellbeing and Health,Central Charges,"Vehicles, Equipment, Furniture and Fittings",912701,Computer equipment,12-Mar-2013,2567578-117299,"3,211.00",SWITCHSHOP LTD.
Adults Wellbeing and Health,Commissioning inc Supporting People,Third Party Payments,479101,Purchase of Care,12-Mar-2013,2567587-430024621,"4,114.25",TEES ESK & WEAR VALLEY NHS FOUNDATION TRUST.
Adults Wellbeing and Health,Head of Adults,Supplies and Services,352001,Conference Expenses,12-Mar-2013,2567598-MHAOT,666.66,UNIVERSITY OF NORTHUMBRIA.
Adults Wellbeing and Health,Head of Adults,Third Party Payments,473101,Purchase of Care,12-Mar-2013,2567536-2188,"17,095.29",PERCY HEDLEY FOUNDATION.
Adults Wellbeing and Health,Head of Adults,Third Party Payments,473101,Purchase of Care,12-Mar-2013,2567536-2189,"13,393.69",PERCY HEDLEY FOUNDATION.
Adults Wellbeing and Health,Head of Adults,Third Party Payments,473101,Purchase of Care,12-Mar-2013,2567536-2190,"13,215.81",PERCY HEDLEY FOUNDATION.
Adults Wellbeing and Health,Head of Adults,Third Party Payments,473101,Purchase of Care,12-Mar-2013,2567536-2191,"11,361.90",PERCY HEDLEY FOUNDATION.
Adults Wellbeing and Health,Head of Adults,Third Party Payments,473101,Purchase of Care,12-Mar-2013,2567536-2192,"10,007.61",PERCY HEDLEY FOUNDATION.
Adults Wellbeing and Health,Head of Adults,Third Party Payments,478101,Purchase of Care,12-Mar-2013,2567430-0000107994,936.32,CREATIVE SUPPORT LTD.
Adults Wellbeing and Health,Planning and Performance,Supplies and Services,352001,Conference Expenses,12-Mar-2013,2567548-BES622013,"3,800.00",RGB TRAINING MANAGEMENT.
Adults Wellbeing and Health,Social Inclusion,Supplies and Services,384199,Miscellaneous Expenses,12-Mar-2013,2567586-1964,"568,764.00",TEES & DURHAM ENERGY ADVICE CO LTD.
Assistant Chief Executive,Partnerships & Community Engagement Div.,Supplies and Services,384085,Miscellaneous Expenses,12-Mar-2013,2567393-LIDR08-12,500.00,ACRE RIGG ACADEMY.
Assistant Chief Executive,Partnerships & Community Engagement Div.,Supplies and Services,384085,Miscellaneous Expenses,12-Mar-2013,2567445-VASC04-12,500.00,EAST STANLEY ALLOTMENT ASSOCIATION.
Assistant Chief Executive,Partnerships & Community Engagement Div.,Supplies and Services,384085,Miscellaneous Expenses,12-Mar-2013,2567569-VASC05-12,500.00,SOUTH STANLEY PARTNERSHIP.
Children and Young Peoples Services,CYPS - Local Authority,Construction Work,908201,Capital - Public Utilities - Electricity Services,12-Mar-2013,2567529-DI20160269,"5,813.00",NORTHERN POWERGRID (NORTHEAST) LTD.
Children and Young Peoples Services,CYPS - Local Authority,Supplies and Services,352001,Conference Expenses,12-Mar-2013,2567421-2803008276,"1,000.00",CITY OF SUNDERLAND.
Children and Young Peoples Services,CYPS - Local Authority,Construction Work,908105,Construction work,12-Mar-2013,2567604-496086164,730.00,YORKSHIRE PURCHASING ORGANISATION.
Children and Young Peoples Services,CYPS - Local Authority,Construction Work,908105,Construction work,12-Mar-2013,2567604-496105584,"5,443.00",YORKSHIRE PURCHASING ORGANISATION.
Children and Young Peoples Services,CYPS - Local Authority,Construction Work,908105,Construction work,12-Mar-2013,2567604-496105585,"23,156.00",YORKSHIRE PURCHASING ORGANISATION.
Children and Young Peoples Services,CYPS - Local Authority,Transport,230005,Contract Hire,12-Mar-2013,2567431-3670-FRC,"1,377.62",CROFT BUSINESS SERVICES (UK) LTD T/A CROFT TAXIS.
Children and Young Peoples Services,CYPS - Local Authority,Transport,230007,Contract Hire,12-Mar-2013,2567419-10,592.00,CHAPMAN TRAVEL.
Children and Young Peoples Services,CYPS - Local Authority,Supplies and Services,384302,Miscellaneous Expenses,12-Mar-2013,2567450-8049,677.20,FAMILY LINKS.
Children and Young Peoples Services,CYPS - Local Authority,Supplies and Services,384638,Miscellaneous Expenses,12-Mar-2013,2567413-216/13,720.00,BUTTERWICK HOSPICE RETAIL LTD.
Children and Young Peoples Services,CYPS - Local Authority,Supplies and Services,384638,Miscellaneous Expenses,12-Mar-2013,2567413-217/13,960.00,BUTTERWICK HOSPICE RETAIL LTD.
Children and Young Peoples Services,CYPS - Local Authority,Supplies and Services,384638,Miscellaneous Expenses,12-Mar-2013,2567413-218/13,720.00,BUTTERWICK HOSPICE RETAIL LTD.
Children and Young Peoples Services,CYPS - Local Authority,Supplies and Services,384638,Miscellaneous Expenses,12-Mar-2013,2567526-0000012839,805.00,NORTH EAST AUTISM SOCIETY.
Children and Young Peoples Services,CYPS - Local Authority,Supplies and Services,384638,Miscellaneous Expenses,12-Mar-2013,2567526-0000012841,612.50,NORTH EAST AUTISM SOCIETY.
Children and Young Peoples Services,CYPS - Local Authority,Supplies and Services,384638,Miscellaneous Expenses,12-Mar-2013,2567526-0000012843,612.50,NORTH EAST AUTISM SOCIETY.
Children and Young Peoples Services,CYPS - Local Authority,Supplies and Services,384638,Miscellaneous Expenses,12-Mar-2013,2567526-0000012848,"1,120.00",NORTH EAST AUTISM SOCIETY.
Children and Young Peoples Services,CYPS - Local Authority,Supplies and Services,384638,Miscellaneous Expenses,12-Mar-2013,2567526-0000012853,840.00,NORTH EAST AUTISM SOCIETY.
Children and Young Peoples Services,CYPS - Local Authority,Supplies and Services,384638,Miscellaneous Expenses,12-Mar-2013,2567526-0000012922,560.00,NORTH EAST AUTISM SOCIETY.
Children and Young Peoples Services,CYPS - Local Authority,Supplies and Services,384638,Miscellaneous Expenses,12-Mar-2013,2567526-0000012924,"1,015.00",NORTH EAST AUTISM SOCIETY.
Children and Young Peoples Services,CYPS - Local Authority,Supplies and Services,384638,Miscellaneous Expenses,12-Mar-2013,2567572-2900,"3,340.00",ST OSWALD`S HOSPICE.
Children and Young Peoples Services,CYPS - Local Authority,Supplies and Services,384999,Miscellaneous Expenses,12-Mar-2013,217868-COMP,500.00,REDACTED - PAYMENT TO INDIVIDUAL
Children and Young Peoples Services,CYPS - Local Authority,Supplies and Services,384199,Miscellaneous Expenses,12-Mar-2013,2567568-2/3-2013,"8,165.84",SOUL PURPOSE LEARNING & LIFE MANAGEMENT LTD.
Children and Young Peoples Services,CYPS - Local Authority,Third Party Payments,440056,Other Third Party Payments,12-Mar-2013,2567547-2622,"1,046.98",REACH OUT CARE SUPPORT SERVICES LTD.
Children and Young Peoples Services,CYPS - Local Authority,Third Party Payments,440015,Other Third Party Payments,12-Mar-2013,2566807-861918,"2,531.39",REDACTED - PAYMENT TO INDIVIDUAL
Children and Young Peoples Services,CYPS - Local Authority,Third Party Payments,440015,Other Third Party Payments,12-Mar-2013,2566807-861919,"2,436.15",REDACTED - PAYMENT TO INDIVIDUAL
Children and Young Peoples Services,CYPS - Local Authority,Third Party Payments,440015,Other Third Party Payments,12-Mar-2013,2566807-861920,"2,436.15",REDACTED - PAYMENT TO INDIVIDUAL
Children and Young Peoples Services,CYPS - Local Authority,Third Party Payments,440015,Other Third Party Payments,12-Mar-2013,2566889-861890,"1,703.12",REDACTED - PAYMENT TO INDIVIDUAL
Children and Young Peoples Services,CYPS - Local Authority,Third Party Payments,440015,Other Third Party Payments,12-Mar-2013,2566889-861891,"1,823.37",REDACTED - PAYMENT TO INDIVIDUAL
Children and Young Peoples Services,CYPS - Local Authority,Third Party Payments,440051,Other Third Party Payments,12-Mar-2013,2567424-12/13-089,"75,200.00",CORNFORTH PARTNERSHIP.
Children and Young Peoples Services,CYPS - Local Authority,Employees,040149,"Recruitment, Instruction and Training",12-Mar-2013,2567486-APR-JULY12,814.28,KEITH N TAYLOR.
Children and Young Peoples Services,CYPS - Local Authority,Employees,040149,"Recruitment, Instruction and Training",12-Mar-2013,2567486-JAN-MAR12,"1,059.21",KEITH N TAYLOR.
Children and Young Peoples Services,CYPS - Local Authority,Third Party Payments,425040,Rendered by Voluntary Organisations,12-Mar-2013,2567392-12/929,"3,128.40",ACORN HOUSE (FOSTERING SERVICES) LTD.
Children and Young Peoples Services,CYPS - Local Authority,Third Party Payments,425040,Rendered by Voluntary Organisations,12-Mar-2013,2567405-104305872,"3,587.64",BARNARDOS.
Children and Young Peoples Services,CYPS - Local Authority,Third Party Payments,425040,Rendered by Voluntary Organisations,12-Mar-2013,2567452-2463,"3,039.96",FOSTER CARE SOLUTIONS LTD.
Children and Young Peoples Services,CYPS - Local Authority,Third Party Payments,425040,Rendered by Voluntary Organisations,12-Mar-2013,2567453-FC011319,"1,180.00",FOSTER CARES LTD.
Children and Young Peoples Services,CYPS - Local Authority,Third Party Payments,425040,Rendered by Voluntary Organisations,12-Mar-2013,2567453-FC011359,"1,180.00",FOSTER CARES LTD.
Children and Young Peoples Services,CYPS - Local Authority,Third Party Payments,425040,Rendered by Voluntary Organisations,12-Mar-2013,2567453-FC011400,"1,180.00",FOSTER CARES LTD.
Children and Young Peoples Services,CYPS - Local Authority,Third Party Payments,425040,Rendered by Voluntary Organisations,12-Mar-2013,2567453-FC011449,"1,180.00",FOSTER CARES LTD.
Children and Young Peoples Services,CYPS - Local Authority,Third Party Payments,425040,Rendered by Voluntary Organisations,12-Mar-2013,2567453-FC011497,"1,180.00",FOSTER CARES LTD.
Children and Young Peoples Services,CYPS - Local Authority,Third Party Payments,425040,Rendered by Voluntary Organisations,12-Mar-2013,2567453-FC011542,"1,180.00",FOSTER CARES LTD.
Children and Young Peoples Services,CYPS - Local Authority,Third Party Payments,425040,Rendered by Voluntary Organisations,12-Mar-2013,2567453-FC011593,"1,180.00",FOSTER CARES LTD.
Children and Young Peoples Services,CYPS - Local Authority,Third Party Payments,425040,Rendered by Voluntary Organisations,12-Mar-2013,2567453-FC011636,"1,180.00",FOSTER CARES LTD.
Children and Young Peoples Services,CYPS - Local Authority,Third Party Payments,425040,Rendered by Voluntary Organisations,12-Mar-2013,2567453-FC011641,730.00,FOSTER CARES LTD.
Children and Young Peoples Services,CYPS - Local Authority,Third Party Payments,425040,Rendered by Voluntary Organisations,12-Mar-2013,2567453-FC011679,"1,180.00",FOSTER CARES LTD.
Children and Young Peoples Services,CYPS - Local Authority,Third Party Payments,425040,Rendered by Voluntary Organisations,12-Mar-2013,2567453-FC011684,730.00,FOSTER CARES LTD.
Children and Young Peoples Services,CYPS - Local Authority,Third Party Payments,425040,Rendered by Voluntary Organisations,12-Mar-2013,2567453-FC011730,"1,180.00",FOSTER CARES LTD.
Children and Young Peoples Services,CYPS - Local Authority,Third Party Payments,425040,Rendered by Voluntary Organisations,12-Mar-2013,2567453-FC011735,730.00,FOSTER CARES LTD.
Children and Young Peoples Services,CYPS - Local Authority,Third Party Payments,425040,Rendered by Voluntary Organisations,12-Mar-2013,2567454-7135,"1,564.20",FOSTERING OUTCOMES.
Children and Young Peoples Services,CYPS - Local Authority,Third Party Payments,425040,Rendered by Voluntary Organisations,12-Mar-2013,2567454-7241,"3,232.68",FOSTERING OUTCOMES.
Children and Young Peoples Services,CYPS - Local Authority,Third Party Payments,425040,Rendered by Voluntary Organisations,12-Mar-2013,2567454-7424,"2,919.84",FOSTERING OUTCOMES.
Children and Young Peoples Services,CYPS - Local Authority,Third Party Payments,425040,Rendered by Voluntary Organisations,12-Mar-2013,2567577-122161,"1,075.00",SWIIS FOSTER CARE LTD.
Children and Young Peoples Services,CYPS - Local Authority,Third Party Payments,425040,Rendered by Voluntary Organisations,12-Mar-2013,2567577-122473,"1,075.00",SWIIS FOSTER CARE LTD.
Children and Young Peoples Services,CYPS - Local Authority,Third Party Payments,425040,Rendered by Voluntary Organisations,12-Mar-2013,2567577-122777,"1,075.00",SWIIS FOSTER CARE LTD.
Children and Young Peoples Services,CYPS - Local Authority,Third Party Payments,425040,Rendered by Voluntary Organisations,12-Mar-2013,2567577-123211,"1,075.00",SWIIS FOSTER CARE LTD.
Children and Young Peoples Services,CYPS - Local Authority,Third Party Payments,425040,Rendered by Voluntary Organisations,12-Mar-2013,2567577-123489,"1,075.00",SWIIS FOSTER CARE LTD.
Children and Young Peoples Services,CYPS - Local Authority,Third Party Payments,425040,Rendered by Voluntary Organisations,12-Mar-2013,2567577-123825,"1,075.00",SWIIS FOSTER CARE LTD.
Children and Young Peoples Services,CYPS - Local Authority,Third Party Payments,425040,Rendered by Voluntary Organisations,12-Mar-2013,2567577-124104,"1,075.00",SWIIS FOSTER CARE LTD.
Children and Young Peoples Services,CYPS - Local Authority,Third Party Payments,425040,Rendered by Voluntary Organisations,12-Mar-2013,2567577-124433,"1,075.00",SWIIS FOSTER CARE LTD.
Children and Young Peoples Services,CYPS - Local Authority,Third Party Payments,425020,Rendered by Voluntary Organisations,12-Mar-2013,2567536-10813,"2,966.00",PERCY HEDLEY FOUNDATION.
Children and Young Peoples Services,CYPS - Local Authority,Third Party Payments,425020,Rendered by Voluntary Organisations,12-Mar-2013,2567536-10816,"2,760.00",PERCY HEDLEY FOUNDATION.
Children and Young Peoples Services,CYPS - Local Authority,Third Party Payments,425020,Rendered by Voluntary Organisations,12-Mar-2013,2567536-10820,"3,334.00",PERCY HEDLEY FOUNDATION.
Children and Young Peoples Services,CYPS - Local Authority,Third Party Payments,425020,Rendered by Voluntary Organisations,12-Mar-2013,2567536-10821,"2,988.00",PERCY HEDLEY FOUNDATION.
Children and Young Peoples Services,CYPS - Local Authority,Third Party Payments,425020,Rendered by Voluntary Organisations,12-Mar-2013,2567571-1130684,"1,213.50",ST CUTHBERTS CARE.
Children and Young Peoples Services,CYPS - Local Authority,Third Party Payments,425020,Rendered by Voluntary Organisations,12-Mar-2013,2567571-1131055,"2,689.00",ST CUTHBERTS CARE.
Children and Young Peoples Services,CYPS - Local Authority,Premises,125009,Rents,12-Mar-2013,2567599-229228,612.00,WHITTLE JONES (GROUP) LTD.
Children and Young Peoples Services,CYPS - Local Authority,Transfer Payments,510034,School Children,12-Mar-2013,2567526-PP21/2/13,"2,492.00",NORTH EAST AUTISM SOCIETY.
Children and Young Peoples Services,CYPS - Local Authority,Third Party Payments,486021,Service Level Agreements,12-Mar-2013,2567547-2624,"1,713.02",REACH OUT CARE SUPPORT SERVICES LTD.
Children and Young Peoples Services,CYPS - Local Authority,Supplies and Services,338040,Services,12-Mar-2013,2567474-FEESASOF25/2/13,"6,350.00",HMCTS.
Children and Young Peoples Services,Dedicated Schools Grant,Transport,230007,Contract Hire,12-Mar-2013,2567438-004-28/2/13,634.00,DUNCAN G CUMMINGS T/A DC TAXIS.
Corporate Resources,Financing- Resources,Supplies and Services,342051,Computers and Communications,12-Mar-2013,2567456-SIN136351,"3,059.64",FRONTIER SOFTWARE PLC.
Corporate Resources,Human Resources Total,Supplies and Services,352001,Conference Expenses,12-Mar-2013,2567459-206401156,"1,050.00",GATESHEAD COUNCIL.
Corporate Resources,ICT Services incl. Design and Print,Supplies and Services,342033,Computers and Communications,12-Mar-2013,2567435-7402006071,"2,208.41",DELL COMPUTER CORPORATION LTD.
Corporate Resources,ICT Services incl. Design and Print,Construction Work,908105,Construction work,12-Mar-2013,2567585-PSI-9059206,"1,363.00",TECHNOLOGY SERVICES GROUP LTD.
Corporate Resources,ICT Services incl. Design and Print,Construction Work,908105,Construction work,12-Mar-2013,2567585-PSI-9059207,"1,555.88",TECHNOLOGY SERVICES GROUP LTD.
Corporate Resources,ICT Services incl. Design and Print,Construction Work,908105,Construction work,12-Mar-2013,2567585-PSI-9059252,"1,405.10",TECHNOLOGY SERVICES GROUP LTD.
Corporate Resources,ICT Services incl. Design and Print,Construction Work,908105,Construction work,12-Mar-2013,2567585-PSI-9059497,"1,206.00",TECHNOLOGY SERVICES GROUP LTD.
Corporate Resources,ICT Services incl. Design and Print,Supplies and Services,304303,Equipment and Materials,12-Mar-2013,2567457-3203,892.00,FULL CONTROL NETWORKS.
Corporate Resources,ICT Services incl. Design and Print,Supplies and Services,332029,"Printing, Stationery and Gen Off Exps",12-Mar-2013,2567447-94231,811.25,ENCORE ENVELOPES LTD.
Corporate Resources,ICT Services incl. Design and Print,Supplies and Services,332029,"Printing, Stationery and Gen Off Exps",12-Mar-2013,2567473-65814,"2,620.00",HILLPRINT MEDIA LTD.
Corporate Resources,ICT Services incl. Design and Print,Stock,926900,Stock in hand-Inventory system,12-Mar-2013,2567434-7402005437,"1,570.00",DELL COMPUTER CORPORATION LTD.
Corporate Resources,ICT Services incl. Design and Print,Stock,926900,Stock in hand-Inventory system,12-Mar-2013,2567576-5640661,"1,963.03",SUPPLIES TEAM LTD.
Corporate Resources,Legal & Democratic Services,Supplies and Services,384059,Miscellaneous Expenses,12-Mar-2013,2567552-7140000055,867.21,RIVERSIDE EVENTS LLP.
Corporate Resources,Legal & Democratic Services,Supplies and Services,384059,Miscellaneous Expenses,12-Mar-2013,2567552-7140000207,716.37,RIVERSIDE EVENTS LLP.
Neighbourhood Services,Direct Services,Supplies and Services,304221,Equipment and Materials,12-Mar-2013,2567469-SI-1157,693.28,HARELAW SAWMILL LTD.
Neighbourhood Services,Direct Services,Supplies and Services,304221,Equipment and Materials,12-Mar-2013,2567579-0651183,563.07,T CROSSLING & CO LTD.
Neighbourhood Services,Direct Services,Supplies and Services,304221,Equipment and Materials,12-Mar-2013,2567579-0652663,"1,250.00",T CROSSLING & CO LTD.
Neighbourhood Services,Direct Services,"Vehicles, Equipment, Furniture and Fittings",912541,Purchase-vehicles,12-Mar-2013,2567549-770399,"17,450.00",RICKERBY LTD.
Neighbourhood Services,Direct Services,"Vehicles, Equipment, Furniture and Fittings",912541,Purchase-vehicles,12-Mar-2013,2567549-770400,"48,800.00",RICKERBY LTD.
Neighbourhood Services,Direct Services,"Vehicles, Equipment, Furniture and Fittings",912541,Purchase-vehicles,12-Mar-2013,2567549-770401,"38,100.00",RICKERBY LTD.
Neighbourhood Services,Direct Services,"Vehicles, Equipment, Furniture and Fittings",912541,Purchase-vehicles,12-Mar-2013,2567549-770402,"37,600.00",RICKERBY LTD.
Neighbourhood Services,Direct Services,Third Party Payments,430100,Rendered by Private Contractors,12-Mar-2013,2567439-8169,"3,460.00",DUNNINGHAM DECORATORS LTD.
Neighbourhood Services,Direct Services,Third Party Payments,430100,Rendered by Private Contractors,12-Mar-2013,2567476-37,966.00,IZZY GIBSON.
Neighbourhood Services,Direct Services,Third Party Payments,430100,Rendered by Private Contractors,12-Mar-2013,2567493-544,716.00,LAWLORS FALLEN STOCK.
Neighbourhood Services,Direct Services,Third Party Payments,430100,Rendered by Private Contractors,12-Mar-2013,2567558-B400/800028920,"3,860.93",SANTANDER CORPORATE BANKING.
Neighbourhood Services,Direct Services,Third Party Payments,430100,Rendered by Private Contractors,12-Mar-2013,2567584-5596,"34,753.00",TEAMS ROOFING LTD.
Neighbourhood Services,Direct Services,Third Party Payments,430100,Rendered by Private Contractors,12-Mar-2013,2567606-27299,688.95,YWC GROUP LTD.
Neighbourhood Services,Direct Services,Stock,926900,Stock in hand-Inventory system,12-Mar-2013,2567400-SIN186726,570.99,ATF SUPPLIES LTD.
Neighbourhood Services,Direct Services,Stock,926900,Stock in hand-Inventory system,12-Mar-2013,2567470-910,520.00,HAZBOX LTD.
Neighbourhood Services,Direct Services,Stock,926900,Stock in hand-Inventory system,12-Mar-2013,2567483-STI376169,603.00,JT DOVE LTD.
Neighbourhood Services,Direct Services,Stock,926900,Stock in hand-Inventory system,12-Mar-2013,2567602-79892065,"1,165.60",WOLSELEY UK LTD.
Neighbourhood Services,Direct Services,Stock,926900,Stock in hand-Inventory system,12-Mar-2013,2567602-79972618,"2,337.17",WOLSELEY UK LTD.
Neighbourhood Services,Projects and Business services,Other Expenses,914001,Other capital expenses,12-Mar-2013,2567417-901875,505.00,CDS SECURITY LTD.
Neighbourhood Services,Projects and Business services,"Vehicles, Equipment, Furniture and Fittings",912529,Purchase-equipment,12-Mar-2013,2567417-901874,"4,197.00",CDS SECURITY LTD.
Neighbourhood Services,Sport & Leisure,Employees,080025,Agency Staff,12-Mar-2013,2567544-7681,"1,000.00",PROTECTOR SECURITY GROUP LTD.
Neighbourhood Services,Sport & Leisure,"Vehicles, Equipment, Furniture and Fittings",912529,Purchase-equipment,12-Mar-2013,2567561-PHAN-8A7DN7-INV079,"1,725.25",SHADFORTH VILLAGE COMMUNITY ASSOCIATION.
Neighbourhood Services,Technical Services,Construction Work,908108,Capital - Surface Dressing,12-Mar-2013,2567488-12155,"25,555.14",KIELY BROS LTD.
Neighbourhood Services,Technical Services,Construction Work,908108,Capital - Surface Dressing,12-Mar-2013,2567488-12436,"2,931.79",KIELY BROS LTD.
Neighbourhood Services,Technical Services,Construction Work,908105,Construction work,12-Mar-2013,2567396-J1111/M,"8,604.02",AK (LIGHTING & SIGNS) LTD.
Neighbourhood Services,Technical Services,Supplies and Services,304221,Equipment and Materials,12-Mar-2013,2567395-17688506,911.34,AGGREGATE INDUSTRIES UK LTD.
Neighbourhood Services,Technical Services,Supplies and Services,304221,Equipment and Materials,12-Mar-2013,2567395-17688507,"1,672.75",AGGREGATE INDUSTRIES UK LTD.
Neighbourhood Services,Technical Services,Supplies and Services,304221,Equipment and Materials,12-Mar-2013,2567395-17694357,"1,604.30",AGGREGATE INDUSTRIES UK LTD.
Neighbourhood Services,Technical Services,Supplies and Services,304221,Equipment and Materials,12-Mar-2013,2567395-17699853,669.36,AGGREGATE INDUSTRIES UK LTD.
Neighbourhood Services,Technical Services,Supplies and Services,304221,Equipment and Materials,12-Mar-2013,2567395-17699855,555.55,AGGREGATE INDUSTRIES UK LTD.
Neighbourhood Services,Technical Services,Supplies and Services,304221,Equipment and Materials,12-Mar-2013,2567395-17724954,"2,111.12",AGGREGATE INDUSTRIES UK LTD.
Neighbourhood Services,Technical Services,Supplies and Services,304221,Equipment and Materials,12-Mar-2013,2567395-17724955,605.00,AGGREGATE INDUSTRIES UK LTD.
Neighbourhood Services,Technical Services,Supplies and Services,304221,Equipment and Materials,12-Mar-2013,2567395-17729519,"1,219.20",AGGREGATE INDUSTRIES UK LTD.
Neighbourhood Services,Technical Services,Supplies and Services,304221,Equipment and Materials,12-Mar-2013,2567395-17737282,"1,212.00",AGGREGATE INDUSTRIES UK LTD.
Neighbourhood Services,Technical Services,Supplies and Services,304221,Equipment and Materials,12-Mar-2013,2567395-17737283,"1,311.50",AGGREGATE INDUSTRIES UK LTD.
Neighbourhood Services,Technical Services,Supplies and Services,304221,Equipment and Materials,12-Mar-2013,2567565-202290,953.82,SIGNPOST SOLUTIONS LTD.
Neighbourhood Services,Technical Services,Supplies and Services,304358,Equipment and Materials,12-Mar-2013,2567480-13269,910.00,JOHN R BUTTERFIELD LTD.
Neighbourhood Services,Technical Services,Supplies and Services,304358,Equipment and Materials,12-Mar-2013,2567562-2013003,"1,981.50",SHIREHAVEN LTD.
Neighbourhood Services,Technical Services,Supplies and Services,304358,Equipment and Materials,12-Mar-2013,2567562-2013005,"1,818.00",SHIREHAVEN LTD.
Neighbourhood Services,Technical Services,Supplies and Services,304358,Equipment and Materials,12-Mar-2013,2567562-2013006,"2,720.25",SHIREHAVEN LTD.
Neighbourhood Services,Technical Services,Third Party Payments,430100,Rendered by Private Contractors,12-Mar-2013,2567464-19969,780.00,GRAB & DELIVER LTD.
Neighbourhood Services,Technical Services,Third Party Payments,430100,Rendered by Private Contractors,12-Mar-2013,2567464-19970,780.00,GRAB & DELIVER LTD.
Neighbourhood Services,Technical Services,Third Party Payments,430100,Rendered by Private Contractors,12-Mar-2013,2567464-19971,910.00,GRAB & DELIVER LTD.
Neighbourhood Services,Technical Services,Third Party Payments,430100,Rendered by Private Contractors,12-Mar-2013,2567542-123327,"11,433.82",PREMIER TRAFFIC MANAGEMENT LTD.
Neighbourhood Services,Technical Services,Third Party Payments,430100,Rendered by Private Contractors,12-Mar-2013,2567550-2739,"1,057.00",RINGLAND SCAFFOLDING.
Neighbourhood Services,Technical Services,Third Party Payments,430100,Rendered by Private Contractors,12-Mar-2013,2567575-955,507.40,SUPAMOLE DIRECTIONAL DRILLING SPECIALISTS.
Neighbourhood Services,Technical Services,Supplies and Services,372009,Subscriptions,12-Mar-2013,2567412-4298,"11,000.00",BUILDING SOFTWARE LTD.
RED HRA,Housing Revenue Account,Debtors,930106,Debtor-furnished tenancy scheme,12-Mar-2013,2567524-1800006329280,"41,898.28",NEWCASTLE UPON TYNE CITY COUNCIL.
RED HRA,Housing Revenue Account,Debtors,930106,Debtor-furnished tenancy scheme,12-Mar-2013,2567524-1800006333313,"41,459.63",NEWCASTLE UPON TYNE CITY COUNCIL.
RED HRA,Housing Revenue Account,Debtors,930106,Debtor-furnished tenancy scheme,12-Mar-2013,2567524-1800006375095,952.38,NEWCASTLE UPON TYNE CITY COUNCIL.
RED HRA,HRA Capital,Construction Work,908105,Construction work,12-Mar-2013,2567506-CON60750,"1,012.00",MIS ENVIRONMENTAL LTD.
RED HRA,HRA Capital,Construction Work,908105,Construction work,12-Mar-2013,2567506-CON60753,"1,944.00",MIS ENVIRONMENTAL LTD.
RED HRA,HRA Capital,Construction Work,908105,Construction work,12-Mar-2013,2567506-CON60756,"2,316.00",MIS ENVIRONMENTAL LTD.
RED HRA,HRA Capital,Construction Work,908105,Construction work,12-Mar-2013,2567574-LTS/524/014,"1,480.00",SUNTER LTD.
RED HRA,HRA Capital,Supplies and Services,332047,"Printing, Stationery and Gen Off Exps",12-Mar-2013,2567576-5690451,"13,982.50",SUPPLIES TEAM LTD.
Regeneration & Economic Development,Economic Development and Housing,Cap Exp on Grants & Other Financial Assistance (REFCUS),918401,Capital grants,12-Mar-2013,2567390-0290,"3,889.00",A OGILVIE BUILDING CONTRACTORS LTD.
Regeneration & Economic Development,Economic Development and Housing,Cap Exp on Grants & Other Financial Assistance (REFCUS),918401,Capital grants,12-Mar-2013,2567390-0340,"3,038.50",A OGILVIE BUILDING CONTRACTORS LTD.
Regeneration & Economic Development,Economic Development and Housing,Cap Exp on Grants & Other Financial Assistance (REFCUS),918401,Capital grants,12-Mar-2013,2567397-TBIG,680.00,REDACTED - PAYMENT TO INDIVIDUAL
Regeneration & Economic Development,Economic Development and Housing,Cap Exp on Grants & Other Financial Assistance (REFCUS),918401,Capital grants,12-Mar-2013,2567402-802,"18,225.00",AVENSWAY BUILDING CONTRACTORS LTD.
Regeneration & Economic Development,Economic Development and Housing,Cap Exp on Grants & Other Financial Assistance (REFCUS),918401,Capital grants,12-Mar-2013,2567408-TBIG,"11,760.00",BLP PROPERTY MANAGEMENT LTD.
Regeneration & Economic Development,Economic Development and Housing,Cap Exp on Grants & Other Financial Assistance (REFCUS),918401,Capital grants,12-Mar-2013,2567418-TBIG,"3,302.00",CESTRIAN ESTATES LTD.
Regeneration & Economic Development,Economic Development and Housing,Cap Exp on Grants & Other Financial Assistance (REFCUS),918401,Capital grants,12-Mar-2013,2567428-105,"2,745.00",CRAIG PATTERSON T/A LET ME GET YOU WET.
Regeneration & Economic Development,Economic Development and Housing,Cap Exp on Grants & Other Financial Assistance (REFCUS),918401,Capital grants,12-Mar-2013,2567436-TBIG,924.00,DERWENTSIDE PIZZAS.
Regeneration & Economic Development,Economic Development and Housing,Cap Exp on Grants & Other Financial Assistance (REFCUS),918401,Capital grants,12-Mar-2013,2567446-064JH,"5,205.00",ELLIOT HIRD & PARTNERS LTD.
Regeneration & Economic Development,Economic Development and Housing,Cap Exp on Grants & Other Financial Assistance (REFCUS),918401,Capital grants,12-Mar-2013,2567446-67,"2,835.00",ELLIOT HIRD & PARTNERS LTD.
Regeneration & Economic Development,Economic Development and Housing,Cap Exp on Grants & Other Financial Assistance (REFCUS),918401,Capital grants,12-Mar-2013,2567510-TBIG,"5,000.00",REDACTED - PAYMENT TO INDIVIDUAL
Regeneration & Economic Development,Economic Development and Housing,Cap Exp on Grants & Other Financial Assistance (REFCUS),918401,Capital grants,12-Mar-2013,2567512-TBIGP,"1,680.00",REDACTED - PAYMENT TO INDIVIDUAL
Regeneration & Economic Development,Economic Development and Housing,Cap Exp on Grants & Other Financial Assistance (REFCUS),918401,Capital grants,12-Mar-2013,2567523-DFG392/12,"4,330.00",NEW AGE PLUMBING & HEATING SERVICES.
Regeneration & Economic Development,Economic Development and Housing,Cap Exp on Grants & Other Financial Assistance (REFCUS),918401,Capital grants,12-Mar-2013,2567555-69,"7,091.25",ROYCE CARSON BUILDING SERVICES.
Regeneration & Economic Development,Economic Development and Housing,Cap Exp on Grants & Other Financial Assistance (REFCUS),918401,Capital grants,12-Mar-2013,2567557-DFG385/12,"4,119.50",SAFEBUILD LTD.
Regeneration & Economic Development,Economic Development and Housing,Cap Exp on Grants & Other Financial Assistance (REFCUS),918401,Capital grants,12-Mar-2013,2567591-SIP-122008,"1,720.00",THYSSENKRUPP ENCASA LTD.
Regeneration & Economic Development,Economic Development and Housing,Cap Exp on Grants & Other Financial Assistance (REFCUS),918401,Capital grants,12-Mar-2013,2567591-SIP-122283,"4,505.00",THYSSENKRUPP ENCASA LTD.
Regeneration & Economic Development,Economic Development and Housing,Cap Exp on Grants & Other Financial Assistance (REFCUS),918401,Capital grants,12-Mar-2013,2567591-SIP-122352,"1,820.00",THYSSENKRUPP ENCASA LTD.
Regeneration & Economic Development,Economic Development and Housing,Cap Exp on Grants & Other Financial Assistance (REFCUS),918401,Capital grants,12-Mar-2013,2567591-SIP-122460,"1,255.00",THYSSENKRUPP ENCASA LTD.
Regeneration & Economic Development,Economic Development and Housing,Cap Exp on Grants & Other Financial Assistance (REFCUS),918401,Capital grants,12-Mar-2013,2567591-SIP-122505,"1,680.00",THYSSENKRUPP ENCASA LTD.
Regeneration & Economic Development,Economic Development and Housing,Cap Exp on Grants & Other Financial Assistance (REFCUS),918401,Capital grants,12-Mar-2013,2567591-SIP-122511,"3,861.00",THYSSENKRUPP ENCASA LTD.
Regeneration & Economic Development,Economic Development and Housing,Cap Exp on Grants & Other Financial Assistance (REFCUS),918401,Capital grants,12-Mar-2013,2567591-SIP-122566,"1,895.00",THYSSENKRUPP ENCASA LTD.
Regeneration & Economic Development,Economic Development and Housing,Premises,106099,Centrally Controlled Rep and Maint,12-Mar-2013,2567538-59711516,"1,657.42",PHS GROUP PLC.
Regeneration & Economic Development,Economic Development and Housing,Premises,145023,Cleaning and Domestic Supplies,12-Mar-2013,2567538-59629309,982.80,PHS GROUP PLC.
Regeneration & Economic Development,Economic Development and Housing,Construction Work,908105,Construction work,12-Mar-2013,2567416-13285,"3,263.93",CATHEDRAL LOCK & SAFE SERVICES LTD.
Regeneration & Economic Development,Economic Development and Housing,Construction Work,908105,Construction work,12-Mar-2013,2567416-13286,"2,595.77",CATHEDRAL LOCK & SAFE SERVICES LTD.
Regeneration & Economic Development,Economic Development and Housing,Construction Work,908105,Construction work,12-Mar-2013,2567416-13306,"2,691.86",CATHEDRAL LOCK & SAFE SERVICES LTD.
Regeneration & Economic Development,Economic Development and Housing,Construction Work,908105,Construction work,12-Mar-2013,2567491-INV00233647,"1,932.00",LANES GROUP PLC.
Regeneration & Economic Development,Economic Development and Housing,Construction Work,908105,Construction work,12-Mar-2013,2567491-INV00233671,"2,100.00",LANES GROUP PLC.
Regeneration & Economic Development,Economic Development and Housing,Supplies and Services,368008,Incentives to Industrialists,12-Mar-2013,2567475-CWA,"10,000.00",INFINITE LEARNING & DEVELOPMENT.
Regeneration & Economic Development,Economic Development and Housing,Supplies and Services,384899,Miscellaneous Expenses,12-Mar-2013,2567560-G-LGCPAP,"10,000.00",SEAHAM TOWN COUNCIL.
Regeneration & Economic Development,Economic Development and Housing,Supplies and Services,384199,Miscellaneous Expenses,12-Mar-2013,2567404-47844,"2,306.00",AZTEC COLOUR PRINT NORTH EAST LTD.
Regeneration & Economic Development,Economic Development and Housing,Supplies and Services,384199,Miscellaneous Expenses,12-Mar-2013,2567485-COM/4578,500.00,JW WOOD.
Regeneration & Economic Development,Economic Development and Housing,Other Expenses,914001,Other capital expenses,12-Mar-2013,2567499-585,"6,000.00",LITTLE NEWSHAM FORGE LTD.
Regeneration & Economic Development,Economic Development and Housing,Supplies and Services,338078,Services,12-Mar-2013,2567546-3186,"4,334.52",QW SECURITY LTD.
Regeneration & Economic Development,Transport,Supplies and Services,336005,Advertising,12-Mar-2013,2567449-11279,550.00,EVERYTHING BRANDED.CO.UK.
Regeneration & Economic Development,Transport,Construction Work,908105,Construction work,12-Mar-2013,2567425-INS-LW,522.55,COUPE LINE LTD.
Regeneration & Economic Development,Transport,Supplies and Services,384899,Miscellaneous Expenses,12-Mar-2013,2567465-P3G-1/3/13,"1,000.00",GREATER WILLINGTON TOWN COUNCIL.
Regeneration & Economic Development,Transport,Other Expenses,914001,Other capital expenses,12-Mar-2013,2567425-INS-AIE,"1,704.78",COUPE LINE LTD.
Regeneration & Economic Development,Transport,Other Expenses,914001,Other capital expenses,12-Mar-2013,2567425-INS-BC,915.06,COUPE LINE LTD.
